Body Name,Body,Service Label,Service Code,Service Division ,Service Division Code,Organisational Unit,Expenditure Category - SeRCOP,Expenditure Code - SeRCOP,Expenditure Category - ProClass,Expenditure Code - ProClass,SeRCOP Detailed Expenditure Type,SeRCOP Detailed Expenditure Code,Date,Transaction Number,Amount,Capital and Revenue,Supplier Name,Supplier ID
Fareham Borough Council,http://statistics.data.gov.uk/id/local-authority/24UE,CENTRAL SERVICES,BV07,CENTRAL SERVICES TO THE PUBLIC,BV07B,DEPARTMENT OF OPERATIONS,SUPPLIES & SERVICES,4,Unclassified,,GRANTS AND SUBSCRIPTIONS,4700,05/05/2017,582518,6300.00 ,Revenue,ST ANDREW'S FIRST AID TRAINING AND SUPPLY,
Fareham Borough Council,http://statistics.data.gov.uk/id/local-authority/24UE,CENTRAL SERVICES,BV07,CENTRAL SERVICES TO THE PUBLIC,BV07B,DEPARTMENT OF OPERATIONS,SUPPLIES & SERVICES,4,Unclassified,,GRANTS AND SUBSCRIPTIONS,4700,05/05/2017,582518,20.00 ,Revenue,ST ANDREW'S FIRST AID TRAINING AND SUPPLY,
Fareham Borough Council,http://statistics.data.gov.uk/id/local-authority/24UE,CENTRAL SERVICES,BV07,CENTRAL SERVICES TO THE PUBLIC,BV07B,DEPARTMENT OF OPERATIONS,SUPPLIES & SERVICES,4,Unclassified,,GRANTS AND SUBSCRIPTIONS,4700,05/05/2017,582518,399.00 ,Revenue,ST ANDREW'S FIRST AID TRAINING AND SUPPLY,
Fareham Borough Council,http://statistics.data.gov.uk/id/local-authority/24UE,CENTRAL SERVICES,BV07,CENTRAL SERVICES TO THE PUBLIC,BV07B,DEPARTMENT OF OPERATIONS,SUPPLIES & SERVICES,4,Unclassified,,GRANTS AND SUBSCRIPTIONS,4700,05/05/2017,582518,343.00 ,Revenue,ST ANDREW'S FIRST AID TRAINING AND SUPPLY,
Fareham Borough Council,http://statistics.data.gov.uk/id/local-authority/24UE,CENTRAL SERVICES,BV07,CENTRAL SERVICES TO THE PUBLIC,BV07B,DEPARTMENT OF OPERATIONS,SUPPLIES & SERVICES,4,Unclassified,,GRANTS AND SUBSCRIPTIONS,4700,05/05/2017,582518,2800.00 ,Revenue,ST ANDREW'S FIRST AID TRAINING AND SUPPLY,
Fareham Borough Council,http://statistics.data.gov.uk/id/local-authority/24UE,CAPITAL PROGRAMME - OTHER SERVICES,CP,COMPUTER APPROVED,CP23,CAPITAL - COMPUTER APPROVED,SUPPLIES & SERVICES,4,Human Resources,26,FURNITURE & EQUIPT. PURCHASES,4000,12/05/2017,584045,5619.35 ,Capital,ALIENVAULT IRELAND LIMITED,569818
Fareham Borough Council,http://statistics.data.gov.uk/id/local-authority/24UE,CAPITAL PROGRAMME - OTHER SERVICES,CP,COMPUTER APPROVED,CP23,CAPITAL - COMPUTER APPROVED,SUPPLIES & SERVICES,4,Human Resources,26,TRAINING FOR EMPLOYEES,4612,12/05/2017,584045,3284.00 ,Capital,ALIENVAULT IRELAND LIMITED,569818
Fareham Borough Council,http://statistics.data.gov.uk/id/local-authority/24UE,CAPITAL PROGRAMME - OTHER SERVICES,CP,COMPUTER APPROVED,CP23,CAPITAL - COMPUTER APPROVED,SUPPLIES & SERVICES,4,Human Resources,26,FURNITURE & EQUIPT. PURCHASES,4000,12/05/2017,584045,20229.15 ,Capital,ALIENVAULT IRELAND LIMITED,569818
Fareham Borough Council,http://statistics.data.gov.uk/id/local-authority/24UE,OTHER REVENUE ACCOUNTS,RV,NON WORK GROUP HOLDING ACCOUNT,RV18,DEPARTMENT OF OPERATIONS,TRANSPORT RELATED EXPENDITURE,3,Vehicle Management,38,VEHICLE TRACKER CHARGES,3021,19/05/2017,584113,260.44 ,Revenue,UK TELEMATICS LIMITED,04203244
Fareham Borough Council,http://statistics.data.gov.uk/id/local-authority/24UE,OTHER REVENUE ACCOUNTS,RV,NON WORK GROUP HOLDING ACCOUNT,RV18,DEPARTMENT OF OPERATIONS,TRANSPORT RELATED EXPENDITURE,3,Vehicle Management,38,VEHICLE TRACKER CHARGES,3021,19/05/2017,584113,1363.48 ,Revenue,UK TELEMATICS LIMITED,04203244
Fareham Borough Council,http://statistics.data.gov.uk/id/local-authority/24UE,ENVIRONMENT AND REGULATORY SER,BV03,WASTE COLLECTION,BV03G,DEPARTMENT OF OPERATIONS,EMPLOYEES RELATED EXPENDITURE,1,Human Resources,26,AGENCY WORKERS,1050,05/05/2017,584371,597.60 ,Revenue,THE BEST CONNECTION GROUP LTD,2600534
Fareham Borough Council,http://statistics.data.gov.uk/id/local-authority/24UE,CAPITAL PROGRAMME - OTHER SERVICES,CP,COMPUTER APPROVED,CP23,CAPITAL - COMPUTER APPROVED,SUPPLIES & SERVICES,4,Information Communication Technology,27,FURNITURE & EQUIPT. PURCHASES,4000,05/05/2017,584871,1035.00 ,Capital,TENSOR PLC,OC306959
Fareham Borough Council,http://statistics.data.gov.uk/id/local-authority/24UE,CAPITAL PROGRAMME - OTHER SERVICES,CP,COMPUTER APPROVED,CP23,CAPITAL - COMPUTER APPROVED,SUPPLIES & SERVICES,4,Information Communication Technology,27,FURNITURE & EQUIPT. PURCHASES,4000,05/05/2017,584871,15.00 ,Capital,TENSOR PLC,OC306959
Fareham Borough Council,http://statistics.data.gov.uk/id/local-authority/24UE,HOUSING REVENUE ACCOUNT,BV06,SHELTERED HOUSING SERVICE,5031,DEPARTMENT OF OPERATIONS,PREMISES RELATED EXPENDITURE,2,Information Communication Technology,27,R & M ALARM SPEECH SYSTEMS,2027,05/05/2017,584881,1546.68 ,Revenue,TUNSTALL HEALTHCARE (UK) LTD,01332249
Fareham Borough Council,http://statistics.data.gov.uk/id/local-authority/24UE,CULTURAL AND RELATED SERVICES,BV09,RECREATION AND SPORT,BV09B,DEPARTMENT OF OPERATIONS,SUPPLIES & SERVICES,4,Highway Equipment & Materials�,23,FURNITURE & EQUIPT. PURCHASES,4000,19/05/2017,584909,486.81 ,Revenue,GLASDON U K LIMITED,02160576
Fareham Borough Council,http://statistics.data.gov.uk/id/local-authority/24UE,CULTURAL AND RELATED SERVICES,BV09,RECREATION AND SPORT,BV09B,DEPARTMENT OF OPERATIONS,SUPPLIES & SERVICES,4,Highway Equipment & Materials�,23,FURNITURE & EQUIPT. PURCHASES,4000,19/05/2017,584909,1250.07 ,Revenue,GLASDON U K LIMITED,02160576
Fareham Borough Council,http://statistics.data.gov.uk/id/local-authority/24UE,ENVIRONMENT AND REGULATORY SER,BV03,STREET CLEANSING,BV03F,DEPARTMENT OF OPERATIONS,TRANSPORT RELATED EXPENDITURE,3,Vehicle Management,38,ROUTINE REPAIRS VEHICLES/PLANT,3010,05/05/2017,584911,684.55 ,Revenue,JOHNSTON SWEEPERS LIMITED,00199841
Fareham Borough Council,http://statistics.data.gov.uk/id/local-authority/24UE,ENVIRONMENT AND REGULATORY SER,BV03,STREET CLEANSING,BV03F,DEPARTMENT OF OPERATIONS,TRANSPORT RELATED EXPENDITURE,3,Vehicle Management,38,ROUTINE REPAIRS VEHICLES/PLANT,3010,05/05/2017,584911,28.20 ,Revenue,JOHNSTON SWEEPERS LIMITED,00199841
Fareham Borough Council,http://statistics.data.gov.uk/id/local-authority/24UE,OTHER REVENUE ACCOUNTS,RV,NON WORK GROUP HOLDING ACCOUNT,RV18,DEPARTMENT OF OPERATIONS,SUPPLIES & SERVICES,4,Vehicle Management,38,MATERIALS (OPERATIONAL),4007,12/05/2017,584940,686.70 ,Revenue,MC TRUCK & BUS LTD,01241061
Fareham Borough Council,http://statistics.data.gov.uk/id/local-authority/24UE,OTHER REVENUE ACCOUNTS,RV,NON WORK GROUP HOLDING ACCOUNT,RV18,DEPT of FINANCE and RESOURCES,SUPPLIES & SERVICES,4,Information Communication Technology,27,FURNITURE & EQUIPT.-RENTS/LSES,4040,12/05/2017,584950,3691.31 ,Revenue,ANNODATA LTD,2246366
Fareham Borough Council,http://statistics.data.gov.uk/id/local-authority/24UE,CAPITAL PROGRAMME - OTHER SERVICES,CP,COMPUTER APPROVED,CP23,CAPITAL - COMPUTER APPROVED,SUPPLIES & SERVICES,4,Information Communication Technology,27,CONSULTANTS FEES,4401,05/05/2017,584954,975.00 ,Capital,BLUE CHIP DATA SYSTEMS LTD,02708840
Fareham Borough Council,http://statistics.data.gov.uk/id/local-authority/24UE,ENVIRONMENT AND REGULATORY SER,BV03,WASTE COLLECTION,BV03G,DEPARTMENT OF OPERATIONS,EMPLOYEES RELATED EXPENDITURE,1,Human Resources,26,AGENCY WORKERS,1050,12/05/2017,585490,680.40 ,Revenue,THE BEST CONNECTION GROUP LTD,2600534
Fareham Borough Council,http://statistics.data.gov.uk/id/local-authority/24UE,HIGHWAYS ROADS AND TRANSPORT,BV12,PUBLIC TRANSPORT,BV12E,DEPARTMENT OF OPERATIONS,PREMISES RELATED EXPENDITURE,2,Highway Equipment & Materials�,23,R & M OF BUILDINGS,2000,19/05/2017,585492,706.00 ,Revenue,QUEENSBURY SHELTERS,3822195
Fareham Borough Council,http://statistics.data.gov.uk/id/local-authority/24UE,CENTRAL SERVICES,BV07,CENTRAL SERVICES TO THE PUBLIC,BV07B,DEPARTMENT OF OPERATIONS,SUPPLIES & SERVICES,4,Mail Services�,30,POSTAGES,4500,12/05/2017,585507,1.62 ,Revenue,ROYAL MAIL,04138203
Fareham Borough Council,http://statistics.data.gov.uk/id/local-authority/24UE,CENTRAL SERVICES,BV07,CENTRAL SERVICES TO THE PUBLIC,BV07B,DEPARTMENT OF OPERATIONS,SUPPLIES & SERVICES,4,Mail Services�,30,POSTAGES,4500,12/05/2017,585507,70.20 ,Revenue,ROYAL MAIL,04138203
Fareham Borough Council,http://statistics.data.gov.uk/id/local-authority/24UE,OTHER REVENUE ACCOUNTS,RV,NON WORK GROUP HOLDING ACCOUNT,RV18,DEPT of FINANCE and RESOURCES,SUPPLIES & SERVICES,4,Mail Services�,30,POSTAGES,4500,12/05/2017,585507,10372.93 ,Revenue,ROYAL MAIL,04138203
Fareham Borough Council,http://statistics.data.gov.uk/id/local-authority/24UE,CAPITAL PROGRAMME - HOUSING SERVICES,CP,RENOVATION OF L.A. DWELLINGS,CP10,CAPITAL - ENERGY CONSERVATION,PREMISES RELATED EXPENDITURE,2,Consultancy,15,R & M OF BUILDINGS,2000,12/05/2017,585519,38.00 ,Capital,GAS CONTRACT SERVICES LIMITED,3400365
Fareham Borough Council,http://statistics.data.gov.uk/id/local-authority/24UE,CAPITAL PROGRAMME - HOUSING SERVICES,CP,RENOVATION OF L.A. DWELLINGS,CP10,CAPITAL - ENERGY CONSERVATION,PREMISES RELATED EXPENDITURE,2,Consultancy,15,R & M OF BUILDINGS,2000,12/05/2017,585519,38.00 ,Capital,GAS CONTRACT SERVICES LIMITED,3400365
Fareham Borough Council,http://statistics.data.gov.uk/id/local-authority/24UE,HOUSING REVENUE ACCOUNT,BV06,RESPONSIVE & VOID MAINTENANCE,5901,DEPARTMENT OF OPERATIONS,PREMISES RELATED EXPENDITURE,2,Consultancy,15,GAS SERVICING & ASSOC REPAIRS,2029,12/05/2017,585519,38.00 ,Revenue,GAS CONTRACT SERVICES LIMITED,3400365
Fareham Borough Council,http://statistics.data.gov.uk/id/local-authority/24UE,HOUSING REVENUE ACCOUNT,BV06,RESPONSIVE & VOID MAINTENANCE,5901,DEPARTMENT OF OPERATIONS,PREMISES RELATED EXPENDITURE,2,Consultancy,15,GAS SERVICING & ASSOC REPAIRS,2029,12/05/2017,585519,38.00 ,Revenue,GAS CONTRACT SERVICES LIMITED,3400365
Fareham Borough Council,http://statistics.data.gov.uk/id/local-authority/24UE,HOUSING REVENUE ACCOUNT,BV06,RESPONSIVE & VOID MAINTENANCE,5901,DEPARTMENT OF OPERATIONS,PREMISES RELATED EXPENDITURE,2,Consultancy,15,GAS SERVICING & ASSOC REPAIRS,2029,12/05/2017,585519,38.00 ,Revenue,GAS CONTRACT SERVICES LIMITED,3400365
Fareham Borough Council,http://statistics.data.gov.uk/id/local-authority/24UE,HOUSING REVENUE ACCOUNT,BV06,RESPONSIVE & VOID MAINTENANCE,5901,DEPARTMENT OF OPERATIONS,PREMISES RELATED EXPENDITURE,2,Consultancy,15,GAS SERVICING & ASSOC REPAIRS,2029,12/05/2017,585519,38.00 ,Revenue,GAS CONTRACT SERVICES LIMITED,3400365
Fareham Borough Council,http://statistics.data.gov.uk/id/local-authority/24UE,HOUSING REVENUE ACCOUNT,BV06,RESPONSIVE & VOID MAINTENANCE,5901,DEPARTMENT OF OPERATIONS,PREMISES RELATED EXPENDITURE,2,Consultancy,15,GAS SERVICING & ASSOC REPAIRS,2029,12/05/2017,585519,38.00 ,Revenue,GAS CONTRACT SERVICES LIMITED,3400365
Fareham Borough Council,http://statistics.data.gov.uk/id/local-authority/24UE,HOUSING REVENUE ACCOUNT,BV06,RESPONSIVE & VOID MAINTENANCE,5901,DEPARTMENT OF OPERATIONS,PREMISES RELATED EXPENDITURE,2,Consultancy,15,GAS SERVICING & ASSOC REPAIRS,2029,12/05/2017,585519,38.00 ,Revenue,GAS CONTRACT SERVICES LIMITED,3400365
Fareham Borough Council,http://statistics.data.gov.uk/id/local-authority/24UE,HOUSING REVENUE ACCOUNT,BV06,RESPONSIVE & VOID MAINTENANCE,5901,DEPARTMENT OF OPERATIONS,PREMISES RELATED EXPENDITURE,2,Consultancy,15,GAS SERVICING & ASSOC REPAIRS,2029,12/05/2017,585519,38.00 ,Revenue,GAS CONTRACT SERVICES LIMITED,3400365
Fareham Borough Council,http://statistics.data.gov.uk/id/local-authority/24UE,HOUSING REVENUE ACCOUNT,BV06,RESPONSIVE & VOID MAINTENANCE,5901,DEPARTMENT OF OPERATIONS,PREMISES RELATED EXPENDITURE,2,Consultancy,15,GAS SERVICING & ASSOC REPAIRS,2029,12/05/2017,585519,38.00 ,Revenue,GAS CONTRACT SERVICES LIMITED,3400365
Fareham Borough Council,http://statistics.data.gov.uk/id/local-authority/24UE,HOUSING REVENUE ACCOUNT,BV06,RESPONSIVE & VOID MAINTENANCE,5901,DEPARTMENT OF OPERATIONS,PREMISES RELATED EXPENDITURE,2,Consultancy,15,GAS SERVICING & ASSOC REPAIRS,2029,12/05/2017,585519,38.00 ,Revenue,GAS CONTRACT SERVICES LIMITED,3400365
Fareham Borough Council,http://statistics.data.gov.uk/id/local-authority/24UE,HOUSING REVENUE ACCOUNT,BV06,RESPONSIVE & VOID MAINTENANCE,5901,DEPARTMENT OF OPERATIONS,PREMISES RELATED EXPENDITURE,2,Consultancy,15,GAS SERVICING & ASSOC REPAIRS,2029,12/05/2017,585519,38.00 ,Revenue,GAS CONTRACT SERVICES LIMITED,3400365
Fareham Borough Council,http://statistics.data.gov.uk/id/local-authority/24UE,HOUSING REVENUE ACCOUNT,BV06,RESPONSIVE & VOID MAINTENANCE,5901,DEPARTMENT OF OPERATIONS,PREMISES RELATED EXPENDITURE,2,Consultancy,15,GAS SERVICING & ASSOC REPAIRS,2029,12/05/2017,585519,38.00 ,Revenue,GAS CONTRACT SERVICES LIMITED,3400365
Fareham Borough Council,http://statistics.data.gov.uk/id/local-authority/24UE,HOUSING REVENUE ACCOUNT,BV06,RESPONSIVE & VOID MAINTENANCE,5901,DEPARTMENT OF OPERATIONS,PREMISES RELATED EXPENDITURE,2,Consultancy,15,GAS SERVICING & ASSOC REPAIRS,2029,12/05/2017,585519,38.00 ,Revenue,GAS CONTRACT SERVICES LIMITED,3400365
Fareham Borough Council,http://statistics.data.gov.uk/id/local-authority/24UE,HOUSING REVENUE ACCOUNT,BV06,RESPONSIVE & VOID MAINTENANCE,5901,DEPARTMENT OF OPERATIONS,PREMISES RELATED EXPENDITURE,2,Consultancy,15,GAS SERVICING & ASSOC REPAIRS,2029,12/05/2017,585519,38.00 ,Revenue,GAS CONTRACT SERVICES LIMITED,3400365
Fareham Borough Council,http://statistics.data.gov.uk/id/local-authority/24UE,HOUSING REVENUE ACCOUNT,BV06,RESPONSIVE & VOID MAINTENANCE,5901,DEPARTMENT OF OPERATIONS,PREMISES RELATED EXPENDITURE,2,Consultancy,15,GAS SERVICING & ASSOC REPAIRS,2029,12/05/2017,585519,38.00 ,Revenue,GAS CONTRACT SERVICES LIMITED,3400365
Fareham Borough Council,http://statistics.data.gov.uk/id/local-authority/24UE,HOUSING REVENUE ACCOUNT,BV06,RESPONSIVE & VOID MAINTENANCE,5901,DEPARTMENT OF OPERATIONS,PREMISES RELATED EXPENDITURE,2,Consultancy,15,GAS SERVICING & ASSOC REPAIRS,2029,12/05/2017,585519,38.00 ,Revenue,GAS CONTRACT SERVICES LIMITED,3400365
Fareham Borough Council,http://statistics.data.gov.uk/id/local-authority/24UE,HOUSING REVENUE ACCOUNT,BV06,RESPONSIVE & VOID MAINTENANCE,5901,DEPARTMENT OF OPERATIONS,PREMISES RELATED EXPENDITURE,2,Consultancy,15,GAS SERVICING & ASSOC REPAIRS,2029,12/05/2017,585519,38.00 ,Revenue,GAS CONTRACT SERVICES LIMITED,3400365
Fareham Borough Council,http://statistics.data.gov.uk/id/local-authority/24UE,HOUSING REVENUE ACCOUNT,BV06,RESPONSIVE & VOID MAINTENANCE,5901,DEPARTMENT OF OPERATIONS,PREMISES RELATED EXPENDITURE,2,Consultancy,15,GAS SERVICING & ASSOC REPAIRS,2029,12/05/2017,585519,38.00 ,Revenue,GAS CONTRACT SERVICES LIMITED,3400365
Fareham Borough Council,http://statistics.data.gov.uk/id/local-authority/24UE,CAPITAL PROGRAMME - HOUSING SERVICES,CP,RENOVATION OF L.A. DWELLINGS,CP10,CAPITAL - ENERGY CONSERVATION,PREMISES RELATED EXPENDITURE,2,Consultancy,15,R & M OF BUILDINGS,2000,05/05/2017,585520,70.00 ,Capital,GAS CONTRACT SERVICES LIMITED,3400365
Fareham Borough Council,http://statistics.data.gov.uk/id/local-authority/24UE,CAPITAL PROGRAMME - HOUSING SERVICES,CP,RENOVATION OF L.A. DWELLINGS,CP10,CAPITAL - ENERGY CONSERVATION,PREMISES RELATED EXPENDITURE,2,Consultancy,15,R & M OF BUILDINGS,2000,05/05/2017,585520,70.00 ,Capital,GAS CONTRACT SERVICES LIMITED,3400365
Fareham Borough Council,http://statistics.data.gov.uk/id/local-authority/24UE,CAPITAL PROGRAMME - HOUSING SERVICES,CP,RENOVATION OF L.A. DWELLINGS,CP10,CAPITAL - ENERGY CONSERVATION,PREMISES RELATED EXPENDITURE,2,Consultancy,15,R & M OF BUILDINGS,2000,05/05/2017,585520,70.00 ,Capital,GAS CONTRACT SERVICES LIMITED,3400365
Fareham Borough Council,http://statistics.data.gov.uk/id/local-authority/24UE,CAPITAL PROGRAMME - HOUSING SERVICES,CP,RENOVATION OF L.A. DWELLINGS,CP10,CAPITAL - ENERGY CONSERVATION,PREMISES RELATED EXPENDITURE,2,Consultancy,15,R & M OF BUILDINGS,2000,05/05/2017,585520,70.00 ,Capital,GAS CONTRACT SERVICES LIMITED,3400365
Fareham Borough Council,http://statistics.data.gov.uk/id/local-authority/24UE,CAPITAL PROGRAMME - HOUSING SERVICES,CP,RENOVATION OF L.A. DWELLINGS,CP10,CAPITAL - ENERGY CONSERVATION,PREMISES RELATED EXPENDITURE,2,Consultancy,15,R & M OF BUILDINGS,2000,05/05/2017,585520,70.00 ,Capital,GAS CONTRACT SERVICES LIMITED,3400365
Fareham Borough Council,http://statistics.data.gov.uk/id/local-authority/24UE,CAPITAL PROGRAMME - HOUSING SERVICES,CP,RENOVATION OF L.A. DWELLINGS,CP10,CAPITAL - ENERGY CONSERVATION,PREMISES RELATED EXPENDITURE,2,Consultancy,15,R & M OF BUILDINGS,2000,05/05/2017,585520,70.00 ,Capital,GAS CONTRACT SERVICES LIMITED,3400365
Fareham Borough Council,http://statistics.data.gov.uk/id/local-authority/24UE,CAPITAL PROGRAMME - HOUSING SERVICES,CP,RENOVATION OF L.A. DWELLINGS,CP10,CAPITAL - ENERGY CONSERVATION,PREMISES RELATED EXPENDITURE,2,Consultancy,15,R & M OF BUILDINGS,2000,05/05/2017,585520,70.00 ,Capital,GAS CONTRACT SERVICES LIMITED,3400365
Fareham Borough Council,http://statistics.data.gov.uk/id/local-authority/24UE,CAPITAL PROGRAMME - HOUSING SERVICES,CP,RENOVATION OF L.A. DWELLINGS,CP10,CAPITAL - ENERGY CONSERVATION,PREMISES RELATED EXPENDITURE,2,Consultancy,15,R & M OF BUILDINGS,2000,05/05/2017,585520,70.00 ,Capital,GAS CONTRACT SERVICES LIMITED,3400365
Fareham Borough Council,http://statistics.data.gov.uk/id/local-authority/24UE,CAPITAL PROGRAMME - HOUSING SERVICES,CP,RENOVATION OF L.A. DWELLINGS,CP10,CAPITAL - ENERGY CONSERVATION,PREMISES RELATED EXPENDITURE,2,Consultancy,15,R & M OF BUILDINGS,2000,05/05/2017,585520,70.00 ,Capital,GAS CONTRACT SERVICES LIMITED,3400365
Fareham Borough Council,http://statistics.data.gov.uk/id/local-authority/24UE,ENVIRONMENT AND REGULATORY SER,BV03,WASTE COLLECTION,BV03G,DEPARTMENT OF OPERATIONS,TRANSPORT RELATED EXPENDITURE,3,Vehicle Management,38,ROUTINE REPAIRS VEHICLES/PLANT,3010,19/05/2017,585569,1514.39 ,Revenue,DENNIS EAGLE LIMITED,03794455
Fareham Borough Council,http://statistics.data.gov.uk/id/local-authority/24UE,CULTURAL AND RELATED SERVICES,BV09,CULTURE AND HERITAGE,BV09A,DEPARTMENT OF OPERATIONS,SUPPLIES & SERVICES,4,Building Construction Materials,10,EQUIPMENT PURCHASES - TECH'L,4011,12/05/2017,585574,631.74 ,Revenue,A C ENTERTAINMENT TECHNOLOGIES LTD,1626564
Fareham Borough Council,http://statistics.data.gov.uk/id/local-authority/24UE,ENVIRONMENT AND REGULATORY SER,BV03,WASTE COLLECTION,BV03G,DEPARTMENT OF OPERATIONS,TRANSPORT RELATED EXPENDITURE,3,Vehicle Management,38,ROUTINE REPAIRS VEHICLES/PLANT,3010,19/05/2017,585603,1553.74 ,Revenue,MITCHELL DIESEL LTD,
Fareham Borough Council,http://statistics.data.gov.uk/id/local-authority/24UE,BALANCE SHEET,BS,BAL. SHEET - D.S.O.,BS1,BAL. SHEET - D.S.O.,TOTAL ASSETS LESS LIABILITIES,BS100,Vehicle Management,38,MATERIALS SUSPENSE ACCOUNT (VE,A016,19/05/2017,585607,14206.50 ,Balance Sheet,WESSEX PETROLEUM LTD,01024472
Fareham Borough Council,http://statistics.data.gov.uk/id/local-authority/24UE,OTHER REVENUE ACCOUNTS,RV,NON WORK GROUP HOLDING ACCOUNT,RV18,DEPT of FINANCE and RESOURCES,SUPPLIES & SERVICES,4,Information Communication Technology,27,SOFTWARE LICENCES,4530,12/05/2017,585673,24995.04 ,Revenue,NORTHGATE PUBLIC SERVICES (UK) LTD,968498
Fareham Borough Council,http://statistics.data.gov.uk/id/local-authority/24UE,CAPITAL PROGRAMME - OTHER SERVICES,CP,NEW SCHEMES,CP23,CAPITAL - NEW SCHEMES,SUPPLIES & SERVICES,4,Furniture,21,FURNITURE & EQUIPT. PURCHASES,4000,05/05/2017,585674,270.40 ,Capital,PORTSDOWN OFFICE LIMITED,01779525
Fareham Borough Council,http://statistics.data.gov.uk/id/local-authority/24UE,CAPITAL PROGRAMME - OTHER SERVICES,CP,NEW SCHEMES,CP23,CAPITAL - NEW SCHEMES,SUPPLIES & SERVICES,4,Furniture,21,FURNITURE & EQUIPT. PURCHASES,4000,05/05/2017,585674,193.60 ,Capital,PORTSDOWN OFFICE LIMITED,01779525
Fareham Borough Council,http://statistics.data.gov.uk/id/local-authority/24UE,CAPITAL PROGRAMME - OTHER SERVICES,CP,NEW SCHEMES,CP23,CAPITAL - NEW SCHEMES,SUPPLIES & SERVICES,4,Furniture,21,FURNITURE & EQUIPT. PURCHASES,4000,05/05/2017,585674,41.56 ,Capital,PORTSDOWN OFFICE LIMITED,01779525
Fareham Borough Council,http://statistics.data.gov.uk/id/local-authority/24UE,CAPITAL PROGRAMME - OTHER SERVICES,CP,APPROVED PROGRAMME,CP24,CAPITAL - APPROVED PROGRAMME,PREMISES RELATED EXPENDITURE,2,"Works - Construction, Repair & Maintenance",39,R & M OF BUILDINGS,2000,05/05/2017,585689,62835.36 ,Capital,MOUNTJOY LTD,06009150
Fareham Borough Council,http://statistics.data.gov.uk/id/local-authority/24UE,HOUSING REVENUE ACCOUNT,BV06,GENERAL ADMINISTRATION EXPENSE,5021,DEPARTMENT OF OPERATIONS,SUPPLIES & SERVICES,4,Consultancy,15,GRANTS AND SUBSCRIPTIONS,4700,19/05/2017,585735,509.25 ,Revenue,NORTHERN HOUSING CONSORTIUM LTD,04361009
Fareham Borough Council,http://statistics.data.gov.uk/id/local-authority/24UE,OTHER REVENUE ACCOUNTS,RV,NON WORK GROUP HOLDING ACCOUNT,RV18,DEPT of FINANCE and RESOURCES,SUPPLIES & SERVICES,4,Financial Services,20,CONSULTANTS FEES,4401,05/05/2017,585737,1095.00 ,Revenue,DUN & BRADSTREET LIMITED,0160043
Fareham Borough Council,http://statistics.data.gov.uk/id/local-authority/24UE,CAPITAL PROGRAMME - OTHER SERVICES,CP,DSO VEHICLES & PLANT PURCHASES,CP23,CAPITAL - DSO VEHICLES & PLANT PURCHASES,TRANSPORT RELATED EXPENDITURE,3,Environmental Services,18,PURCHASE OF VEHICLES,3000,12/05/2017,585742,60.00 ,Capital,AEBI SCHMIDT UK LTD,557725
Fareham Borough Council,http://statistics.data.gov.uk/id/local-authority/24UE,CAPITAL PROGRAMME - OTHER SERVICES,CP,DSO VEHICLES & PLANT PURCHASES,CP23,CAPITAL - DSO VEHICLES & PLANT PURCHASES,TRANSPORT RELATED EXPENDITURE,3,Environmental Services,18,PURCHASE OF VEHICLES,3000,12/05/2017,585742,59574.00 ,Capital,AEBI SCHMIDT UK LTD,557725
Fareham Borough Council,http://statistics.data.gov.uk/id/local-authority/24UE,CAPITAL PROGRAMME - OTHER SERVICES,CP,DSO VEHICLES & PLANT PURCHASES,CP23,CAPITAL - DSO VEHICLES & PLANT PURCHASES,TRANSPORT RELATED EXPENDITURE,3,Environmental Services,18,PURCHASE OF VEHICLES,3000,12/05/2017,585742,165.00 ,Capital,AEBI SCHMIDT UK LTD,557725
Fareham Borough Council,http://statistics.data.gov.uk/id/local-authority/24UE,CAPITAL PROGRAMME - OTHER SERVICES,CP,DSO VEHICLES & PLANT PURCHASES,CP23,CAPITAL - DSO VEHICLES & PLANT PURCHASES,TRANSPORT RELATED EXPENDITURE,3,Environmental Services,18,PURCHASE OF VEHICLES,3000,12/05/2017,585742,55.00 ,Capital,AEBI SCHMIDT UK LTD,557725
Fareham Borough Council,http://statistics.data.gov.uk/id/local-authority/24UE,OTHER REVENUE ACCOUNTS,RV,NON WORK GROUP HOLDING ACCOUNT,RV18,DEPT of FINANCE and RESOURCES,EMPLOYEES RELATED EXPENDITURE,1,Healthcare,31,MEDICAL EXPENSES,1907,05/05/2017,586047,520.00 ,Revenue,OCCUPATIONAL HEALTH 1ST,7836183
Fareham Borough Council,http://statistics.data.gov.uk/id/local-authority/24UE,OTHER REVENUE ACCOUNTS,RV,NON WORK GROUP HOLDING ACCOUNT,RV18,DEPT of FINANCE and RESOURCES,SUPPLIES & SERVICES,4,Information Communication Technology,27,FURNITURE & EQUIPT. PURCHASES,4000,05/05/2017,586053,735.00 ,Revenue,VODAFONE LIMITED,01471587
Fareham Borough Council,http://statistics.data.gov.uk/id/local-authority/24UE,OTHER REVENUE ACCOUNTS,RV,CONTRACT SERVICES D.S.O.,RV14,DEPARTMENT OF OPERATIONS,EMPLOYEES RELATED EXPENDITURE,1,Human Resources,26,AGENCY WORKERS,1050,05/05/2017,586057,677.25 ,Revenue,BUILDING RECRUITMENT COMPANY LTD,3750125
Fareham Borough Council,http://statistics.data.gov.uk/id/local-authority/24UE,CULTURAL AND RELATED SERVICES,BV09,CULTURE AND HERITAGE,BV09A,DEPARTMENT OF OPERATIONS,PREMISES RELATED EXPENDITURE,2,"Works - Construction, Repair & Maintenance",39,GENERAL REPAIRS,2018,05/05/2017,586058,180.00 ,Revenue,M & B DRAIN SERVICES,
Fareham Borough Council,http://statistics.data.gov.uk/id/local-authority/24UE,ENVIRONMENT AND REGULATORY SER,BV03,ENVIRONMENTAL HEALTH,BV03C,DEPARTMENT OF OPERATIONS,PREMISES RELATED EXPENDITURE,2,"Works - Construction, Repair & Maintenance",39,GENERAL REPAIRS,2018,05/05/2017,586058,80.00 ,Revenue,M & B DRAIN SERVICES,
Fareham Borough Council,http://statistics.data.gov.uk/id/local-authority/24UE,HOUSING REVENUE ACCOUNT,BV06,RESPONSIVE & VOID MAINTENANCE,5901,DEPARTMENT OF OPERATIONS,PREMISES RELATED EXPENDITURE,2,"Works - Construction, Repair & Maintenance",39,GENERAL REPAIRS,2018,05/05/2017,586058,1905.00 ,Revenue,M & B DRAIN SERVICES,
Fareham Borough Council,http://statistics.data.gov.uk/id/local-authority/24UE,OTHER REVENUE ACCOUNTS,RV,NON WORK GROUP HOLDING ACCOUNT,RV18,DEPT of FINANCE and RESOURCES,PREMISES RELATED EXPENDITURE,2,"Works - Construction, Repair & Maintenance",39,GENERAL REPAIRS,2018,05/05/2017,586058,40.00 ,Revenue,M & B DRAIN SERVICES,
Fareham Borough Council,http://statistics.data.gov.uk/id/local-authority/24UE,GENERAL FUND HOUSING,BV05,HOMELESSNESS,BV05F,DEPARTMENT OF OPERATIONS,SUPPLIES & SERVICES,4,Building Construction Materials,10,MATERIALS (OPERATIONAL),4007,05/05/2017,586080,720.94 ,Revenue,AVS FENCING SUPPLIES LTD,2818962
Fareham Borough Council,http://statistics.data.gov.uk/id/local-authority/24UE,GENERAL FUND HOUSING,BV05,HOMELESSNESS,BV05F,DEPARTMENT OF OPERATIONS,SUPPLIES & SERVICES,4,Information Communication Technology,27,CONSULTANTS FEES,4401,05/05/2017,586113,3100.00 ,Revenue,PETER LALLY ASSOCIATES,
Fareham Borough Council,http://statistics.data.gov.uk/id/local-authority/24UE,OTHER REVENUE ACCOUNTS,RV,CONTRACT SERVICES D.S.O.,RV14,DEPARTMENT OF OPERATIONS,EMPLOYEES RELATED EXPENDITURE,1,Human Resources,26,AGENCY WORKERS,1050,05/05/2017,586132,4792.90 ,Revenue,BUZZ PEOPLE RECRUITMENT LTD,07908887
Fareham Borough Council,http://statistics.data.gov.uk/id/local-authority/24UE,PLANNING SERVICES,BV13,ECONOMIC DEVELOPMENT,BV13E,DEPARTMENT OF OPERATIONS,EMPLOYEES RELATED EXPENDITURE,1,Human Resources,26,AGENCY WORKERS,1050,05/05/2017,586133,439.74 ,Revenue,BUZZ PEOPLE RECRUITMENT LTD,07908887
Fareham Borough Council,http://statistics.data.gov.uk/id/local-authority/24UE,PLANNING SERVICES,BV13,ECONOMIC DEVELOPMENT,BV13E,DEPT of STRATEGIC PLANNING and ENVIRONMENT,EMPLOYEES RELATED EXPENDITURE,1,Human Resources,26,AGENCY WORKERS,1050,05/05/2017,586133,104.70 ,Revenue,BUZZ PEOPLE RECRUITMENT LTD,07908887
Fareham Borough Council,http://statistics.data.gov.uk/id/local-authority/24UE,OTHER REVENUE ACCOUNTS,RV,CONTRACT SERVICES D.S.O.,RV14,DEPARTMENT OF OPERATIONS,EMPLOYEES RELATED EXPENDITURE,1,Human Resources,26,AGENCY WORKERS,1050,05/05/2017,586134,2174.40 ,Revenue,BUZZ PEOPLE RECRUITMENT LTD,07908887
Fareham Borough Council,http://statistics.data.gov.uk/id/local-authority/24UE,OTHER REVENUE ACCOUNTS,RV,CONTRACT SERVICES D.S.O.,RV14,DEPARTMENT OF OPERATIONS,EMPLOYEES RELATED EXPENDITURE,1,Human Resources,26,AGENCY WORKERS,1050,05/05/2017,586135,1657.68 ,Revenue,BUZZ PEOPLE RECRUITMENT LTD,07908887
Fareham Borough Council,http://statistics.data.gov.uk/id/local-authority/24UE,ENVIRONMENT AND REGULATORY SER,BV03,STREET CLEANSING,BV03F,DEPARTMENT OF OPERATIONS,SUPPLIES & SERVICES,4,Street & Traffic Management,35,SUB-CONTRACTORS CHARGES,4432,19/05/2017,586136,985.00 ,Revenue,R & W  TRAFFIC MANAGEMENT,B2113166
Fareham Borough Council,http://statistics.data.gov.uk/id/local-authority/24UE,OTHER REVENUE ACCOUNTS,RV,CONTRACT SERVICES D.S.O.,RV14,DEPARTMENT OF OPERATIONS,SUPPLIES & SERVICES,4,Street & Traffic Management,35,SUB-CONTRACTORS CHARGES,4432,19/05/2017,586136,97.50 ,Revenue,R & W  TRAFFIC MANAGEMENT,B2113166
Fareham Borough Council,http://statistics.data.gov.uk/id/local-authority/24UE,HOUSING REVENUE ACCOUNT,BV06,RESPONSIVE & VOID MAINTENANCE,5901,DEPARTMENT OF OPERATIONS,PREMISES RELATED EXPENDITURE,2,Social Community Care Supplies & Services,32,R & M OF BUILDINGS,2000,05/05/2017,586138,790.00 ,Revenue,LIFTECH SYSTEMS (SE) LTD,04834054
Fareham Borough Council,http://statistics.data.gov.uk/id/local-authority/24UE,HOUSING REVENUE ACCOUNT,BV06,RESPONSIVE & VOID MAINTENANCE,5901,DEPARTMENT OF OPERATIONS,PREMISES RELATED EXPENDITURE,2,Social Community Care Supplies & Services,32,R & M OF BUILDINGS,2000,05/05/2017,586138,300.00 ,Revenue,LIFTECH SYSTEMS (SE) LTD,04834054
Fareham Borough Council,http://statistics.data.gov.uk/id/local-authority/24UE,CAPITAL PROGRAMME - HOUSING SERVICES,CP,HOUSE RENOVATION GRANTS,CP11,CAPITAL - HOUSE RENOVATION GRANTS,SUPPLIES & SERVICES,4,Unclassified,,GRANTS AND SUBSCRIPTIONS,4700,05/05/2017,586144,3400.00 ,Capital,D & T BATHROOMS,
Fareham Borough Council,http://statistics.data.gov.uk/id/local-authority/24UE,CAPITAL PROGRAMME - HOUSING SERVICES,CP,RENOVATION OF L.A. DWELLINGS,CP10,CAPITAL - IMPROVEMENTS WORK/MODERNIS'N,PREMISES RELATED EXPENDITURE,2,Building Construction Materials,10,R & M OF BUILDINGS,2000,05/05/2017,586147,2104.00 ,Capital,SOUTH COAST WINDOW SOLUTIONS LTD,9553687
Fareham Borough Council,http://statistics.data.gov.uk/id/local-authority/24UE,OTHER REVENUE ACCOUNTS,RV,NON WORK GROUP HOLDING ACCOUNT,RV18,DEPT of FINANCE and RESOURCES,SUPPLIES & SERVICES,4,Catering,11,FURNITURE & EQUIP-SERV. AGRMT.,4042,05/05/2017,586148,58.55 ,Revenue,MARS DRINKS UK LIMITED,06649987
Fareham Borough Council,http://statistics.data.gov.uk/id/local-authority/24UE,OTHER REVENUE ACCOUNTS,RV,NON WORK GROUP HOLDING ACCOUNT,RV18,DEPT of FINANCE and RESOURCES,SUPPLIES & SERVICES,4,Catering,11,FURNITURE & EQUIP-SERV. AGRMT.,4042,05/05/2017,586148,640.22 ,Revenue,MARS DRINKS UK LIMITED,06649987
Fareham Borough Council,http://statistics.data.gov.uk/id/local-authority/24UE,GENERAL FUND HOUSING,BV05,HOMELESSNESS,BV05F,DEPARTMENT OF OPERATIONS,SUPPLIES & SERVICES,4,Unclassified,,LOCAL ASSISTANCE PAYMENT,4727,05/05/2017,586149,1300.00 ,Revenue,redacted personal data,
Fareham Borough Council,http://statistics.data.gov.uk/id/local-authority/24UE,CORPORATE & DEMOCRATIC CORE,BV07A,DEMOCRATIC REP.& MANAGEMENT,BV07AA,DEPT of FINANCE and RESOURCES,TRANSPORT RELATED EXPENDITURE,3,Human Resources,26,PUBLIC TRANSPORT-CONF/SEMINAR,3310,05/05/2017,586153,239.70 ,Revenue,RSP RAIL TRAVEL ACCOUNT,03069042
Fareham Borough Council,http://statistics.data.gov.uk/id/local-authority/24UE,ENVIRONMENT AND REGULATORY SER,BV03,ENVIRONMENTAL HEALTH,BV03C,DEPT of STRATEGIC PLANNING and ENVIRONMENT,TRANSPORT RELATED EXPENDITURE,3,Human Resources,26,PUBLIC TRANSPORT-CONF/SEMINAR,3310,05/05/2017,586153,108.60 ,Revenue,RSP RAIL TRAVEL ACCOUNT,03069042
Fareham Borough Council,http://statistics.data.gov.uk/id/local-authority/24UE,PLANNING SERVICES,BV13,DEVELOPMENT CONTROL,BV13B,DEPT of STRATEGIC PLANNING and ENVIRONMENT,TRANSPORT RELATED EXPENDITURE,3,Human Resources,26,PUBLIC TRANSPORT-CONF/SEMINAR,3310,05/05/2017,586153,122.10 ,Revenue,RSP RAIL TRAVEL ACCOUNT,03069042
Fareham Borough Council,http://statistics.data.gov.uk/id/local-authority/24UE,PLANNING SERVICES,BV13,PLANNING POLICY,BV13C,DEPT of STRATEGIC PLANNING and ENVIRONMENT,TRANSPORT RELATED EXPENDITURE,3,Human Resources,26,PUBLIC TRANSPORT-ROUTINE,3300,05/05/2017,586153,5.70 ,Revenue,RSP RAIL TRAVEL ACCOUNT,03069042
Fareham Borough Council,http://statistics.data.gov.uk/id/local-authority/24UE,PLANNING SERVICES,BV13,PLANNING POLICY,BV13C,DEPT of STRATEGIC PLANNING and ENVIRONMENT,TRANSPORT RELATED EXPENDITURE,3,Human Resources,26,PUBLIC TRANSPORT-CONF/SEMINAR,3310,05/05/2017,586153,118.00 ,Revenue,RSP RAIL TRAVEL ACCOUNT,03069042
Fareham Borough Council,http://statistics.data.gov.uk/id/local-authority/24UE,OTHER REVENUE ACCOUNTS,RV,NON WORK GROUP HOLDING ACCOUNT,RV18,DEPT of FINANCE and RESOURCES,TRANSPORT RELATED EXPENDITURE,3,Human Resources,26,PUBLIC TRANSPORT-CONF/SEMINAR,3310,05/05/2017,586153,10.80 ,Revenue,RSP RAIL TRAVEL ACCOUNT,03069042
Fareham Borough Council,http://statistics.data.gov.uk/id/local-authority/24UE,OTHER REVENUE ACCOUNTS,RV,NON WORK GROUP HOLDING ACCOUNT,RV18,DEPT of FINANCE and RESOURCES,TRANSPORT RELATED EXPENDITURE,3,Human Resources,26,PUBLIC TRANSPORT-CONF/SEMINAR,3310,05/05/2017,586153,78.90 ,Revenue,RSP RAIL TRAVEL ACCOUNT,03069042
Fareham Borough Council,http://statistics.data.gov.uk/id/local-authority/24UE,OTHER REVENUE ACCOUNTS,RV,NON WORK GROUP HOLDING ACCOUNT,RV18,DEPT of FINANCE and RESOURCES,TRANSPORT RELATED EXPENDITURE,3,Human Resources,26,PUBLIC TRANSPORT-CONF/SEMINAR,3310,05/05/2017,586153,9.00 ,Revenue,RSP RAIL TRAVEL ACCOUNT,03069042
Fareham Borough Council,http://statistics.data.gov.uk/id/local-authority/24UE,CAPITAL PROGRAMME - OTHER SERVICES,CP,SCHEMES FUNDED FROM BALANCES,CP20,CAPITAL - SCHEMES FUNDED FROM BALANCES,SUPPLIES & SERVICES,4,Consultancy,15,CONSULTANTS FEES,4401,05/05/2017,586160,3200.00 ,Capital,CONCRETE & CORROSION CONSULTANCY PRACTICE,3590312
Fareham Borough Council,http://statistics.data.gov.uk/id/local-authority/24UE,FINANCING & INVESTMENT I&E,BVB02,INVESTMENT PROPERTIES,BVB170,DEPT of FINANCE and RESOURCES,PREMISES RELATED EXPENDITURE,2,Building Construction Materials,10,R & M OF BUILDINGS,2000,05/05/2017,586161,3662.07 ,Revenue,DAYS WINDOW & DOOR SERVICES LTD,4225154
Fareham Borough Council,http://statistics.data.gov.uk/id/local-authority/24UE,FINANCING & INVESTMENT I&E,BVB02,INVESTMENT PROPERTIES,BVB170,DEPT of FINANCE and RESOURCES,SUPPLIES & SERVICES,4,Consultancy,15,CONSULTANTS FEES,4401,05/05/2017,586162,1468.53 ,Revenue,HELLIER LANGSTON LTD,5013122
Fareham Borough Council,http://statistics.data.gov.uk/id/local-authority/24UE,CAPITAL PROGRAMME - OTHER SERVICES,CP,NEW SCHEMES,CP23,CAPITAL - NEW SCHEMES,SUPPLIES & SERVICES,4,Consultancy,15,CONSULTANTS FEES,4401,05/05/2017,586163,7600.00 ,Capital,TNG CONSULTING ENGINEERS LIMITED,03988764
Fareham Borough Council,http://statistics.data.gov.uk/id/local-authority/24UE,FINANCING & INVESTMENT I&E,BVB02,INVESTMENT PROPERTIES,BVB170,DEPT of FINANCE and RESOURCES,PREMISES RELATED EXPENDITURE,2,"Works - Construction, Repair & Maintenance",39,R & M OF BUILDINGS,2000,05/05/2017,586167,705.32 ,Revenue,REDS BUILDERS LIMITED,4387646
Fareham Borough Council,http://statistics.data.gov.uk/id/local-authority/24UE,CAPITAL PROGRAMME - OTHER SERVICES,CP,SCHEMES FUNDED FROM BALANCES,CP20,CAPITAL - SCHEMES FUNDED FROM BALANCES,PREMISES RELATED EXPENDITURE,2,"Works - Construction, Repair & Maintenance",39,R&M OF GROUNDS,2060,05/05/2017,586169,10443.15 ,Capital,REDS BUILDERS LIMITED,4387646
Fareham Borough Council,http://statistics.data.gov.uk/id/local-authority/24UE,FINANCING & INVESTMENT I&E,BVB02,INVESTMENT PROPERTIES,BVB170,DEPT of FINANCE and RESOURCES,PREMISES RELATED EXPENDITURE,2,"Works - Construction, Repair & Maintenance",39,R & M OF BUILDINGS,2000,05/05/2017,586170,4019.82 ,Revenue,REDS BUILDERS LIMITED,4387646
Fareham Borough Council,http://statistics.data.gov.uk/id/local-authority/24UE,FINANCING & INVESTMENT I&E,BVB02,INVESTMENT PROPERTIES,BVB170,DEPT of FINANCE and RESOURCES,PREMISES RELATED EXPENDITURE,2,"Works - Construction, Repair & Maintenance",39,R & M OF BUILDINGS,2000,05/05/2017,586171,1586.31 ,Revenue,REDS BUILDERS LIMITED,4387646
Fareham Borough Council,http://statistics.data.gov.uk/id/local-authority/24UE,CULTURAL AND RELATED SERVICES,BV09,CULTURE AND HERITAGE,BV09A,DEPARTMENT OF OPERATIONS,PREMISES RELATED EXPENDITURE,2,"Works - Construction, Repair & Maintenance",39,R & M OF BUILDINGS,2000,05/05/2017,586172,515.40 ,Revenue,REDS BUILDERS LIMITED,4387646
Fareham Borough Council,http://statistics.data.gov.uk/id/local-authority/24UE,CULTURAL AND RELATED SERVICES,BV09,RECREATION AND SPORT,BV09B,DEPARTMENT OF OPERATIONS,PREMISES RELATED EXPENDITURE,2,"Works - Construction, Repair & Maintenance",39,R&M OF HARDSTANDING AREAS,2065,05/05/2017,586174,3298.36 ,Revenue,REDS BUILDERS LIMITED,4387646
Fareham Borough Council,http://statistics.data.gov.uk/id/local-authority/24UE,OTHER REVENUE ACCOUNTS,RV,NON WORK GROUP HOLDING ACCOUNT,RV18,DEPT of FINANCE and RESOURCES,SUPPLIES & SERVICES,4,Environmental Services,18,TIPPING / INCINERATOR FEES,4425,05/05/2017,586179,680.96 ,Revenue,ZEBRA WASTE SKIP HIRE,01506942
Fareham Borough Council,http://statistics.data.gov.uk/id/local-authority/24UE,CAPITAL PROGRAMME - OTHER SERVICES,CP,SCHEMES FUNDED FROM BALANCES,CP20,CAPITAL - SCHEMES FUNDED FROM BALANCES,PREMISES RELATED EXPENDITURE,2,Unclassified,,R & M OF FENCING,2061,05/05/2017,586183,226500.00 ,Capital,HMRC,
Fareham Borough Council,http://statistics.data.gov.uk/id/local-authority/24UE,OTHER REVENUE ACCOUNTS,RV,NON WORK GROUP HOLDING ACCOUNT,RV18,DEPT of FINANCE and RESOURCES,SUPPLIES & SERVICES,4,Mail Services�,30,POSTAGES,4500,05/05/2017,586189,3000.00 ,Revenue,NEOPOST LIMITED,02658324
Fareham Borough Council,http://statistics.data.gov.uk/id/local-authority/24UE,CAPITAL PROGRAMME - HOUSING SERVICES,CP,HOUSE RENOVATION GRANTS,CP11,CAPITAL - HOUSE RENOVATION GRANTS,SUPPLIES & SERVICES,4,Unclassified,,GRANTS AND SUBSCRIPTIONS,4700,05/05/2017,586190,3613.00 ,Capital,L DEVINE & CO,
Fareham Borough Council,http://statistics.data.gov.uk/id/local-authority/24UE,GENERAL FUND HOUSING,BV05,WELFARE SERVICES,BV05L,DEPARTMENT OF OPERATIONS,PREMISES RELATED EXPENDITURE,2,Local/Central Government,98,RENTS - CHICHESTER RENTALS,2210,05/05/2017,586192,1525.51 ,Revenue,CHICHESTER DISTRICT COUNCIL,
Fareham Borough Council,http://statistics.data.gov.uk/id/local-authority/24UE,PLANNING SERVICES,BV13,DEVELOPMENT CONTROL,BV13B,DEPT of STRATEGIC PLANNING and ENVIRONMENT,SUPPLIES & SERVICES,4,Consultancy,15,CONSULTANTS FEES,4401,05/05/2017,586193,765.00 ,Revenue,redacted personal data,
Fareham Borough Council,http://statistics.data.gov.uk/id/local-authority/24UE,GENERAL FUND HOUSING,BV05,HOUSING BENEFIT ADMINISTRATION,BV05H,DEPARTMENT OF OPERATIONS,EMPLOYEES RELATED EXPENDITURE,1,Human Resources,26,AGENCY WORKERS,1050,19/05/2017,586200,2565.67 ,Revenue,EDEN BROWN SYNERGY,3643845
Fareham Borough Council,http://statistics.data.gov.uk/id/local-authority/24UE,CENTRAL SERVICES,BV07,CENTRAL SERVICES TO THE PUBLIC,BV07B,DEPARTMENT OF OPERATIONS,EMPLOYEES RELATED EXPENDITURE,1,Human Resources,26,AGENCY WORKERS,1050,19/05/2017,586200,165.09 ,Revenue,EDEN BROWN SYNERGY,3643845
Fareham Borough Council,http://statistics.data.gov.uk/id/local-authority/24UE,CENTRAL SERVICES,BV07,CENTRAL SERVICES TO THE PUBLIC,BV07B,DEPARTMENT OF OPERATIONS,EMPLOYEES RELATED EXPENDITURE,1,Human Resources,26,AGENCY WORKERS,1050,19/05/2017,586200,1381.52 ,Revenue,EDEN BROWN SYNERGY,3643845
Fareham Borough Council,http://statistics.data.gov.uk/id/local-authority/24UE,CENTRAL SERVICES,BV07,CENTRAL SERVICES TO THE PUBLIC,BV07B,DEPARTMENT OF OPERATIONS,EMPLOYEES RELATED EXPENDITURE,1,Human Resources,26,AGENCY WORKERS,1050,19/05/2017,586200,3136.66 ,Revenue,EDEN BROWN SYNERGY,3643845
Fareham Borough Council,http://statistics.data.gov.uk/id/local-authority/24UE,CORPORATE & DEMOCRATIC CORE,BV07A,DEMOCRATIC REP.& MANAGEMENT,BV07AA,DEPT of FINANCE and RESOURCES,SUPPLIES & SERVICES,4,Information Communication Technology,27,INTERNET RENTAL ALLOWANCE,4627,05/05/2017,586206,162.99 ,Revenue,BT PLC,1800000
Fareham Borough Council,http://statistics.data.gov.uk/id/local-authority/24UE,ENVIRONMENT AND REGULATORY SER,BV03,ENVIRONMENTAL HEALTH,BV03C,DEPARTMENT OF OPERATIONS,SUPPLIES & SERVICES,4,Information Communication Technology,27,FURNITURE & EQUIPT. MAINT.,4030,05/05/2017,586206,23.70 ,Revenue,BT PLC,1800000
Fareham Borough Council,http://statistics.data.gov.uk/id/local-authority/24UE,CENTRAL SERVICES,BV07,CENTRAL SERVICES TO THE PUBLIC,BV07B,DEPARTMENT OF OPERATIONS,SUPPLIES & SERVICES,4,Information Communication Technology,27,TELEPHONES,4510,05/05/2017,586206,86.64 ,Revenue,BT PLC,1800000
Fareham Borough Council,http://statistics.data.gov.uk/id/local-authority/24UE,PLANNING SERVICES,BV13,ECONOMIC DEVELOPMENT,BV13E,DEPARTMENT OF OPERATIONS,SUPPLIES & SERVICES,4,Information Communication Technology,27,TELEPHONES,4510,05/05/2017,586206,23.70 ,Revenue,BT PLC,1800000
Fareham Borough Council,http://statistics.data.gov.uk/id/local-authority/24UE,CULTURAL AND RELATED SERVICES,BV09,CULTURE AND HERITAGE,BV09A,DEPARTMENT OF OPERATIONS,SUPPLIES & SERVICES,4,Information Communication Technology,27,TELEPHONES,4510,05/05/2017,586206,63.36 ,Revenue,BT PLC,1800000
Fareham Borough Council,http://statistics.data.gov.uk/id/local-authority/24UE,CULTURAL AND RELATED SERVICES,BV09,RECREATION AND SPORT,BV09B,DEPARTMENT OF OPERATIONS,SUPPLIES & SERVICES,4,Information Communication Technology,27,TELEPHONES,4510,05/05/2017,586206,35.68 ,Revenue,BT PLC,1800000
Fareham Borough Council,http://statistics.data.gov.uk/id/local-authority/24UE,HIGHWAYS ROADS AND TRANSPORT,BV12,PARKING SERVICES,BV12D,DEPARTMENT OF OPERATIONS,SUPPLIES & SERVICES,4,Information Communication Technology,27,TELEPHONES,4510,05/05/2017,586206,232.82 ,Revenue,BT PLC,1800000
Fareham Borough Council,http://statistics.data.gov.uk/id/local-authority/24UE,HOUSING REVENUE ACCOUNT,BV06,SHELTERED HOUSING SERVICE,5031,DEPARTMENT OF OPERATIONS,SUPPLIES & SERVICES,4,Information Communication Technology,27,TELEPHONES (WARDENS & COMM'L),4511,05/05/2017,586206,584.26 ,Revenue,BT PLC,1800000
Fareham Borough Council,http://statistics.data.gov.uk/id/local-authority/24UE,HOUSING REVENUE ACCOUNT,BV06,SHELTERED HOUSING SERVICE,5031,DEPARTMENT OF OPERATIONS,PREMISES RELATED EXPENDITURE,2,Information Communication Technology,27,R & M ALARM SPEECH SYSTEMS,2027,05/05/2017,586206,475.19 ,Revenue,BT PLC,1800000
Fareham Borough Council,http://statistics.data.gov.uk/id/local-authority/24UE,OTHER REVENUE ACCOUNTS,RV,NON WORK GROUP HOLDING ACCOUNT,RV18,DEPT of FINANCE and RESOURCES,SUPPLIES & SERVICES,4,Information Communication Technology,27,TELEPHONES,4510,05/05/2017,586206,23.70 ,Revenue,BT PLC,1800000
Fareham Borough Council,http://statistics.data.gov.uk/id/local-authority/24UE,OTHER REVENUE ACCOUNTS,RV,NON WORK GROUP HOLDING ACCOUNT,RV18,DEPT of FINANCE and RESOURCES,SUPPLIES & SERVICES,4,Information Communication Technology,27,TELEPHONES,4510,05/05/2017,586206,2957.54 ,Revenue,BT PLC,1800000
Fareham Borough Council,http://statistics.data.gov.uk/id/local-authority/24UE,CAPITAL PROGRAMME - OTHER SERVICES,CP,DSO VEHICLES & PLANT PURCHASES,CP23,CAPITAL - DSO VEHICLES & PLANT PURCHASES,TRANSPORT RELATED EXPENDITURE,3,Vehicle Management,38,PURCHASE OF VEHICLES,3000,05/05/2017,586209,12250.00 ,Capital,NORTON COMMERCIALS LTD,08516595
Fareham Borough Council,http://statistics.data.gov.uk/id/local-authority/24UE,CAPITAL PROGRAMME - OTHER SERVICES,CP,DSO VEHICLES & PLANT PURCHASES,CP23,CAPITAL - DSO VEHICLES & PLANT PURCHASES,TRANSPORT RELATED EXPENDITURE,3,Vehicle Management,38,PURCHASE OF VEHICLES,3000,05/05/2017,586210,13250.00 ,Capital,NORTON COMMERCIALS LTD,08516595
Fareham Borough Council,http://statistics.data.gov.uk/id/local-authority/24UE,OTHER REVENUE ACCOUNTS,RV,NON WORK GROUP HOLDING ACCOUNT,RV18,DEPARTMENT OF OPERATIONS,SUPPLIES & SERVICES,4,Local/Central Government,98,GRANTS AND SUBSCRIPTIONS,4700,05/05/2017,586211,600.00 ,Revenue,HAMPSHIRE COUNTY COUNCIL,
Fareham Borough Council,http://statistics.data.gov.uk/id/local-authority/24UE,CAPITAL PROGRAMME - HOUSING SERVICES,CP,RENOVATION OF L.A. DWELLINGS,CP10,CAPITAL - IMPROVEMENTS WORK/MODERNIS'N,SUPPLIES & SERVICES,4,Building Construction Materials,10,MATERIALS (OPERATIONAL),4007,05/05/2017,586216,1784.77 ,Capital,SPECIALIST BUILDING DISTRIBUTION LTD,2599297
Fareham Borough Council,http://statistics.data.gov.uk/id/local-authority/24UE,CAPITAL PROGRAMME - HOUSING SERVICES,CP,RENOVATION OF L.A. DWELLINGS,CP10,CAPITAL - IMPROVEMENTS WORK/MODERNIS'N,SUPPLIES & SERVICES,4,Building Construction Materials,10,MATERIALS (OPERATIONAL),4007,05/05/2017,586217,835.91 ,Capital,SPECIALIST BUILDING DISTRIBUTION LTD,2599297
Fareham Borough Council,http://statistics.data.gov.uk/id/local-authority/24UE,CAPITAL PROGRAMME - HOUSING SERVICES,CP,RENOVATION OF L.A. DWELLINGS,CP10,CAPITAL - IMPROVEMENTS WORK/MODERNIS'N,SUPPLIES & SERVICES,4,Building Construction Materials,10,MATERIALS (OPERATIONAL),4007,05/05/2017,586219,537.58 ,Capital,SPECIALIST BUILDING DISTRIBUTION LTD,2599297
Fareham Borough Council,http://statistics.data.gov.uk/id/local-authority/24UE,CAPITAL PROGRAMME - HOUSING SERVICES,CP,RENOVATION OF L.A. DWELLINGS,CP10,CAPITAL - IMPROVEMENTS WORK/MODERNIS'N,SUPPLIES & SERVICES,4,Building Construction Materials,10,MATERIALS (OPERATIONAL),4007,05/05/2017,586223,946.96 ,Capital,SPECIALIST BUILDING DISTRIBUTION LTD,2599297
Fareham Borough Council,http://statistics.data.gov.uk/id/local-authority/24UE,CAPITAL PROGRAMME - HOUSING SERVICES,CP,RENOVATION OF L.A. DWELLINGS,CP10,CAPITAL - IMPROVEMENTS WORK/MODERNIS'N,SUPPLIES & SERVICES,4,Building Construction Materials,10,MATERIALS (OPERATIONAL),4007,05/05/2017,586224,1407.26 ,Capital,SPECIALIST BUILDING DISTRIBUTION LTD,2599297
Fareham Borough Council,http://statistics.data.gov.uk/id/local-authority/24UE,CAPITAL PROGRAMME - HOUSING SERVICES,CP,RENOVATION OF L.A. DWELLINGS,CP10,CAPITAL - IMPROVEMENTS WORK/MODERNIS'N,SUPPLIES & SERVICES,4,Building Construction Materials,10,MATERIALS (OPERATIONAL),4007,05/05/2017,586225,1919.23 ,Capital,SPECIALIST BUILDING DISTRIBUTION LTD,2599297
Fareham Borough Council,http://statistics.data.gov.uk/id/local-authority/24UE,CAPITAL PROGRAMME - HOUSING SERVICES,CP,RENOVATION OF L.A. DWELLINGS,CP10,CAPITAL - IMPROVEMENTS WORK/MODERNIS'N,SUPPLIES & SERVICES,4,Building Construction Materials,10,MATERIALS (OPERATIONAL),4007,05/05/2017,586226,802.06 ,Capital,SPECIALIST BUILDING DISTRIBUTION LTD,2599297
Fareham Borough Council,http://statistics.data.gov.uk/id/local-authority/24UE,CAPITAL PROGRAMME - HOUSING SERVICES,CP,RENOVATION OF L.A. DWELLINGS,CP10,CAPITAL - IMPROVEMENTS WORK/MODERNIS'N,SUPPLIES & SERVICES,4,Building Construction Materials,10,MATERIALS (OPERATIONAL),4007,05/05/2017,586227,1906.63 ,Capital,SPECIALIST BUILDING DISTRIBUTION LTD,2599297
Fareham Borough Council,http://statistics.data.gov.uk/id/local-authority/24UE,CAPITAL PROGRAMME - HOUSING SERVICES,CP,RENOVATION OF L.A. DWELLINGS,CP10,CAPITAL - IMPROVEMENTS WORK/MODERNIS'N,SUPPLIES & SERVICES,4,Building Construction Materials,10,MATERIALS (OPERATIONAL),4007,05/05/2017,586228,773.99 ,Capital,SPECIALIST BUILDING DISTRIBUTION LTD,2599297
Fareham Borough Council,http://statistics.data.gov.uk/id/local-authority/24UE,CORPORATE & DEMOCRATIC CORE,BV07A,DEMOCRATIC REP.& MANAGEMENT,BV07AA,DEPT of FINANCE and RESOURCES,SUPPLIES & SERVICES,4,Information Communication Technology,27,SOFTWARE LICENCES,4530,12/05/2017,586263,7010.00 ,Revenue,MODERN MINDSET LTD,02208130
Fareham Borough Council,http://statistics.data.gov.uk/id/local-authority/24UE,CAPITAL PROGRAMME - HOUSING SERVICES,CP,HOUSE RENOVATION GRANTS,CP11,CAPITAL - HOUSE RENOVATION GRANTS,SUPPLIES & SERVICES,4,Unclassified,,GRANTS AND SUBSCRIPTIONS,4700,05/05/2017,586266,1009.75 ,Capital,WINDOW CONSULTANCY SOUTHERN LTD,
Fareham Borough Council,http://statistics.data.gov.uk/id/local-authority/24UE,BALANCE SHEET,BS,BAL. SHEET - COLLECTION FUND,BS1,BAL. SHEET - COLLECTION FUND,PERSONAL ACCOUNTS,BS210,Local/Central Government,98,NNDR POOL - PAYMENTS,P140,05/05/2017,586271,1644559.00 ,Balance Sheet,DCLG (Dept. for Communities & Local Govt.),
Fareham Borough Council,http://statistics.data.gov.uk/id/local-authority/24UE,BALANCE SHEET,BS,BAL. SHEET - COLLECTION FUND,BS1,BAL. SHEET - COLLECTION FUND,PERSONAL ACCOUNTS,BS210,Local/Central Government,98,NNDR POOL - PAYMENTS,P140,05/05/2017,586271,175989.00 ,Balance Sheet,DCLG (Dept. for Communities & Local Govt.),
Fareham Borough Council,http://statistics.data.gov.uk/id/local-authority/24UE,BALANCE SHEET,BS,BAL. SHEET - COLLECTION FUND,BS1,BAL. SHEET - COLLECTION FUND,PERSONAL ACCOUNTS,BS210,Local/Central Government,98,NNDR POOL - RECEIPTS,P139,05/05/2017,586271,-173954.00 ,Balance Sheet,DCLG (Dept. for Communities & Local Govt.),
Fareham Borough Council,http://statistics.data.gov.uk/id/local-authority/24UE,BALANCE SHEET,BS,BAL. SHEET - COLLECTION FUND,BS1,BAL. SHEET - COLLECTION FUND,PERSONAL ACCOUNTS,BS210,Local/Central Government,98,NNDR POOL - PAYMENTS,P140,05/05/2017,586271,91050.00 ,Balance Sheet,DCLG (Dept. for Communities & Local Govt.),
Fareham Borough Council,http://statistics.data.gov.uk/id/local-authority/24UE,OTHER REVENUE ACCOUNTS,RV,NON WORK GROUP HOLDING ACCOUNT,RV18,DEPT of FINANCE and RESOURCES,PREMISES RELATED EXPENDITURE,2,Building Construction Materials,10,R & M OF BUILDINGS,2000,05/05/2017,586273,990.00 ,Revenue,BI-FOLD ROLFE LTD,02516031
Fareham Borough Council,http://statistics.data.gov.uk/id/local-authority/24UE,CAPITAL PROGRAMME - HOUSING SERVICES,CP,RENOVATION OF L.A. DWELLINGS,CP10,CAPITAL - IMPROVEMENTS WORK/MODERNIS'N,PREMISES RELATED EXPENDITURE,2,"Works - Construction, Repair & Maintenance",39,VOID COSTS - NOT RECHARGEABLE,2011,05/05/2017,586275,13469.00 ,Capital,JPC PROPERTY SERVICES LTD,4704385
Fareham Borough Council,http://statistics.data.gov.uk/id/local-authority/24UE,CAPITAL PROGRAMME - HOUSING SERVICES,CP,RENOVATION OF L.A. DWELLINGS,CP10,CAPITAL - IMPROVEMENTS WORK/MODERNIS'N,PREMISES RELATED EXPENDITURE,2,"Works - Construction, Repair & Maintenance",39,VOID COSTS - NOT RECHARGEABLE,2011,05/05/2017,586275,11863.60 ,Capital,JPC PROPERTY SERVICES LTD,4704385
Fareham Borough Council,http://statistics.data.gov.uk/id/local-authority/24UE,CAPITAL PROGRAMME - HOUSING SERVICES,CP,RENOVATION OF L.A. DWELLINGS,CP10,CAPITAL - IMPROVEMENTS WORK/MODERNIS'N,PREMISES RELATED EXPENDITURE,2,"Works - Construction, Repair & Maintenance",39,VOID COSTS - NOT RECHARGEABLE,2011,05/05/2017,586275,4757.65 ,Capital,JPC PROPERTY SERVICES LTD,4704385
Fareham Borough Council,http://statistics.data.gov.uk/id/local-authority/24UE,CAPITAL PROGRAMME - HOUSING SERVICES,CP,RENOVATION OF L.A. DWELLINGS,CP10,CAPITAL - IMPROVEMENTS WORK/MODERNIS'N,PREMISES RELATED EXPENDITURE,2,"Works - Construction, Repair & Maintenance",39,VOID COSTS - NOT RECHARGEABLE,2011,05/05/2017,586275,1712.80 ,Capital,JPC PROPERTY SERVICES LTD,4704385
Fareham Borough Council,http://statistics.data.gov.uk/id/local-authority/24UE,HOUSING REVENUE ACCOUNT,BV06,RESPONSIVE & VOID MAINTENANCE,5901,DEPARTMENT OF OPERATIONS,PREMISES RELATED EXPENDITURE,2,"Works - Construction, Repair & Maintenance",39,VOID COSTS - NOT RECHARGEABLE,2011,05/05/2017,586275,24516.55 ,Revenue,JPC PROPERTY SERVICES LTD,4704385
Fareham Borough Council,http://statistics.data.gov.uk/id/local-authority/24UE,BALANCE SHEET,BS,BAL. SHEET - GENERAL FUND,BS1,BAL. SHEET - GENERAL FUND,TOTAL ASSETS LESS LIABILITIES,BS100,Financial Services,20,INSURANCE SUSPENSE ACCOUNT,E608,19/05/2017,586289,18340.32 ,Balance Sheet,UNUM LIMITED,983768
Fareham Borough Council,http://statistics.data.gov.uk/id/local-authority/24UE,OTHER REVENUE ACCOUNTS,RV,CONTRACT SERVICES D.S.O.,RV14,DEPARTMENT OF OPERATIONS,SUPPLIES & SERVICES,4,Sports & Playground Equipment & Maintenance,33,MATERIALS (OPERATIONAL),4007,05/05/2017,586327,75.60 ,Revenue,HARROD UK LIMITED,00875029
Fareham Borough Council,http://statistics.data.gov.uk/id/local-authority/24UE,OTHER REVENUE ACCOUNTS,RV,CONTRACT SERVICES D.S.O.,RV14,DEPARTMENT OF OPERATIONS,SUPPLIES & SERVICES,4,Sports & Playground Equipment & Maintenance,33,MATERIALS (OPERATIONAL),4007,05/05/2017,586327,477.00 ,Revenue,HARROD UK LIMITED,00875029
Fareham Borough Council,http://statistics.data.gov.uk/id/local-authority/24UE,OTHER REVENUE ACCOUNTS,RV,CONTRACT SERVICES D.S.O.,RV14,DEPARTMENT OF OPERATIONS,SUPPLIES & SERVICES,4,Sports & Playground Equipment & Maintenance,33,MATERIALS (OPERATIONAL),4007,05/05/2017,586327,66.40 ,Revenue,HARROD UK LIMITED,00875029
Fareham Borough Council,http://statistics.data.gov.uk/id/local-authority/24UE,OTHER REVENUE ACCOUNTS,RV,CONTRACT SERVICES D.S.O.,RV14,DEPARTMENT OF OPERATIONS,SUPPLIES & SERVICES,4,Sports & Playground Equipment & Maintenance,33,MATERIALS (OPERATIONAL),4007,05/05/2017,586327,50.40 ,Revenue,HARROD UK LIMITED,00875029
Fareham Borough Council,http://statistics.data.gov.uk/id/local-authority/24UE,OTHER REVENUE ACCOUNTS,RV,CONTRACT SERVICES D.S.O.,RV14,DEPARTMENT OF OPERATIONS,SUPPLIES & SERVICES,4,Sports & Playground Equipment & Maintenance,33,MATERIALS (OPERATIONAL),4007,05/05/2017,586327,40.00 ,Revenue,HARROD UK LIMITED,00875029
Fareham Borough Council,http://statistics.data.gov.uk/id/local-authority/24UE,HOUSING REVENUE ACCOUNT,BV06,RESPONSIVE & VOID MAINTENANCE,5901,DEPARTMENT OF OPERATIONS,PREMISES RELATED EXPENDITURE,2,Environmental Services,18,SPECIAL REFUSE COLLECTIONS,2750,05/05/2017,586328,1745.10 ,Revenue,VEOLIA ES HAMPSHIRE LIMITED,02817856
Fareham Borough Council,http://statistics.data.gov.uk/id/local-authority/24UE,OTHER REVENUE ACCOUNTS,RV,CONTRACT SERVICES D.S.O.,RV14,DEPARTMENT OF OPERATIONS,SUPPLIES & SERVICES,4,Environmental Services,18,TIPPING / INCINERATOR FEES,4425,05/05/2017,586329,2154.60 ,Revenue,VEOLIA ES HAMPSHIRE LIMITED,02817856
Fareham Borough Council,http://statistics.data.gov.uk/id/local-authority/24UE,ENVIRONMENT AND REGULATORY SER,BV03,STREET CLEANSING,BV03F,DEPARTMENT OF OPERATIONS,SUPPLIES & SERVICES,4,Environmental Services,18,MATERIALS (OPERATIONAL),4007,05/05/2017,586330,496.25 ,Revenue,L&S WASTE MANAGEMENT LTD,03475329
Fareham Borough Council,http://statistics.data.gov.uk/id/local-authority/24UE,OTHER REVENUE ACCOUNTS,RV,CONTRACT SERVICES D.S.O.,RV14,DEPARTMENT OF OPERATIONS,SUPPLIES & SERVICES,4,Environmental Services,18,MATERIALS (OPERATIONAL),4007,05/05/2017,586330,99.25 ,Revenue,L&S WASTE MANAGEMENT LTD,03475329
Fareham Borough Council,http://statistics.data.gov.uk/id/local-authority/24UE,CULTURAL AND RELATED SERVICES,BV09,RECREATION AND SPORT,BV09B,DEPARTMENT OF OPERATIONS,SUPPLIES & SERVICES,4,Horticultural,24,FURNITURE & EQUIPT. PURCHASES,4000,12/05/2017,586334,580.00 ,Revenue,A B J TRANSPORT LTD,04490953
Fareham Borough Council,http://statistics.data.gov.uk/id/local-authority/24UE,BALANCE SHEET,BS,BAL. SHEET - D.S.O.,BS1,BAL. SHEET - D.S.O.,TOTAL ASSETS LESS LIABILITIES,BS100,Vehicle Management,38,MATERIALS SUSPENSE ACCOUNT (VE,A016,19/05/2017,586335,2346.00 ,Balance Sheet,WESSEX PETROLEUM LTD,01024472
Fareham Borough Council,http://statistics.data.gov.uk/id/local-authority/24UE,CENTRAL SERVICES,BV07,CENTRAL SERVICES TO THE PUBLIC,BV07B,DEPT of FINANCE and RESOURCES,SUPPLIES & SERVICES,4,Facilities & Management Services,19,EXTERNAL PRINTING,4310,05/05/2017,586337,23731.26 ,Revenue,PRINT IMAGE FACILITIES LLP,OC330921
Fareham Borough Council,http://statistics.data.gov.uk/id/local-authority/24UE,CULTURAL AND RELATED SERVICES,BV09,CULTURE AND HERITAGE,BV09A,DEPARTMENT OF OPERATIONS,SUPPLIES & SERVICES,4,Art & Leisure Services,29,PERFORMING RIGHTS SOCIETY,4717,05/05/2017,586343,3954.26 ,Revenue,PERFORMING RIGHT SOCIETY LTD,00134396
Fareham Borough Council,http://statistics.data.gov.uk/id/local-authority/24UE,CULTURAL AND RELATED SERVICES,BV09,CULTURE AND HERITAGE,BV09A,DEPARTMENT OF OPERATIONS,SUPPLIES & SERVICES,4,Art & Leisure Services,29,OTHER EXPENDITURE,4940,05/05/2017,586344,1176.00 ,Revenue,KATASTROPHIES,
Fareham Borough Council,http://statistics.data.gov.uk/id/local-authority/24UE,CAPITAL PROGRAMME - OTHER SERVICES,CP,SCHEMES FUNDED FROM BALANCES,CP20,CAPITAL - SCHEMES FUNDED FROM BALANCES,SUPPLIES & SERVICES,4,Consultancy,15,CONSULTANTS FEES,4401,05/05/2017,586347,1850.00 ,Capital,BAQUS GROUP PLC,6013357
Fareham Borough Council,http://statistics.data.gov.uk/id/local-authority/24UE,CENTRAL SERVICES,BV07,CENTRAL SERVICES TO THE PUBLIC,BV07B,DEPARTMENT OF OPERATIONS,SUPPLIES & SERVICES,4,Information Communication Technology,27,SOFTWARE LICENCES,4530,12/05/2017,586348,1195.00 ,Revenue,OCELLA,02837294
Fareham Borough Council,http://statistics.data.gov.uk/id/local-authority/24UE,OTHER REVENUE ACCOUNTS,RV,NON WORK GROUP HOLDING ACCOUNT,RV18,DEPT of FINANCE and RESOURCES,EMPLOYEES RELATED EXPENDITURE,1,Financial Services,20,AGENCY WORKERS,1050,05/05/2017,586350,600.00 ,Revenue,COMPLETE CASH MANAGEMENT LIMITED,08067814
Fareham Borough Council,http://statistics.data.gov.uk/id/local-authority/24UE,OTHER REVENUE ACCOUNTS,RV,NON WORK GROUP HOLDING ACCOUNT,RV18,DEPT of FINANCE and RESOURCES,EMPLOYEES RELATED EXPENDITURE,1,Financial Services,20,AGENCY WORKERS,1050,05/05/2017,586350,777.00 ,Revenue,COMPLETE CASH MANAGEMENT LIMITED,08067814
Fareham Borough Council,http://statistics.data.gov.uk/id/local-authority/24UE,OTHER REVENUE ACCOUNTS,RV,NON WORK GROUP HOLDING ACCOUNT,RV18,DEPT of FINANCE and RESOURCES,SUPPLIES & SERVICES,4,Consultancy,15,TRAINING FOR EMPLOYEES,4612,05/05/2017,586353,700.00 ,Revenue,STEVE VALE - HR CONSULTANT,
Fareham Borough Council,http://statistics.data.gov.uk/id/local-authority/24UE,ENVIRONMENT AND REGULATORY SER,BV03,STREET CLEANSING,BV03F,DEPARTMENT OF OPERATIONS,TRANSPORT RELATED EXPENDITURE,3,Vehicle Management,38,ROUTINE REPAIRS VEHICLES/PLANT,3010,05/05/2017,586362,1150.00 ,Revenue,SWEEPER HIRE,
Fareham Borough Council,http://statistics.data.gov.uk/id/local-authority/24UE,CAPITAL PROGRAMME - OTHER SERVICES,CP,DSO VEHICLES & PLANT PURCHASES,CP23,CAPITAL - DSO VEHICLES & PLANT PURCHASES,TRANSPORT RELATED EXPENDITURE,3,Horticultural,24,PURCHASE OF VEHICLES,3000,12/05/2017,586363,4083.00 ,Capital,KINGSWORTHY GARDEN MACHINERY LTD,5321124
Fareham Borough Council,http://statistics.data.gov.uk/id/local-authority/24UE,CAPITAL PROGRAMME - OTHER SERVICES,CP,DSO VEHICLES & PLANT PURCHASES,CP23,CAPITAL - DSO VEHICLES & PLANT PURCHASES,TRANSPORT RELATED EXPENDITURE,3,Horticultural,24,PURCHASE OF VEHICLES,3000,12/05/2017,586363,4083.00 ,Capital,KINGSWORTHY GARDEN MACHINERY LTD,5321124
Fareham Borough Council,http://statistics.data.gov.uk/id/local-authority/24UE,CAPITAL PROGRAMME - OTHER SERVICES,CP,DSO VEHICLES & PLANT PURCHASES,CP23,CAPITAL - DSO VEHICLES & PLANT PURCHASES,TRANSPORT RELATED EXPENDITURE,3,Horticultural,24,PURCHASE OF VEHICLES,3000,12/05/2017,586363,2120.00 ,Capital,KINGSWORTHY GARDEN MACHINERY LTD,5321124
Fareham Borough Council,http://statistics.data.gov.uk/id/local-authority/24UE,CAPITAL PROGRAMME - OTHER SERVICES,CP,DSO VEHICLES & PLANT PURCHASES,CP23,CAPITAL - DSO VEHICLES & PLANT PURCHASES,TRANSPORT RELATED EXPENDITURE,3,Horticultural,24,PURCHASE OF VEHICLES,3000,12/05/2017,586363,430.00 ,Capital,KINGSWORTHY GARDEN MACHINERY LTD,5321124
Fareham Borough Council,http://statistics.data.gov.uk/id/local-authority/24UE,CAPITAL PROGRAMME - OTHER SERVICES,CP,DSO VEHICLES & PLANT PURCHASES,CP23,CAPITAL - DSO VEHICLES & PLANT PURCHASES,TRANSPORT RELATED EXPENDITURE,3,Horticultural,24,PURCHASE OF VEHICLES,3000,12/05/2017,586363,5400.00 ,Capital,KINGSWORTHY GARDEN MACHINERY LTD,5321124
Fareham Borough Council,http://statistics.data.gov.uk/id/local-authority/24UE,HOUSING REVENUE ACCOUNT,BV06,RESPONSIVE & VOID MAINTENANCE,5901,DEPARTMENT OF OPERATIONS,PREMISES RELATED EXPENDITURE,2,"Works - Construction, Repair & Maintenance",39,VOID COSTS - NOT RECHARGEABLE,2011,05/05/2017,586367,5550.45 ,Revenue,BEAVEN GROUNDWORKS,
Fareham Borough Council,http://statistics.data.gov.uk/id/local-authority/24UE,HOUSING REVENUE ACCOUNT,BV06,RESPONSIVE & VOID MAINTENANCE,5901,DEPARTMENT OF OPERATIONS,PREMISES RELATED EXPENDITURE,2,"Works - Construction, Repair & Maintenance",39,VOID COSTS - NOT RECHARGEABLE,2011,05/05/2017,586367,2637.55 ,Revenue,BEAVEN GROUNDWORKS,
Fareham Borough Council,http://statistics.data.gov.uk/id/local-authority/24UE,BALANCE SHEET,BS,FMS BAL.SHEET & CONTROL ACCT.,BS1,FMS BAL.SHEET & CONTROL ACCT.,CONTROL ACCOUNTS,C001,Financial Services,20,GOVT PROCURE CARD-CASH CONTROL,C114,12/05/2017,586569,27373.59 ,Balance Sheet,NATWEST COMMERCIAL CARDS,929027
Fareham Borough Council,http://statistics.data.gov.uk/id/local-authority/24UE,BALANCE SHEET,BS,FMS BAL.SHEET & CONTROL ACCT.,BS1,FMS BAL.SHEET & CONTROL ACCT.,CONTROL ACCOUNTS,C001,Financial Services,20,GOVT PROCURE CARD-CASH CONTROL,C114,12/05/2017,586570,1499.64 ,Balance Sheet,NATWEST COMMERCIAL CARDS,929027
Fareham Borough Council,http://statistics.data.gov.uk/id/local-authority/24UE,FINANCING & INVESTMENT I&E,BVB02,INVESTMENT PROPERTIES,BVB170,DEPT of FINANCE and RESOURCES,PREMISES RELATED EXPENDITURE,2,"Works - Construction, Repair & Maintenance",39,R & M OF BUILDINGS,2000,19/05/2017,586572,46.22 ,Revenue,BCG ELECTRICAL SERVICES LIMITED,5097428
Fareham Borough Council,http://statistics.data.gov.uk/id/local-authority/24UE,CULTURAL AND RELATED SERVICES,BV09,RECREATION AND SPORT,BV09B,DEPARTMENT OF OPERATIONS,PREMISES RELATED EXPENDITURE,2,"Works - Construction, Repair & Maintenance",39,R & M OF BUILDINGS,2000,19/05/2017,586572,300.50 ,Revenue,BCG ELECTRICAL SERVICES LIMITED,5097428
Fareham Borough Council,http://statistics.data.gov.uk/id/local-authority/24UE,CULTURAL AND RELATED SERVICES,BV09,RECREATION AND SPORT,BV09B,DEPARTMENT OF OPERATIONS,PREMISES RELATED EXPENDITURE,2,"Works - Construction, Repair & Maintenance",39,R & M OF BUILDINGS,2000,19/05/2017,586572,390.16 ,Revenue,BCG ELECTRICAL SERVICES LIMITED,5097428
Fareham Borough Council,http://statistics.data.gov.uk/id/local-authority/24UE,HIGHWAYS ROADS AND TRANSPORT,BV12,PARKING SERVICES,BV12D,DEPARTMENT OF OPERATIONS,PREMISES RELATED EXPENDITURE,2,"Works - Construction, Repair & Maintenance",39,R & M OF BUILDINGS,2000,19/05/2017,586572,90.00 ,Revenue,BCG ELECTRICAL SERVICES LIMITED,5097428
Fareham Borough Council,http://statistics.data.gov.uk/id/local-authority/24UE,ENVIRONMENT AND REGULATORY SER,BV03,ENVIRONMENTAL HEALTH,BV03C,DEPARTMENT OF OPERATIONS,PREMISES RELATED EXPENDITURE,2,"Works - Construction, Repair & Maintenance",39,R & M OF BUILDINGS,2000,19/05/2017,586572,112.48 ,Revenue,BCG ELECTRICAL SERVICES LIMITED,5097428
Fareham Borough Council,http://statistics.data.gov.uk/id/local-authority/24UE,HOUSING REVENUE ACCOUNT,BV06,RESPONSIVE & VOID MAINTENANCE,5901,DEPARTMENT OF OPERATIONS,PREMISES RELATED EXPENDITURE,2,"Works - Construction, Repair & Maintenance",39,GENERAL REPAIRS,2018,19/05/2017,586572,2678.47 ,Revenue,BCG ELECTRICAL SERVICES LIMITED,5097428
Fareham Borough Council,http://statistics.data.gov.uk/id/local-authority/24UE,OTHER REVENUE ACCOUNTS,RV,NON WORK GROUP HOLDING ACCOUNT,RV18,DEPT of FINANCE and RESOURCES,PREMISES RELATED EXPENDITURE,2,"Works - Construction, Repair & Maintenance",39,R & M OF BUILDINGS,2000,19/05/2017,586572,701.70 ,Revenue,BCG ELECTRICAL SERVICES LIMITED,5097428
Fareham Borough Council,http://statistics.data.gov.uk/id/local-authority/24UE,OTHER REVENUE ACCOUNTS,RV,NON WORK GROUP HOLDING ACCOUNT,RV18,DEPT of FINANCE and RESOURCES,PREMISES RELATED EXPENDITURE,2,"Works - Construction, Repair & Maintenance",39,R & M OF BUILDINGS,2000,19/05/2017,586572,90.00 ,Revenue,BCG ELECTRICAL SERVICES LIMITED,5097428
Fareham Borough Council,http://statistics.data.gov.uk/id/local-authority/24UE,BALANCE SHEET,BS,FMS BAL.SHEET & CONTROL ACCT.,BS1,BAL. SHEET - SUSPENSE ACCOUNT,FMS REJECTION SUSPENSE,BS242,"Works - Construction, Repair & Maintenance",39,FMS CODING SUSPENSE ACCOUNT,S990,19/05/2017,586572,182.40 ,Balance Sheet,BCG ELECTRICAL SERVICES LIMITED,5097428
Fareham Borough Council,http://statistics.data.gov.uk/id/local-authority/24UE,HIGHWAYS ROADS AND TRANSPORT,BV12,PUBLIC TRANSPORT,BV12E,DEPT of FINANCE and RESOURCES,SUPPLIES & SERVICES,4,Local/Central Government,98,GRANT TO DIAL-A-RIDE,4705,12/05/2017,586573,14135.55 ,Revenue,HAMPSHIRE COUNTY COUNCIL,
Fareham Borough Council,http://statistics.data.gov.uk/id/local-authority/24UE,CAPITAL PROGRAMME - OTHER SERVICES,CP,SCHEMES FUNDED FROM BALANCES,CP20,CAPITAL - SCHEMES FUNDED FROM BALANCES,SUPPLIES & SERVICES,4,Legal Services,28,LEGAL FEES,4400,19/05/2017,586586,500.00 ,Capital,PINSENT MASONS,OC333653
Fareham Borough Council,http://statistics.data.gov.uk/id/local-authority/24UE,CAPITAL PROGRAMME - HOUSING SERVICES,CP,RENOVATION OF L.A. DWELLINGS,CP10,CAPITAL - IMPROVEMENTS WORK/MODERNIS'N,PREMISES RELATED EXPENDITURE,2,Facilities & Management Services,19,R & M OF BUILDINGS,2000,12/05/2017,586598,3529.53 ,Capital,S A C LTD,01566628
Fareham Borough Council,http://statistics.data.gov.uk/id/local-authority/24UE,CAPITAL PROGRAMME - OTHER SERVICES,CP,SCHEMES FUNDED FROM BALANCES,CP20,CAPITAL - SCHEMES FUNDED FROM BALANCES,SUPPLIES & SERVICES,4,Consultancy,15,CONSULTANTS FEES,4401,12/05/2017,586602,1050.00 ,Capital,OPUS INTERNATIONAL CONSULTANTS (UK) LTD,02847568
Fareham Borough Council,http://statistics.data.gov.uk/id/local-authority/24UE,FINANCING & INVESTMENT I&E,BVB02,INVESTMENT PROPERTIES,BVB170,DEPT of FINANCE and RESOURCES,PREMISES RELATED EXPENDITURE,2,"Works - Construction, Repair & Maintenance",39,R & M OF BUILDINGS,2000,12/05/2017,586607,1667.10 ,Revenue,REDS BUILDERS LIMITED,4387646
Fareham Borough Council,http://statistics.data.gov.uk/id/local-authority/24UE,OTHER REVENUE ACCOUNTS,RV,NON WORK GROUP HOLDING ACCOUNT,RV18,DEPT of FINANCE and RESOURCES,PREMISES RELATED EXPENDITURE,2,Facilities & Management Services,19,R & M OF BUILDINGS,2000,12/05/2017,586608,1474.18 ,Revenue,S A C LTD,01566628
Fareham Borough Council,http://statistics.data.gov.uk/id/local-authority/24UE,OTHER REVENUE ACCOUNTS,RV,NON WORK GROUP HOLDING ACCOUNT,RV18,DEPT of FINANCE and RESOURCES,PREMISES RELATED EXPENDITURE,2,Facilities & Management Services,19,R & M OF BUILDINGS,2000,12/05/2017,586609,3120.39 ,Revenue,S A C LTD,01566628
Fareham Borough Council,http://statistics.data.gov.uk/id/local-authority/24UE,OTHER REVENUE ACCOUNTS,RV,NON WORK GROUP HOLDING ACCOUNT,RV18,DEPT of FINANCE and RESOURCES,PREMISES RELATED EXPENDITURE,2,Facilities & Management Services,19,R & M OF BUILDINGS,2000,12/05/2017,586610,1235.84 ,Revenue,S A C LTD,01566628
Fareham Borough Council,http://statistics.data.gov.uk/id/local-authority/24UE,OTHER REVENUE ACCOUNTS,RV,NON WORK GROUP HOLDING ACCOUNT,RV18,DEPT of FINANCE and RESOURCES,SUPPLIES & SERVICES,4,Environmental Services,18,TIPPING / INCINERATOR FEES,4425,12/05/2017,586612,680.96 ,Revenue,ZEBRA WASTE SKIP HIRE,01506942
Fareham Borough Council,http://statistics.data.gov.uk/id/local-authority/24UE,CENTRAL SERVICES,BV07,CENTRAL SERVICES TO THE PUBLIC,BV07B,DEPT of FINANCE and RESOURCES,PREMISES RELATED EXPENDITURE,2,Unclassified,98,RENTS - GENERAL PAYABLE,2200,12/05/2017,586614,500.00 ,Revenue,FAREHAM BAPTIST NEW LIFE CHURCH,
Fareham Borough Council,http://statistics.data.gov.uk/id/local-authority/24UE,OTHER REVENUE ACCOUNTS,RV,NON WORK GROUP HOLDING ACCOUNT,RV18,DEPT of FINANCE and RESOURCES,SUPPLIES & SERVICES,4,Information Communication Technology,27,FURNITURE & EQUIPT. MAINT.,4030,12/05/2017,586620,520.30 ,Revenue,BLUE CHIP DATA SYSTEMS LTD,02708840
Fareham Borough Council,http://statistics.data.gov.uk/id/local-authority/24UE,OTHER REVENUE ACCOUNTS,RV,NON WORK GROUP HOLDING ACCOUNT,RV18,DEPT of FINANCE and RESOURCES,SUPPLIES & SERVICES,4,Information Communication Technology,27,FURNITURE & EQUIPT. MAINT.,4030,12/05/2017,586621,553.22 ,Revenue,BLUE CHIP DATA SYSTEMS LTD,02708840
Fareham Borough Council,http://statistics.data.gov.uk/id/local-authority/24UE,ENVIRONMENT AND REGULATORY SER,BV03,WASTE COLLECTION,BV03G,DEPARTMENT OF OPERATIONS,EMPLOYEES RELATED EXPENDITURE,1,Human Resources,26,AGENCY WORKERS,1050,25/05/2017,586622,597.60 ,Revenue,THE BEST CONNECTION GROUP LTD,2600534
Fareham Borough Council,http://statistics.data.gov.uk/id/local-authority/24UE,ENVIRONMENT AND REGULATORY SER,BV03,STREET CLEANSING,BV03F,DEPARTMENT OF OPERATIONS,TRANSPORT RELATED EXPENDITURE,3,Vehicle Management,38,TYRES,3022,19/05/2017,586625,308.48 ,Revenue,ATS EUROMASTER LIMITED,04303731
Fareham Borough Council,http://statistics.data.gov.uk/id/local-authority/24UE,ENVIRONMENT AND REGULATORY SER,BV03,STREET CLEANSING,BV03F,DEPARTMENT OF OPERATIONS,TRANSPORT RELATED EXPENDITURE,3,Vehicle Management,38,TYRES,3022,19/05/2017,586625,208.59 ,Revenue,ATS EUROMASTER LIMITED,04303731
Fareham Borough Council,http://statistics.data.gov.uk/id/local-authority/24UE,ENVIRONMENT AND REGULATORY SER,BV03,STREET CLEANSING,BV03F,DEPARTMENT OF OPERATIONS,TRANSPORT RELATED EXPENDITURE,3,Vehicle Management,38,TYRES,3022,19/05/2017,586625,288.79 ,Revenue,ATS EUROMASTER LIMITED,04303731
Fareham Borough Council,http://statistics.data.gov.uk/id/local-authority/24UE,HIGHWAYS ROADS AND TRANSPORT,BV12,PARKING SERVICES,BV12D,DEPARTMENT OF OPERATIONS,TRANSPORT RELATED EXPENDITURE,3,Vehicle Management,38,TYRES,3022,19/05/2017,586625,60.36 ,Revenue,ATS EUROMASTER LIMITED,04303731
Fareham Borough Council,http://statistics.data.gov.uk/id/local-authority/24UE,ENVIRONMENT AND REGULATORY SER,BV03,WASTE COLLECTION,BV03G,DEPARTMENT OF OPERATIONS,TRANSPORT RELATED EXPENDITURE,3,Vehicle Management,38,TYRES,3022,19/05/2017,586625,638.70 ,Revenue,ATS EUROMASTER LIMITED,04303731
Fareham Borough Council,http://statistics.data.gov.uk/id/local-authority/24UE,ENVIRONMENT AND REGULATORY SER,BV03,WASTE COLLECTION,BV03G,DEPARTMENT OF OPERATIONS,TRANSPORT RELATED EXPENDITURE,3,Vehicle Management,38,TYRES,3022,19/05/2017,586625,21.08 ,Revenue,ATS EUROMASTER LIMITED,04303731
Fareham Borough Council,http://statistics.data.gov.uk/id/local-authority/24UE,ENVIRONMENT AND REGULATORY SER,BV03,WASTE COLLECTION,BV03G,DEPARTMENT OF OPERATIONS,TRANSPORT RELATED EXPENDITURE,3,Vehicle Management,38,TYRES,3022,19/05/2017,586625,77.31 ,Revenue,ATS EUROMASTER LIMITED,04303731
Fareham Borough Council,http://statistics.data.gov.uk/id/local-authority/24UE,ENVIRONMENT AND REGULATORY SER,BV03,WASTE COLLECTION,BV03G,DEPARTMENT OF OPERATIONS,TRANSPORT RELATED EXPENDITURE,3,Vehicle Management,38,TYRES,3022,19/05/2017,586625,1248.56 ,Revenue,ATS EUROMASTER LIMITED,04303731
Fareham Borough Council,http://statistics.data.gov.uk/id/local-authority/24UE,ENVIRONMENT AND REGULATORY SER,BV03,WASTE COLLECTION,BV03G,DEPARTMENT OF OPERATIONS,TRANSPORT RELATED EXPENDITURE,3,Vehicle Management,38,TYRES,3022,19/05/2017,586625,388.21 ,Revenue,ATS EUROMASTER LIMITED,04303731
Fareham Borough Council,http://statistics.data.gov.uk/id/local-authority/24UE,ENVIRONMENT AND REGULATORY SER,BV03,WASTE COLLECTION,BV03G,DEPARTMENT OF OPERATIONS,TRANSPORT RELATED EXPENDITURE,3,Vehicle Management,38,TYRES,3022,19/05/2017,586625,267.03 ,Revenue,ATS EUROMASTER LIMITED,04303731
Fareham Borough Council,http://statistics.data.gov.uk/id/local-authority/24UE,ENVIRONMENT AND REGULATORY SER,BV03,WASTE COLLECTION,BV03G,DEPARTMENT OF OPERATIONS,TRANSPORT RELATED EXPENDITURE,3,Vehicle Management,38,TYRES,3022,19/05/2017,586625,225.44 ,Revenue,ATS EUROMASTER LIMITED,04303731
Fareham Borough Council,http://statistics.data.gov.uk/id/local-authority/24UE,OTHER REVENUE ACCOUNTS,RV,CONTRACT SERVICES D.S.O.,RV14,DEPARTMENT OF OPERATIONS,TRANSPORT RELATED EXPENDITURE,3,Vehicle Management,38,TYRES,3022,19/05/2017,586625,73.27 ,Revenue,ATS EUROMASTER LIMITED,04303731
Fareham Borough Council,http://statistics.data.gov.uk/id/local-authority/24UE,OTHER REVENUE ACCOUNTS,RV,CONTRACT SERVICES D.S.O.,RV14,DEPARTMENT OF OPERATIONS,TRANSPORT RELATED EXPENDITURE,3,Vehicle Management,38,TYRES,3022,19/05/2017,586625,73.27 ,Revenue,ATS EUROMASTER LIMITED,04303731
Fareham Borough Council,http://statistics.data.gov.uk/id/local-authority/24UE,OTHER REVENUE ACCOUNTS,RV,CONTRACT SERVICES D.S.O.,RV14,DEPARTMENT OF OPERATIONS,TRANSPORT RELATED EXPENDITURE,3,Vehicle Management,38,TYRES,3022,19/05/2017,586625,146.54 ,Revenue,ATS EUROMASTER LIMITED,04303731
Fareham Borough Council,http://statistics.data.gov.uk/id/local-authority/24UE,OTHER REVENUE ACCOUNTS,RV,CONTRACT SERVICES D.S.O.,RV14,DEPARTMENT OF OPERATIONS,TRANSPORT RELATED EXPENDITURE,3,Vehicle Management,38,TYRES,3022,19/05/2017,586625,73.27 ,Revenue,ATS EUROMASTER LIMITED,04303731
Fareham Borough Council,http://statistics.data.gov.uk/id/local-authority/24UE,OTHER REVENUE ACCOUNTS,RV,CONTRACT SERVICES D.S.O.,RV14,DEPARTMENT OF OPERATIONS,TRANSPORT RELATED EXPENDITURE,3,Vehicle Management,38,TYRES,3022,19/05/2017,586625,167.54 ,Revenue,ATS EUROMASTER LIMITED,04303731
Fareham Borough Council,http://statistics.data.gov.uk/id/local-authority/24UE,OTHER REVENUE ACCOUNTS,RV,CONTRACT SERVICES D.S.O.,RV14,DEPARTMENT OF OPERATIONS,TRANSPORT RELATED EXPENDITURE,3,Vehicle Management,38,TYRES,3022,19/05/2017,586625,90.90 ,Revenue,ATS EUROMASTER LIMITED,04303731
Fareham Borough Council,http://statistics.data.gov.uk/id/local-authority/24UE,OTHER REVENUE ACCOUNTS,RV,CONTRACT SERVICES D.S.O.,RV14,DEPARTMENT OF OPERATIONS,TRANSPORT RELATED EXPENDITURE,3,Vehicle Management,38,TYRES,3022,19/05/2017,586625,100.72 ,Revenue,ATS EUROMASTER LIMITED,04303731
Fareham Borough Council,http://statistics.data.gov.uk/id/local-authority/24UE,OTHER REVENUE ACCOUNTS,RV,CONTRACT SERVICES D.S.O.,RV14,DEPARTMENT OF OPERATIONS,TRANSPORT RELATED EXPENDITURE,3,Vehicle Management,38,TYRES,3022,19/05/2017,586625,100.72 ,Revenue,ATS EUROMASTER LIMITED,04303731
Fareham Borough Council,http://statistics.data.gov.uk/id/local-authority/24UE,OTHER REVENUE ACCOUNTS,RV,CONTRACT SERVICES D.S.O.,RV14,DEPARTMENT OF OPERATIONS,TRANSPORT RELATED EXPENDITURE,3,Vehicle Management,38,TYRES,3022,19/05/2017,586625,77.12 ,Revenue,ATS EUROMASTER LIMITED,04303731
Fareham Borough Council,http://statistics.data.gov.uk/id/local-authority/24UE,OTHER REVENUE ACCOUNTS,RV,CONTRACT SERVICES D.S.O.,RV14,DEPARTMENT OF OPERATIONS,TRANSPORT RELATED EXPENDITURE,3,Vehicle Management,38,TYRES,3022,19/05/2017,586625,15.00 ,Revenue,ATS EUROMASTER LIMITED,04303731
Fareham Borough Council,http://statistics.data.gov.uk/id/local-authority/24UE,OTHER REVENUE ACCOUNTS,RV,CONTRACT SERVICES D.S.O.,RV14,DEPARTMENT OF OPERATIONS,TRANSPORT RELATED EXPENDITURE,3,Vehicle Management,38,TYRES,3022,19/05/2017,586625,60.36 ,Revenue,ATS EUROMASTER LIMITED,04303731
Fareham Borough Council,http://statistics.data.gov.uk/id/local-authority/24UE,OTHER REVENUE ACCOUNTS,RV,CONTRACT SERVICES D.S.O.,RV14,DEPARTMENT OF OPERATIONS,TRANSPORT RELATED EXPENDITURE,3,Vehicle Management,38,TYRES,3022,19/05/2017,586625,61.28 ,Revenue,ATS EUROMASTER LIMITED,04303731
Fareham Borough Council,http://statistics.data.gov.uk/id/local-authority/24UE,OTHER REVENUE ACCOUNTS,RV,CONTRACT SERVICES D.S.O.,RV14,DEPARTMENT OF OPERATIONS,TRANSPORT RELATED EXPENDITURE,3,Vehicle Management,38,TYRES,3022,19/05/2017,586625,30.64 ,Revenue,ATS EUROMASTER LIMITED,04303731
Fareham Borough Council,http://statistics.data.gov.uk/id/local-authority/24UE,ENVIRONMENT AND REGULATORY SER,BV03,COAST PROTECTION,BV03B,DEPT of STRATEGIC PLANNING and ENVIRONMENT,SUPPLIES & SERVICES,4,Local/Central Government,98,GRANTS AND SUBSCRIPTIONS,4700,12/05/2017,586626,1111.00 ,Revenue,HAMPSHIRE COUNTY COUNCIL,
Fareham Borough Council,http://statistics.data.gov.uk/id/local-authority/24UE,HIGHWAYS ROADS AND TRANSPORT,BV12,HIGHWAYS ROADS ROUTINE,BV12B,DEPARTMENT OF OPERATIONS,SUPPLIES & SERVICES,4,Highway Equipment & Materials�,23,FURNITURE & EQUIPT. MAINT.,4030,19/05/2017,586627,1328.00 ,Revenue,SIGNWAY SUPPLIES,01450039
Fareham Borough Council,http://statistics.data.gov.uk/id/local-authority/24UE,CULTURAL AND RELATED SERVICES,BV09,RECREATION AND SPORT,BV09B,DEPARTMENT OF OPERATIONS,SUPPLIES & SERVICES,4,Highway Equipment & Materials�,23,FURNITURE & EQUIPT. PURCHASES,4000,19/05/2017,586628,2489.00 ,Revenue,SIGNWAY SUPPLIES,01450039
Fareham Borough Council,http://statistics.data.gov.uk/id/local-authority/24UE,GENERAL FUND HOUSING,BV05,HOUSING ADVICE,BV05C,DEPARTMENT OF OPERATIONS,SUPPLIES & SERVICES,4,Information Communication Technology,27,MOBILE TELEPHONES,4514,19/05/2017,586636,74.80 ,Revenue,VODAFONE LIMITED,01471587
Fareham Borough Council,http://statistics.data.gov.uk/id/local-authority/24UE,GENERAL FUND HOUSING,BV05,HOUSING ADVICE,BV05C,DEPARTMENT OF OPERATIONS,SUPPLIES & SERVICES,4,Information Communication Technology,27,MOBILE TELEPHONES,4514,19/05/2017,586636,11.02 ,Revenue,VODAFONE LIMITED,01471587
Fareham Borough Council,http://statistics.data.gov.uk/id/local-authority/24UE,OTHER REVENUE ACCOUNTS,RV,NON WORK GROUP HOLDING ACCOUNT,RV18,DEPT of FINANCE and RESOURCES,SUPPLIES & SERVICES,4,Information Communication Technology,27,MOBILE TELEPHONES,4514,19/05/2017,586636,12812.57 ,Revenue,VODAFONE LIMITED,01471587
Fareham Borough Council,http://statistics.data.gov.uk/id/local-authority/24UE,HOUSING REVENUE ACCOUNT,BV06,RESPONSIVE & VOID MAINTENANCE,5901,DEPARTMENT OF OPERATIONS,SUPPLIES & SERVICES,4,Building Construction Materials,10,MATERIALS (OPERATIONAL),4007,12/05/2017,586655,191.34 ,Revenue,CITY ELECTRICAL FACTORS LTD,00336408
Fareham Borough Council,http://statistics.data.gov.uk/id/local-authority/24UE,OTHER REVENUE ACCOUNTS,RV,CONTRACT SERVICES D.S.O.,RV14,DEPARTMENT OF OPERATIONS,SUPPLIES & SERVICES,4,Building Construction Materials,10,MATERIALS (OPERATIONAL),4007,12/05/2017,586655,992.14 ,Revenue,CITY ELECTRICAL FACTORS LTD,00336408
Fareham Borough Council,http://statistics.data.gov.uk/id/local-authority/24UE,OTHER REVENUE ACCOUNTS,RV,CONTRACT SERVICES D.S.O.,RV14,DEPARTMENT OF OPERATIONS,EMPLOYEES RELATED EXPENDITURE,1,Human Resources,26,AGENCY WORKERS,1050,12/05/2017,586656,826.69 ,Revenue,BUILDING RECRUITMENT COMPANY LTD,3750125
Fareham Borough Council,http://statistics.data.gov.uk/id/local-authority/24UE,HOUSING REVENUE ACCOUNT,BV06,RESPONSIVE & VOID MAINTENANCE,5901,DEPARTMENT OF OPERATIONS,PREMISES RELATED EXPENDITURE,2,"Works - Construction, Repair & Maintenance",39,GENERAL REPAIRS,2018,12/05/2017,586657,1805.00 ,Revenue,M & B DRAIN SERVICES,
Fareham Borough Council,http://statistics.data.gov.uk/id/local-authority/24UE,OTHER REVENUE ACCOUNTS,RV,NON WORK GROUP HOLDING ACCOUNT,RV18,DEPT of FINANCE and RESOURCES,PREMISES RELATED EXPENDITURE,2,"Works - Construction, Repair & Maintenance",39,GENERAL REPAIRS,2018,12/05/2017,586657,140.00 ,Revenue,M & B DRAIN SERVICES,
Fareham Borough Council,http://statistics.data.gov.uk/id/local-authority/24UE,OTHER REVENUE ACCOUNTS,RV,NON WORK GROUP HOLDING ACCOUNT,RV18,DEPT of FINANCE and RESOURCES,PREMISES RELATED EXPENDITURE,2,"Works - Construction, Repair & Maintenance",39,GENERAL REPAIRS,2018,12/05/2017,586657,80.00 ,Revenue,M & B DRAIN SERVICES,
Fareham Borough Council,http://statistics.data.gov.uk/id/local-authority/24UE,CAPITAL PROGRAMME - HOUSING SERVICES,CP,RENOVATION OF L.A. DWELLINGS,CP10,CAPITAL - IMPROVEMENTS WORK/MODERNIS'N,SUPPLIES & SERVICES,4,"Works - Construction, Repair & Maintenance",39,MATERIALS (OPERATIONAL),4007,12/05/2017,586666,673.21 ,Capital,HOWDENS JOINERY LTD,00526923
Fareham Borough Council,http://statistics.data.gov.uk/id/local-authority/24UE,HOUSING REVENUE ACCOUNT,BV06,RESPONSIVE & VOID MAINTENANCE,5901,DEPARTMENT OF OPERATIONS,PREMISES RELATED EXPENDITURE,2,"Works - Construction, Repair & Maintenance",39,GENERAL REPAIRS,2018,19/05/2017,586683,11703.79 ,Revenue,BCG ELECTRICAL SERVICES LIMITED,5097428
Fareham Borough Council,http://statistics.data.gov.uk/id/local-authority/24UE,ENVIRONMENT AND REGULATORY SER,BV03,CEMETERIES CREM & MORTUARY,BV03A,DEPARTMENT OF OPERATIONS,PREMISES RELATED EXPENDITURE,2,Utilities,37,ELECTRICITY,2120,12/05/2017,586685,36.08 ,Revenue,BRITISH GAS BUSINESS,03078711
Fareham Borough Council,http://statistics.data.gov.uk/id/local-authority/24UE,FINANCING & INVESTMENT I&E,BVB02,INVESTMENT PROPERTIES,BVB170,DEPT of FINANCE and RESOURCES,PREMISES RELATED EXPENDITURE,2,Utilities,37,ELECTRICITY,2120,12/05/2017,586685,320.65 ,Revenue,BRITISH GAS BUSINESS,03078711
Fareham Borough Council,http://statistics.data.gov.uk/id/local-authority/24UE,CULTURAL AND RELATED SERVICES,BV09,RECREATION AND SPORT,BV09B,DEPARTMENT OF OPERATIONS,PREMISES RELATED EXPENDITURE,2,Utilities,37,ELECTRICITY,2120,12/05/2017,586685,265.20 ,Revenue,BRITISH GAS BUSINESS,03078711
Fareham Borough Council,http://statistics.data.gov.uk/id/local-authority/24UE,CULTURAL AND RELATED SERVICES,BV09,RECREATION AND SPORT,BV09B,DEPARTMENT OF OPERATIONS,PREMISES RELATED EXPENDITURE,2,Utilities,37,ELECTRICITY,2120,12/05/2017,586685,581.53 ,Revenue,BRITISH GAS BUSINESS,03078711
Fareham Borough Council,http://statistics.data.gov.uk/id/local-authority/24UE,CULTURAL AND RELATED SERVICES,BV09,RECREATION AND SPORT,BV09B,DEPARTMENT OF OPERATIONS,PREMISES RELATED EXPENDITURE,2,Utilities,37,ELECTRICITY,2120,12/05/2017,586685,116.56 ,Revenue,BRITISH GAS BUSINESS,03078711
Fareham Borough Council,http://statistics.data.gov.uk/id/local-authority/24UE,HIGHWAYS ROADS AND TRANSPORT,BV12,PARKING SERVICES,BV12D,DEPARTMENT OF OPERATIONS,PREMISES RELATED EXPENDITURE,2,Utilities,37,ELECTRICITY,2120,12/05/2017,586685,3604.66 ,Revenue,BRITISH GAS BUSINESS,03078711
Fareham Borough Council,http://statistics.data.gov.uk/id/local-authority/24UE,ENVIRONMENT AND REGULATORY SER,BV03,ENVIRONMENTAL HEALTH,BV03C,DEPARTMENT OF OPERATIONS,PREMISES RELATED EXPENDITURE,2,Utilities,37,ELECTRICITY,2120,12/05/2017,586685,335.24 ,Revenue,BRITISH GAS BUSINESS,03078711
Fareham Borough Council,http://statistics.data.gov.uk/id/local-authority/24UE,HOUSING REVENUE ACCOUNT,BV06,COMMUNAL HEATING SERVICES,5025,DEPARTMENT OF OPERATIONS,PREMISES RELATED EXPENDITURE,2,Utilities,37,ELECTRICITY,2120,12/05/2017,586685,76.12 ,Revenue,BRITISH GAS BUSINESS,03078711
Fareham Borough Council,http://statistics.data.gov.uk/id/local-authority/24UE,HOUSING REVENUE ACCOUNT,BV06,COMMUNAL HEATING SERVICES,5025,DEPARTMENT OF OPERATIONS,PREMISES RELATED EXPENDITURE,2,Utilities,37,ELECTRICITY,2120,12/05/2017,586685,4141.81 ,Revenue,BRITISH GAS BUSINESS,03078711
Fareham Borough Council,http://statistics.data.gov.uk/id/local-authority/24UE,HOUSING REVENUE ACCOUNT,BV06,COMMUNAL LIGHTING,5026,DEPARTMENT OF OPERATIONS,PREMISES RELATED EXPENDITURE,2,Utilities,37,ELECTRICITY,2120,12/05/2017,586685,454.21 ,Revenue,BRITISH GAS BUSINESS,03078711
Fareham Borough Council,http://statistics.data.gov.uk/id/local-authority/24UE,HOUSING REVENUE ACCOUNT,BV06,COMMUNAL LIGHTING,5026,DEPARTMENT OF OPERATIONS,PREMISES RELATED EXPENDITURE,2,Utilities,37,ELECTRICITY,2120,12/05/2017,586685,721.41 ,Revenue,BRITISH GAS BUSINESS,03078711
Fareham Borough Council,http://statistics.data.gov.uk/id/local-authority/24UE,HOUSING REVENUE ACCOUNT,BV06,OTHER COMMUNAL SERVICES,5034,DEPARTMENT OF OPERATIONS,PREMISES RELATED EXPENDITURE,2,Utilities,37,AERIALS & TV OUTLETS,2540,12/05/2017,586685,24.91 ,Revenue,BRITISH GAS BUSINESS,03078711
Fareham Borough Council,http://statistics.data.gov.uk/id/local-authority/24UE,OTHER REVENUE ACCOUNTS,RV,NON WORK GROUP HOLDING ACCOUNT,RV18,DEPT of FINANCE and RESOURCES,PREMISES RELATED EXPENDITURE,2,Utilities,37,ELECTRICITY,2120,12/05/2017,586685,1251.90 ,Revenue,BRITISH GAS BUSINESS,03078711
Fareham Borough Council,http://statistics.data.gov.uk/id/local-authority/24UE,BALANCE SHEET,BS,BAL. SHEET - GENERAL FUND,BS1,BAL. SHEET - GENERAL FUND,PERSONAL ACCOUNTS,BS210,Vehicle Management,38,CAR LEASING ACCOUNT,P253,25/05/2017,586700,1479.27 ,Balance Sheet,HITACHI CAPITAL VEHICLE SOLUTIONS,1630491
Fareham Borough Council,http://statistics.data.gov.uk/id/local-authority/24UE,BALANCE SHEET,BS,BAL. SHEET - GENERAL FUND,BS1,BAL. SHEET - GENERAL FUND,PERSONAL ACCOUNTS,BS210,Vehicle Management,38,CAR LEASING ACCOUNT,P253,25/05/2017,586700,751.03 ,Balance Sheet,HITACHI CAPITAL VEHICLE SOLUTIONS,1630491
Fareham Borough Council,http://statistics.data.gov.uk/id/local-authority/24UE,CAPITAL PROGRAMME - OTHER SERVICES,CP,APPROVED PROGRAMME,CP24,CAPITAL - APPROVED PROGRAMME,SUPPLIES & SERVICES,4,"Works - Construction, Repair & Maintenance",39,FURNITURE & EQUIPT. PURCHASES,4000,12/05/2017,586704,1850.00 ,Capital,GM CONSTRUCTION SOUTH LIMITED,8040434
Fareham Borough Council,http://statistics.data.gov.uk/id/local-authority/24UE,CAPITAL PROGRAMME - OTHER SERVICES,CP,APPROVED PROGRAMME,CP24,CAPITAL - APPROVED PROGRAMME,SUPPLIES & SERVICES,4,"Works - Construction, Repair & Maintenance",39,FURNITURE & EQUIPT. PURCHASES,4000,12/05/2017,586704,450.00 ,Capital,GM CONSTRUCTION SOUTH LIMITED,8040434
Fareham Borough Council,http://statistics.data.gov.uk/id/local-authority/24UE,HOUSING REVENUE ACCOUNT,BV06,GENERAL ADMINISTRATION EXPENSE,5021,DEPARTMENT OF OPERATIONS,SUPPLIES & SERVICES,4,Human Resources,26,TENANT PARTICIPATION COSTS,4723,12/05/2017,586707,500.00 ,Revenue,RICHARD PARIS,
Fareham Borough Council,http://statistics.data.gov.uk/id/local-authority/24UE,HOUSING REVENUE ACCOUNT,BV06,GENERAL ADMINISTRATION EXPENSE,5021,DEPARTMENT OF OPERATIONS,SUPPLIES & SERVICES,4,Human Resources,26,TENANT PARTICIPATION COSTS,4723,12/05/2017,586707,64.00 ,Revenue,RICHARD PARIS,
Fareham Borough Council,http://statistics.data.gov.uk/id/local-authority/24UE,CORPORATE & DEMOCRATIC CORE,BV07A,CORPORATE MANAGEMENT,BV07AB,DEPT of FINANCE and RESOURCES,SUPPLIES & SERVICES,4,Financial Services,20,EXTERNAL AUDIT FEES,4419,19/05/2017,586716,14886.00 ,Revenue,ERNST & YOUNG LLP,OC300001
Fareham Borough Council,http://statistics.data.gov.uk/id/local-authority/24UE,CENTRAL SERVICES,BV07,CENTRAL SERVICES TO THE PUBLIC,BV07B,DEPT of FINANCE and RESOURCES,PREMISES RELATED EXPENDITURE,2,Unclassified,,RENTS - GENERAL PAYABLE,2200,12/05/2017,586717,560.50 ,Revenue,LOCKSWOOD COMMUNITY CENTRE,
Fareham Borough Council,http://statistics.data.gov.uk/id/local-authority/24UE,CAPITAL PROGRAMME - OTHER SERVICES,CP,SCHEMES FUNDED FROM BALANCES,CP20,CAPITAL - SCHEMES FUNDED FROM BALANCES,SUPPLIES & SERVICES,4,Consultancy,15,CONSULTANTS FEES,4401,12/05/2017,586718,650.00 ,Capital,COLIN MITCHELL CONSULTING,
Fareham Borough Council,http://statistics.data.gov.uk/id/local-authority/24UE,CAPITAL PROGRAMME - OTHER SERVICES,CP,SCHEMES FUNDED FROM BALANCES,CP20,CAPITAL - SCHEMES FUNDED FROM BALANCES,SUPPLIES & SERVICES,4,Consultancy,15,CONSULTANTS FEES,4401,12/05/2017,586718,2275.00 ,Capital,COLIN MITCHELL CONSULTING,
Fareham Borough Council,http://statistics.data.gov.uk/id/local-authority/24UE,CAPITAL PROGRAMME - OTHER SERVICES,CP,SCHEMES FUNDED FROM BALANCES,CP20,CAPITAL - SCHEMES FUNDED FROM BALANCES,SUPPLIES & SERVICES,4,Consultancy,15,CONSULTANTS FEES,4401,12/05/2017,586718,600.00 ,Capital,COLIN MITCHELL CONSULTING,
Fareham Borough Council,http://statistics.data.gov.uk/id/local-authority/24UE,CAPITAL PROGRAMME - OTHER SERVICES,CP,SCHEMES FUNDED FROM BALANCES,CP20,CAPITAL - SCHEMES FUNDED FROM BALANCES,SUPPLIES & SERVICES,4,Consultancy,15,CONSULTANTS FEES,4401,12/05/2017,586718,600.00 ,Capital,COLIN MITCHELL CONSULTING,
Fareham Borough Council,http://statistics.data.gov.uk/id/local-authority/24UE,CAPITAL PROGRAMME - OTHER SERVICES,CP,SCHEMES FUNDED FROM BALANCES,CP20,CAPITAL - SCHEMES FUNDED FROM BALANCES,SUPPLIES & SERVICES,4,Consultancy,15,CONSULTANTS FEES,4401,12/05/2017,586718,750.00 ,Capital,COLIN MITCHELL CONSULTING,
Fareham Borough Council,http://statistics.data.gov.uk/id/local-authority/24UE,CENTRAL SERVICES,BV07,CENTRAL SERVICES TO THE PUBLIC,BV07B,DEPARTMENT OF OPERATIONS,SUPPLIES & SERVICES,4,Consultancy,15,OTHER DEBT COLLECTION COSTS,4404,12/05/2017,586719,3850.00 ,Revenue,INTEC FOR BUSINESS LIMITED,03031768
Fareham Borough Council,http://statistics.data.gov.uk/id/local-authority/24UE,CORPORATE & DEMOCRATIC CORE,BV07A,DEMOCRATIC REP.& MANAGEMENT,BV07AA,DEPT of FINANCE and RESOURCES,SUPPLIES & SERVICES,4,Facilities & Management Services,19,PUBLICITY AND PROMOTION,4912,12/05/2017,586734,532.00 ,Revenue,BLACKMORE LTD,3260753
Fareham Borough Council,http://statistics.data.gov.uk/id/local-authority/24UE,CULTURAL AND RELATED SERVICES,BV09,CULTURE AND HERITAGE,BV09A,DEPARTMENT OF OPERATIONS,SUPPLIES & SERVICES,4,Catering,11,BAR PROVISIONS,4106,25/05/2017,586746,1597.18 ,Revenue,MOLSON COORS BREWING COMPANY (UK) LTD,26018
Fareham Borough Council,http://statistics.data.gov.uk/id/local-authority/24UE,CENTRAL SERVICES,BV07,CENTRAL SERVICES TO THE PUBLIC,BV07B,DEPT of FINANCE and RESOURCES,PREMISES RELATED EXPENDITURE,2,Unclassified,,RENTS - GENERAL PAYABLE,2200,12/05/2017,586747,555.46 ,Revenue,PORTCHESTER COMMUNITY CENTRE,8233813
Fareham Borough Council,http://statistics.data.gov.uk/id/local-authority/24UE,OTHER REVENUE ACCOUNTS,RV,CONTRACT SERVICES D.S.O.,RV14,DEPARTMENT OF OPERATIONS,EMPLOYEES RELATED EXPENDITURE,1,Human Resources,26,AGENCY WORKERS,1050,25/05/2017,586748,2888.18 ,Revenue,BUZZ PEOPLE RECRUITMENT LTD,07908887
Fareham Borough Council,http://statistics.data.gov.uk/id/local-authority/24UE,OTHER REVENUE ACCOUNTS,RV,CONTRACT SERVICES D.S.O.,RV14,DEPARTMENT OF OPERATIONS,EMPLOYEES RELATED EXPENDITURE,1,Human Resources,26,AGENCY WORKERS,1050,12/05/2017,586749,1840.58 ,Revenue,BUZZ PEOPLE RECRUITMENT LTD,07908887
Fareham Borough Council,http://statistics.data.gov.uk/id/local-authority/24UE,OTHER REVENUE ACCOUNTS,RV,CONTRACT SERVICES D.S.O.,RV14,DEPARTMENT OF OPERATIONS,EMPLOYEES RELATED EXPENDITURE,1,Human Resources,26,AGENCY WORKERS,1050,12/05/2017,586750,1602.51 ,Revenue,BUZZ PEOPLE RECRUITMENT LTD,07908887
Fareham Borough Council,http://statistics.data.gov.uk/id/local-authority/24UE,ENVIRONMENT AND REGULATORY SER,BV03,STREET CLEANSING,BV03F,DEPARTMENT OF OPERATIONS,EMPLOYEES RELATED EXPENDITURE,1,Human Resources,26,AGENCY WORKERS,1050,19/05/2017,586752,716.90 ,Revenue,BUZZ PEOPLE RECRUITMENT LTD,07908887
Fareham Borough Council,http://statistics.data.gov.uk/id/local-authority/24UE,OTHER REVENUE ACCOUNTS,RV,CONTRACT SERVICES D.S.O.,RV14,DEPARTMENT OF OPERATIONS,EMPLOYEES RELATED EXPENDITURE,1,Human Resources,26,AGENCY WORKERS,1050,19/05/2017,586752,4601.00 ,Revenue,BUZZ PEOPLE RECRUITMENT LTD,07908887
Fareham Borough Council,http://statistics.data.gov.uk/id/local-authority/24UE,CULTURAL AND RELATED SERVICES,BV09,RECREATION AND SPORT,BV09B,DEPARTMENT OF OPERATIONS,SUPPLIES & SERVICES,4,"Works - Construction, Repair & Maintenance",39,POP DEFAULT ACCOUNT,4XXX,12/05/2017,586768,2220.37 ,Revenue,A PURKISS BUILDING & DECORATING LTD,3561215
Fareham Borough Council,http://statistics.data.gov.uk/id/local-authority/24UE,CAPITAL PROGRAMME - HOUSING SERVICES,CP,RENOVATION OF L.A. DWELLINGS,CP10,CAPITAL - IMPROVEMENTS WORK/MODERNIS'N,PREMISES RELATED EXPENDITURE,2,"Works - Construction, Repair & Maintenance",39,GENERAL REPAIRS,2018,12/05/2017,586770,2030.92 ,Capital,FUTUREMOST LTD,2207885
Fareham Borough Council,http://statistics.data.gov.uk/id/local-authority/24UE,OTHER REVENUE ACCOUNTS,RV,CONTRACT SERVICES D.S.O.,RV14,DEPARTMENT OF OPERATIONS,EMPLOYEES RELATED EXPENDITURE,1,Human Resources,26,AGENCY WORKERS,1050,12/05/2017,586773,829.53 ,Revenue,BUILDING RECRUITMENT COMPANY LTD,3750125
Fareham Borough Council,http://statistics.data.gov.uk/id/local-authority/24UE,HOUSING REVENUE ACCOUNT,BV06,RESPONSIVE & VOID MAINTENANCE,5901,DEPARTMENT OF OPERATIONS,PREMISES RELATED EXPENDITURE,2,Building Construction Materials,10,GENERAL REPAIRS,2018,12/05/2017,586774,515.37 ,Revenue,BALMORAL FLOORING LTD,5196959
Fareham Borough Council,http://statistics.data.gov.uk/id/local-authority/24UE,HOUSING REVENUE ACCOUNT,BV06,RESPONSIVE & VOID MAINTENANCE,5901,DEPARTMENT OF OPERATIONS,PREMISES RELATED EXPENDITURE,2,Building Construction Materials,10,GENERAL REPAIRS,2018,12/05/2017,586774,-515.37 ,Revenue,BALMORAL FLOORING LTD,5196959
Fareham Borough Council,http://statistics.data.gov.uk/id/local-authority/24UE,HOUSING REVENUE ACCOUNT,BV06,RESPONSIVE & VOID MAINTENANCE,5901,DEPARTMENT OF OPERATIONS,PREMISES RELATED EXPENDITURE,2,Building Construction Materials,10,GENERAL REPAIRS,2018,12/05/2017,586774,233.53 ,Revenue,BALMORAL FLOORING LTD,5196959
Fareham Borough Council,http://statistics.data.gov.uk/id/local-authority/24UE,HOUSING REVENUE ACCOUNT,BV06,RESPONSIVE & VOID MAINTENANCE,5901,DEPARTMENT OF OPERATIONS,PREMISES RELATED EXPENDITURE,2,Building Construction Materials,10,GENERAL REPAIRS,2018,12/05/2017,586774,281.84 ,Revenue,BALMORAL FLOORING LTD,5196959
Fareham Borough Council,http://statistics.data.gov.uk/id/local-authority/24UE,CAPITAL PROGRAMME - HOUSING SERVICES,CP,RENOVATION OF L.A. DWELLINGS,CP10,CAPITAL - IMPROVEMENTS WORK/MODERNIS'N,PREMISES RELATED EXPENDITURE,2,"Works - Construction, Repair & Maintenance",39,VOID COSTS - NOT RECHARGEABLE,2011,12/05/2017,586777,10204.80 ,Capital,JPC PROPERTY SERVICES LTD,4704385
Fareham Borough Council,http://statistics.data.gov.uk/id/local-authority/24UE,CAPITAL PROGRAMME - HOUSING SERVICES,CP,RENOVATION OF L.A. DWELLINGS,CP10,CAPITAL - IMPROVEMENTS WORK/MODERNIS'N,PREMISES RELATED EXPENDITURE,2,"Works - Construction, Repair & Maintenance",39,VOID COSTS - NOT RECHARGEABLE,2011,12/05/2017,586777,6124.79 ,Capital,JPC PROPERTY SERVICES LTD,4704385
Fareham Borough Council,http://statistics.data.gov.uk/id/local-authority/24UE,CAPITAL PROGRAMME - HOUSING SERVICES,CP,RENOVATION OF L.A. DWELLINGS,CP10,CAPITAL - IMPROVEMENTS WORK/MODERNIS'N,PREMISES RELATED EXPENDITURE,2,"Works - Construction, Repair & Maintenance",39,VOID COSTS - NOT RECHARGEABLE,2011,12/05/2017,586777,17626.00 ,Capital,JPC PROPERTY SERVICES LTD,4704385
Fareham Borough Council,http://statistics.data.gov.uk/id/local-authority/24UE,CAPITAL PROGRAMME - HOUSING SERVICES,CP,RENOVATION OF L.A. DWELLINGS,CP10,CAPITAL - IMPROVEMENTS WORK/MODERNIS'N,PREMISES RELATED EXPENDITURE,2,"Works - Construction, Repair & Maintenance",39,VOID COSTS - NOT RECHARGEABLE,2011,12/05/2017,586777,4860.65 ,Capital,JPC PROPERTY SERVICES LTD,4704385
Fareham Borough Council,http://statistics.data.gov.uk/id/local-authority/24UE,CAPITAL PROGRAMME - HOUSING SERVICES,CP,RENOVATION OF L.A. DWELLINGS,CP10,CAPITAL - IMPROVEMENTS WORK/MODERNIS'N,PREMISES RELATED EXPENDITURE,2,"Works - Construction, Repair & Maintenance",39,MODIFICATIONS,2023,12/05/2017,586777,9694.50 ,Capital,JPC PROPERTY SERVICES LTD,4704385
Fareham Borough Council,http://statistics.data.gov.uk/id/local-authority/24UE,CAPITAL PROGRAMME - HOUSING SERVICES,CP,RENOVATION OF L.A. DWELLINGS,CP10,CAPITAL - IMPROVEMENTS WORK/MODERNIS'N,PREMISES RELATED EXPENDITURE,2,"Works - Construction, Repair & Maintenance",39,MODIFICATIONS,2023,12/05/2017,586777,19161.48 ,Capital,JPC PROPERTY SERVICES LTD,4704385
Fareham Borough Council,http://statistics.data.gov.uk/id/local-authority/24UE,HOUSING REVENUE ACCOUNT,BV06,RESPONSIVE & VOID MAINTENANCE,5901,DEPARTMENT OF OPERATIONS,PREMISES RELATED EXPENDITURE,2,"Works - Construction, Repair & Maintenance",39,VOID COSTS - NOT RECHARGEABLE,2011,12/05/2017,586777,35785.46 ,Revenue,JPC PROPERTY SERVICES LTD,4704385
Fareham Borough Council,http://statistics.data.gov.uk/id/local-authority/24UE,HOUSING REVENUE ACCOUNT,BV06,RESPONSIVE & VOID MAINTENANCE,5901,DEPARTMENT OF OPERATIONS,PREMISES RELATED EXPENDITURE,2,"Works - Construction, Repair & Maintenance",39,GENERAL REPAIRS,2018,12/05/2017,586777,910.50 ,Revenue,JPC PROPERTY SERVICES LTD,4704385
Fareham Borough Council,http://statistics.data.gov.uk/id/local-authority/24UE,GENERAL FUND HOUSING,BV05,HOMELESSNESS,BV05F,DEPARTMENT OF OPERATIONS,SUPPLIES & SERVICES,4,Unclassified,,LOCAL ASSISTANCE PAYMENT,4727,12/05/2017,586782,1638.71 ,Revenue,redacted personal data,
Fareham Borough Council,http://statistics.data.gov.uk/id/local-authority/24UE,GENERAL FUND HOUSING,BV05,HOMELESSNESS,BV05F,DEPARTMENT OF OPERATIONS,SUPPLIES & SERVICES,4,Unclassified,,LOCAL ASSISTANCE PAYMENT,4727,12/05/2017,586783,1296.00 ,Revenue,redacted personal data,
Fareham Borough Council,http://statistics.data.gov.uk/id/local-authority/24UE,GENERAL FUND HOUSING,BV05,HOMELESSNESS,BV05F,DEPARTMENT OF OPERATIONS,SUPPLIES & SERVICES,4,Unclassified,,LOCAL ASSISTANCE PAYMENT,4727,12/05/2017,586784,1340.00 ,Revenue,redacted personal data,
Fareham Borough Council,http://statistics.data.gov.uk/id/local-authority/24UE,CORPORATE & DEMOCRATIC CORE,BV07A,CORPORATE MANAGEMENT,BV07AB,DEPT of FINANCE and RESOURCES,SUPPLIES & SERVICES,4,Information Communication Technology,27,PUBLICITY AND PROMOTION,4912,12/05/2017,586791,26.65 ,Revenue,TIMICO LTD,04841830
Fareham Borough Council,http://statistics.data.gov.uk/id/local-authority/24UE,OTHER REVENUE ACCOUNTS,RV,NON WORK GROUP HOLDING ACCOUNT,RV18,DEPT of FINANCE and RESOURCES,SUPPLIES & SERVICES,4,Information Communication Technology,27,SOFTWARE LICENCES,4530,12/05/2017,586791,2151.83 ,Revenue,TIMICO LTD,04841830
Fareham Borough Council,http://statistics.data.gov.uk/id/local-authority/24UE,CULTURAL AND RELATED SERVICES,BV09,CULTURE AND HERITAGE,BV09A,DEPARTMENT OF OPERATIONS,SUPPLIES & SERVICES,4,Financial Services,20,CREDIT CARD CHARGES,4957,12/05/2017,586796,82.03 ,Revenue,WORLDPAY,07316500
Fareham Borough Council,http://statistics.data.gov.uk/id/local-authority/24UE,CULTURAL AND RELATED SERVICES,BV09,CULTURE AND HERITAGE,BV09A,DEPARTMENT OF OPERATIONS,SUPPLIES & SERVICES,4,Financial Services,20,CREDIT CARD CHARGES,4957,12/05/2017,586796,489.78 ,Revenue,WORLDPAY,07316500
Fareham Borough Council,http://statistics.data.gov.uk/id/local-authority/24UE,HOUSING REVENUE ACCOUNT,BV06,GENERAL ADMINISTRATION EXPENSE,5021,DEPARTMENT OF OPERATIONS,SUPPLIES & SERVICES,4,Unclassified,,LEGAL FEES,4400,12/05/2017,586801,567.00 ,Revenue,HMCTS,
Fareham Borough Council,http://statistics.data.gov.uk/id/local-authority/24UE,HOUSING REVENUE ACCOUNT,BV06,RESPONSIVE & VOID MAINTENANCE,5901,DEPARTMENT OF OPERATIONS,PREMISES RELATED EXPENDITURE,2,"Works - Construction, Repair & Maintenance",39,GENERAL REPAIRS,2018,19/05/2017,586802,12693.02 ,Revenue,BCG ELECTRICAL SERVICES LIMITED,5097428
Fareham Borough Council,http://statistics.data.gov.uk/id/local-authority/24UE,BALANCE SHEET,BS,BAL. SHEET - COLLECTION FUND,BS1,BAL. SHEET - COLLECTION FUND,PERSONAL ACCOUNTS,BS210,Local/Central Government,,HAMPSHIRE FIRE/RESCUE PRECEPT,P161,12/05/2017,586804,258108.00 ,Balance Sheet,HAMPSHIRE FIRE & RESCUE AUTHORITY,
Fareham Borough Council,http://statistics.data.gov.uk/id/local-authority/24UE,HOUSING REVENUE ACCOUNT,BV06,RESPONSIVE & VOID MAINTENANCE,5901,DEPARTMENT OF OPERATIONS,PREMISES RELATED EXPENDITURE,2,"Works - Construction, Repair & Maintenance",39,GENERAL REPAIRS,2018,19/05/2017,586805,-12693.02 ,Revenue,BCG ELECTRICAL SERVICES LIMITED,5097428
Fareham Borough Council,http://statistics.data.gov.uk/id/local-authority/24UE,BALANCE SHEET,BS,BAL. SHEET - COLLECTION FUND,BS1,BAL. SHEET - COLLECTION FUND,PERSONAL ACCOUNTS,BS210,Local/Central Government,,HAMPSHIRE POLICE PRECEPT,P159,12/05/2017,586806,592544.00 ,Balance Sheet,POLICE & CRIME COMMISSIONER HAMPSHIRE,
Fareham Borough Council,http://statistics.data.gov.uk/id/local-authority/24UE,HOUSING REVENUE ACCOUNT,BV06,RESPONSIVE & VOID MAINTENANCE,5901,DEPARTMENT OF OPERATIONS,PREMISES RELATED EXPENDITURE,2,"Works - Construction, Repair & Maintenance",39,GENERAL REPAIRS,2018,19/05/2017,586807,8131.47 ,Revenue,BCG ELECTRICAL SERVICES LIMITED,5097428
Fareham Borough Council,http://statistics.data.gov.uk/id/local-authority/24UE,BALANCE SHEET,BS,BAL. SHEET - COLLECTION FUND,BS1,BAL. SHEET - COLLECTION FUND,PERSONAL ACCOUNTS,BS210,Local/Central Government,98,HAMPSHIRE C.C. PRECEPT ACCOUNT,P157,12/05/2017,586808,4321901.00 ,Balance Sheet,HAMPSHIRE COUNTY COUNCIL,
Fareham Borough Council,http://statistics.data.gov.uk/id/local-authority/24UE,HOUSING REVENUE ACCOUNT,BV06,RESPONSIVE & VOID MAINTENANCE,5901,DEPARTMENT OF OPERATIONS,PREMISES RELATED EXPENDITURE,2,"Works - Construction, Repair & Maintenance",39,GENERAL REPAIRS,2018,19/05/2017,586809,-8131.47 ,Revenue,BCG ELECTRICAL SERVICES LIMITED,5097428
Fareham Borough Council,http://statistics.data.gov.uk/id/local-authority/24UE,CAPITAL PROGRAMME - OTHER SERVICES,CP,APPROVED PROGRAMME,CP24,CAPITAL - APPROVED PROGRAMME,PREMISES RELATED EXPENDITURE,2,"Works - Construction, Repair & Maintenance",39,R & M OF BUILDINGS,2000,25/05/2017,586830,75626.56 ,Capital,MOUNTJOY LTD,06009150
Fareham Borough Council,http://statistics.data.gov.uk/id/local-authority/24UE,HIGHWAYS ROADS AND TRANSPORT,BV12,PARKING SERVICES,BV12D,DEPARTMENT OF OPERATIONS,PREMISES RELATED EXPENDITURE,2,Facilities & Management Services,19,R & M OF LIFTS,2050,12/05/2017,586832,345.16 ,Revenue,TEMPLE LIFTS LTD,2388497
Fareham Borough Council,http://statistics.data.gov.uk/id/local-authority/24UE,HOUSING REVENUE ACCOUNT,BV06,RESPONSIVE & VOID MAINTENANCE,5901,DEPARTMENT OF OPERATIONS,PREMISES RELATED EXPENDITURE,2,Facilities & Management Services,19,SERVICING,2083,12/05/2017,586832,554.66 ,Revenue,TEMPLE LIFTS LTD,2388497
Fareham Borough Council,http://statistics.data.gov.uk/id/local-authority/24UE,OTHER REVENUE ACCOUNTS,RV,NON WORK GROUP HOLDING ACCOUNT,RV18,DEPT of FINANCE and RESOURCES,PREMISES RELATED EXPENDITURE,2,Facilities & Management Services,19,R & M OF LIFTS,2050,12/05/2017,586832,269.16 ,Revenue,TEMPLE LIFTS LTD,2388497
Fareham Borough Council,http://statistics.data.gov.uk/id/local-authority/24UE,CAPITAL PROGRAMME - HOUSING SERVICES,CP,RENOVATION OF L.A. DWELLINGS,CP10,CAPITAL - IMPROVEMENTS WORK/MODERNIS'N,PREMISES RELATED EXPENDITURE,2,"Works - Construction, Repair & Maintenance",39,R & M OF BUILDINGS,2000,12/05/2017,586834,13753.23 ,Capital,JPC PROPERTY SERVICES LTD,4704385
Fareham Borough Council,http://statistics.data.gov.uk/id/local-authority/24UE,OTHER REVENUE ACCOUNTS,RV,CONTRACT SERVICES D.S.O.,RV14,DEPT of STRATEGIC PLANNING and ENVIRONMENT,SUPPLIES & SERVICES,4,Local/Central Government,98,SUB-CONTRACTORS CHARGES,4432,12/05/2017,586837,1158.00 ,Revenue,NEW FOREST DISTRICT COUNCIL,
Fareham Borough Council,http://statistics.data.gov.uk/id/local-authority/24UE,HOUSING REVENUE ACCOUNT,BV06,GENERAL ADMINISTRATION EXPENSE,5021,DEPARTMENT OF OPERATIONS,SUPPLIES & SERVICES,4,Financial Services,20,PAYMENT CARD CHARGES,4411,12/05/2017,586849,1065.97 ,Revenue,ALLPAY LIMITED,02933191
Fareham Borough Council,http://statistics.data.gov.uk/id/local-authority/24UE,CAPITAL PROGRAMME - HOUSING SERVICES,CP,RENOVATION OF L.A. DWELLINGS,CP10,CAPITAL - IMPROVEMENTS WORK/MODERNIS'N,PREMISES RELATED EXPENDITURE,2,Building Construction Materials,10,R & M OF BUILDINGS,2000,12/05/2017,586851,1620.00 ,Capital,SOUTH COAST INSULATION SERVICES LTD,07210512
Fareham Borough Council,http://statistics.data.gov.uk/id/local-authority/24UE,CAPITAL PROGRAMME - HOUSING SERVICES,CP,RENOVATION OF L.A. DWELLINGS,CP10,CAPITAL - IMPROVEMENTS WORK/MODERNIS'N,PREMISES RELATED EXPENDITURE,2,Building Construction Materials,10,R & M OF BUILDINGS,2000,12/05/2017,586851,495.00 ,Capital,SOUTH COAST INSULATION SERVICES LTD,07210512
Fareham Borough Council,http://statistics.data.gov.uk/id/local-authority/24UE,CAPITAL PROGRAMME - HOUSING SERVICES,CP,RENOVATION OF L.A. DWELLINGS,CP10,CAPITAL - IMPROVEMENTS WORK/MODERNIS'N,PREMISES RELATED EXPENDITURE,2,Building Construction Materials,10,R & M OF BUILDINGS,2000,12/05/2017,586852,660.00 ,Capital,SOUTH COAST INSULATION SERVICES LTD,07210512
Fareham Borough Council,http://statistics.data.gov.uk/id/local-authority/24UE,CAPITAL PROGRAMME - HOUSING SERVICES,CP,RENOVATION OF L.A. DWELLINGS,CP10,CAPITAL - IMPROVEMENTS WORK/MODERNIS'N,PREMISES RELATED EXPENDITURE,2,Building Construction Materials,10,R & M OF BUILDINGS,2000,12/05/2017,586855,1620.00 ,Capital,SOUTH COAST INSULATION SERVICES LTD,07210512
Fareham Borough Council,http://statistics.data.gov.uk/id/local-authority/24UE,CAPITAL PROGRAMME - HOUSING SERVICES,CP,RENOVATION OF L.A. DWELLINGS,CP10,CAPITAL - IMPROVEMENTS WORK/MODERNIS'N,PREMISES RELATED EXPENDITURE,2,Building Construction Materials,10,R & M OF BUILDINGS,2000,12/05/2017,586855,495.00 ,Capital,SOUTH COAST INSULATION SERVICES LTD,07210512
Fareham Borough Council,http://statistics.data.gov.uk/id/local-authority/24UE,CAPITAL PROGRAMME - HOUSING SERVICES,CP,RENOVATION OF L.A. DWELLINGS,CP10,CAPITAL - IMPROVEMENTS WORK/MODERNIS'N,PREMISES RELATED EXPENDITURE,2,Building Construction Materials,10,R & M OF BUILDINGS,2000,12/05/2017,586858,3160.00 ,Capital,SOUTH COAST WINDOW SOLUTIONS LTD,9553687
Fareham Borough Council,http://statistics.data.gov.uk/id/local-authority/24UE,CAPITAL PROGRAMME - HOUSING SERVICES,CP,HOUSE RENOVATION GRANTS,CP11,CAPITAL - HOUSE RENOVATION GRANTS,SUPPLIES & SERVICES,4,Unclassified,,GRANTS AND SUBSCRIPTIONS,4700,12/05/2017,586860,3944.00 ,Capital,GHYLLSIDE MANUFACTURING,
Fareham Borough Council,http://statistics.data.gov.uk/id/local-authority/24UE,CAPITAL PROGRAMME - HOUSING SERVICES,CP,HOUSE RENOVATION GRANTS,CP11,CAPITAL - HOUSE RENOVATION GRANTS,SUPPLIES & SERVICES,4,Unclassified,,GRANTS AND SUBSCRIPTIONS,4700,12/05/2017,586861,1950.00 ,Capital,AKP MAINTENANCE LTD,
Fareham Borough Council,http://statistics.data.gov.uk/id/local-authority/24UE,CAPITAL PROGRAMME - HOUSING SERVICES,CP,HOUSE RENOVATION GRANTS,CP11,CAPITAL - HOUSE RENOVATION GRANTS,SUPPLIES & SERVICES,4,Unclassified,,GRANTS AND SUBSCRIPTIONS,4700,12/05/2017,586862,3004.58 ,Capital,D & T BATHROOMS,
Fareham Borough Council,http://statistics.data.gov.uk/id/local-authority/24UE,OTHER REVENUE ACCOUNTS,RV,CONTRACT SERVICES D.S.O.,RV14,DEPT of STRATEGIC PLANNING and ENVIRONMENT,SUPPLIES & SERVICES,4,Consultancy,15,GRANTS AND SUBSCRIPTIONS,4700,12/05/2017,586869,639.00 ,Revenue,BSI MANAGEMENT SYSTEMS,07805321
Fareham Borough Council,http://statistics.data.gov.uk/id/local-authority/24UE,CULTURAL AND RELATED SERVICES,BV09,RECREATION AND SPORT,BV09B,DEPARTMENT OF OPERATIONS,PREMISES RELATED EXPENDITURE,2,Horticultural,24,R&M OF TREE PRESERVATION,2063,12/05/2017,586899,400.87 ,Revenue,CEDAR TREE SURGEONS,
Fareham Borough Council,http://statistics.data.gov.uk/id/local-authority/24UE,CULTURAL AND RELATED SERVICES,BV09,RECREATION AND SPORT,BV09B,DEPARTMENT OF OPERATIONS,PREMISES RELATED EXPENDITURE,2,Horticultural,24,R&M OF TREE PRESERVATION,2063,12/05/2017,586899,1026.97 ,Revenue,CEDAR TREE SURGEONS,
Fareham Borough Council,http://statistics.data.gov.uk/id/local-authority/24UE,CULTURAL AND RELATED SERVICES,BV09,RECREATION AND SPORT,BV09B,DEPARTMENT OF OPERATIONS,PREMISES RELATED EXPENDITURE,2,Horticultural,24,R&M OF TREE PRESERVATION,2063,12/05/2017,586899,191.62 ,Revenue,CEDAR TREE SURGEONS,
Fareham Borough Council,http://statistics.data.gov.uk/id/local-authority/24UE,CULTURAL AND RELATED SERVICES,BV09,RECREATION AND SPORT,BV09B,DEPARTMENT OF OPERATIONS,PREMISES RELATED EXPENDITURE,2,Horticultural,24,R&M OF TREE PRESERVATION,2063,12/05/2017,586899,512.43 ,Revenue,CEDAR TREE SURGEONS,
Fareham Borough Council,http://statistics.data.gov.uk/id/local-authority/24UE,CULTURAL AND RELATED SERVICES,BV09,RECREATION AND SPORT,BV09B,DEPARTMENT OF OPERATIONS,PREMISES RELATED EXPENDITURE,2,Horticultural,24,R&M OF TREE PRESERVATION,2063,12/05/2017,586899,323.38 ,Revenue,CEDAR TREE SURGEONS,
Fareham Borough Council,http://statistics.data.gov.uk/id/local-authority/24UE,HOUSING REVENUE ACCOUNT,BV06,GENERAL ADMINISTRATION EXPENSE,5021,DEPARTMENT OF OPERATIONS,SUPPLIES & SERVICES,4,Human Resources,26,TENANT PARTICIPATION COSTS,4723,12/05/2017,586904,600.00 ,Revenue,TPAS LIMITED,2224643
Fareham Borough Council,http://statistics.data.gov.uk/id/local-authority/24UE,HOUSING REVENUE ACCOUNT,BV06,RESPONSIVE & VOID MAINTENANCE,5901,DEPARTMENT OF OPERATIONS,PREMISES RELATED EXPENDITURE,2,Environmental Services,18,GENERAL REPAIRS,2018,19/05/2017,586905,700.00 ,Revenue,R H INSULATION SERVICES LIMITED,02062526
Fareham Borough Council,http://statistics.data.gov.uk/id/local-authority/24UE,HOUSING REVENUE ACCOUNT,BV06,RESPONSIVE & VOID MAINTENANCE,5901,DEPARTMENT OF OPERATIONS,PREMISES RELATED EXPENDITURE,2,Environmental Services,18,GENERAL REPAIRS,2018,19/05/2017,586907,580.00 ,Revenue,R H INSULATION SERVICES LIMITED,02062526
Fareham Borough Council,http://statistics.data.gov.uk/id/local-authority/24UE,HOUSING REVENUE ACCOUNT,BV06,RESPONSIVE & VOID MAINTENANCE,5901,DEPARTMENT OF OPERATIONS,PREMISES RELATED EXPENDITURE,2,Environmental Services,18,GENERAL REPAIRS,2018,19/05/2017,586908,550.00 ,Revenue,R H INSULATION SERVICES LIMITED,02062526
Fareham Borough Council,http://statistics.data.gov.uk/id/local-authority/24UE,CAPITAL PROGRAMME - HOUSING SERVICES,CP,RENOVATION OF L.A. DWELLINGS,CP10,CAPITAL - IMPROVEMENTS WORK/MODERNIS'N,PREMISES RELATED EXPENDITURE,2,Social Community Care Supplies & Services,32,GENERAL REPAIRS,2018,12/05/2017,586909,1530.00 ,Capital,LIFTABILITY LIMITED,03782380
Fareham Borough Council,http://statistics.data.gov.uk/id/local-authority/24UE,HOUSING REVENUE ACCOUNT,BV06,RESPONSIVE & VOID MAINTENANCE,5901,DEPARTMENT OF OPERATIONS,PREMISES RELATED EXPENDITURE,2,Social Community Care Supplies & Services,32,GENERAL REPAIRS,2018,12/05/2017,586909,1154.95 ,Revenue,LIFTABILITY LIMITED,03782380
Fareham Borough Council,http://statistics.data.gov.uk/id/local-authority/24UE,HOUSING REVENUE ACCOUNT,BV06,RESPONSIVE & VOID MAINTENANCE,5901,DEPARTMENT OF OPERATIONS,PREMISES RELATED EXPENDITURE,2,Building Construction Materials,10,GENERAL REPAIRS,2018,12/05/2017,586920,650.00 ,Revenue,HARFORD SPECIALISED SERVICES LTD,02338660
Fareham Borough Council,http://statistics.data.gov.uk/id/local-authority/24UE,OTHER REVENUE ACCOUNTS,RV,CONTRACT SERVICES D.S.O.,RV14,DEPARTMENT OF OPERATIONS,EMPLOYEES RELATED EXPENDITURE,1,Human Resources,26,AGENCY WORKERS,1050,12/05/2017,586921,674.30 ,Revenue,BUILDING RECRUITMENT COMPANY LTD,3750125
Fareham Borough Council,http://statistics.data.gov.uk/id/local-authority/24UE,GENERAL FUND HOUSING,BV05,HOMELESSNESS,BV05F,DEPARTMENT OF OPERATIONS,SUPPLIES & SERVICES,4,Building Construction Materials,10,MATERIALS (OPERATIONAL),4007,12/05/2017,586938,619.38 ,Revenue,SPECIALIST BUILDING DISTRIBUTION LTD,2599297
Fareham Borough Council,http://statistics.data.gov.uk/id/local-authority/24UE,CORPORATE & DEMOCRATIC CORE,BV07A,CORPORATE MANAGEMENT,BV07AB,DEPT of FINANCE and RESOURCES,SUPPLIES & SERVICES,4,Facilities & Management Services,19,PROVISION OF NOTICE BOARDS,4001,12/05/2017,586945,153.00 ,Revenue,CENTRIC SIGNS LTD,
Fareham Borough Council,http://statistics.data.gov.uk/id/local-authority/24UE,CORPORATE & DEMOCRATIC CORE,BV07A,CORPORATE MANAGEMENT,BV07AB,DEPT of FINANCE and RESOURCES,SUPPLIES & SERVICES,4,Facilities & Management Services,19,PROVISION OF NOTICE BOARDS,4001,12/05/2017,586945,790.25 ,Revenue,CENTRIC SIGNS LTD,
Fareham Borough Council,http://statistics.data.gov.uk/id/local-authority/24UE,HOUSING REVENUE ACCOUNT,BV06,RESPONSIVE & VOID MAINTENANCE,5901,DEPARTMENT OF OPERATIONS,PREMISES RELATED EXPENDITURE,2,"Works - Construction, Repair & Maintenance",39,GENERAL REPAIRS,2018,12/05/2017,586947,528.00 ,Revenue,BEAVEN GROUNDWORKS,
Fareham Borough Council,http://statistics.data.gov.uk/id/local-authority/24UE,HOUSING REVENUE ACCOUNT,BV06,RESPONSIVE & VOID MAINTENANCE,5901,DEPARTMENT OF OPERATIONS,PREMISES RELATED EXPENDITURE,2,"Works - Construction, Repair & Maintenance",39,GENERAL REPAIRS,2018,12/05/2017,586947,432.88 ,Revenue,BEAVEN GROUNDWORKS,
Fareham Borough Council,http://statistics.data.gov.uk/id/local-authority/24UE,HOUSING REVENUE ACCOUNT,BV06,RESPONSIVE & VOID MAINTENANCE,5901,DEPARTMENT OF OPERATIONS,PREMISES RELATED EXPENDITURE,2,"Works - Construction, Repair & Maintenance",39,GENERAL REPAIRS,2018,12/05/2017,586948,1200.00 ,Revenue,BEAVEN GROUNDWORKS,
Fareham Borough Council,http://statistics.data.gov.uk/id/local-authority/24UE,HOUSING REVENUE ACCOUNT,BV06,RESPONSIVE & VOID MAINTENANCE,5901,DEPARTMENT OF OPERATIONS,PREMISES RELATED EXPENDITURE,2,"Works - Construction, Repair & Maintenance",39,GENERAL REPAIRS,2018,12/05/2017,586948,990.72 ,Revenue,BEAVEN GROUNDWORKS,
Fareham Borough Council,http://statistics.data.gov.uk/id/local-authority/24UE,OTHER REVENUE ACCOUNTS,RV,NON WORK GROUP HOLDING ACCOUNT,RV18,DEPT of FINANCE and RESOURCES,SUPPLIES & SERVICES,4,Mail Services�,30,POSTAGES,4500,25/05/2017,587022,3279.67 ,Revenue,ROYAL MAIL,04138203
Fareham Borough Council,http://statistics.data.gov.uk/id/local-authority/24UE,CULTURAL AND RELATED SERVICES,BV09,RECREATION AND SPORT,BV09B,DEPARTMENT OF OPERATIONS,PREMISES RELATED EXPENDITURE,2,Social Community Care Supplies & Services,32,FAREHAM IN BLOOM,2068,12/05/2017,587025,550.00 ,Revenue,SOUTH & SOUTH EAST IN BLOOM,04355500
Fareham Borough Council,http://statistics.data.gov.uk/id/local-authority/24UE,ENVIRONMENT AND REGULATORY SER,BV03,STREET CLEANSING,BV03F,DEPARTMENT OF OPERATIONS,TRANSPORT RELATED EXPENDITURE,3,Vehicle Management,38,ROUTINE REPAIRS VEHICLES/PLANT,3010,12/05/2017,587026,100.00 ,Revenue,KINETIC SIGNS LTD,7659192
Fareham Borough Council,http://statistics.data.gov.uk/id/local-authority/24UE,ENVIRONMENT AND REGULATORY SER,BV03,WASTE COLLECTION,BV03G,DEPARTMENT OF OPERATIONS,TRANSPORT RELATED EXPENDITURE,3,Vehicle Management,38,ROUTINE REPAIRS VEHICLES/PLANT,3010,12/05/2017,587026,736.68 ,Revenue,KINETIC SIGNS LTD,7659192
Fareham Borough Council,http://statistics.data.gov.uk/id/local-authority/24UE,CAPITAL PROGRAMME - OTHER SERVICES,CP,DSO VEHICLES & PLANT PURCHASES,CP23,CAPITAL - DSO VEHICLES & PLANT PURCHASES,TRANSPORT RELATED EXPENDITURE,3,Vehicle Management,38,PURCHASE OF VEHICLES,3000,12/05/2017,587027,13250.00 ,Capital,NORTON COMMERCIALS LTD,08516595
Fareham Borough Council,http://statistics.data.gov.uk/id/local-authority/24UE,ENVIRONMENT AND REGULATORY SER,BV03,WASTE COLLECTION,BV03G,DEPARTMENT OF OPERATIONS,EMPLOYEES RELATED EXPENDITURE,1,Human Resources,26,AGENCY WORKERS,1050,12/05/2017,587028,597.60 ,Revenue,THE BEST CONNECTION GROUP LTD,2600534
Fareham Borough Council,http://statistics.data.gov.uk/id/local-authority/24UE,CENTRAL SERVICES,BV07,CENTRAL SERVICES TO THE PUBLIC,BV07B,DEPARTMENT OF OPERATIONS,SUPPLIES & SERVICES,4,Financial Services,20,SPECIAL EXPENDITURE,4999,12/05/2017,587045,241.04 ,Revenue,ALLPAY LIMITED,02933191
Fareham Borough Council,http://statistics.data.gov.uk/id/local-authority/24UE,CENTRAL SERVICES,BV07,CENTRAL SERVICES TO THE PUBLIC,BV07B,DEPARTMENT OF OPERATIONS,SUPPLIES & SERVICES,4,Financial Services,20,BANK CHARGES,4954,12/05/2017,587045,83.74 ,Revenue,ALLPAY LIMITED,02933191
Fareham Borough Council,http://statistics.data.gov.uk/id/local-authority/24UE,CENTRAL SERVICES,BV07,CENTRAL SERVICES TO THE PUBLIC,BV07B,DEPARTMENT OF OPERATIONS,SUPPLIES & SERVICES,4,Financial Services,20,BANK CHARGES,4954,12/05/2017,587045,970.38 ,Revenue,ALLPAY LIMITED,02933191
Fareham Borough Council,http://statistics.data.gov.uk/id/local-authority/24UE,GENERAL FUND HOUSING,BV05,HOUSING BENEFIT PAYMENTS,BV05G,DEPARTMENT OF OPERATIONS,TRANSFER PAYMENTS,6,Unclassified,,RENT ALLOW - WEEKLY SUMMARIES,6010,19/05/2017,587384,555.20 ,Revenue,WEALDEN DISTRICT COUNCIL,
Fareham Borough Council,http://statistics.data.gov.uk/id/local-authority/24UE,HOUSING REVENUE ACCOUNT,BV06,RESPONSIVE & VOID MAINTENANCE,5901,DEPARTMENT OF OPERATIONS,PREMISES RELATED EXPENDITURE,2,"Works - Construction, Repair & Maintenance",39,R & M OF BUILDINGS,2000,19/05/2017,587388,2271.61 ,Revenue,JPC PROPERTY SERVICES LTD,4704385
Fareham Borough Council,http://statistics.data.gov.uk/id/local-authority/24UE,CULTURAL AND RELATED SERVICES,BV09,RECREATION AND SPORT,BV09B,DEPARTMENT OF OPERATIONS,PREMISES RELATED EXPENDITURE,2,Environmental Services,18,R & M OF BUILDINGS,2000,19/05/2017,587389,325.55 ,Revenue,CLEARWATER TECHNOLOGY LTD,03659610
Fareham Borough Council,http://statistics.data.gov.uk/id/local-authority/24UE,CULTURAL AND RELATED SERVICES,BV09,RECREATION AND SPORT,BV09B,DEPARTMENT OF OPERATIONS,PREMISES RELATED EXPENDITURE,2,Environmental Services,18,R & M OF BUILDINGS,2000,19/05/2017,587389,83.16 ,Revenue,CLEARWATER TECHNOLOGY LTD,03659610
Fareham Borough Council,http://statistics.data.gov.uk/id/local-authority/24UE,OTHER REVENUE ACCOUNTS,RV,NON WORK GROUP HOLDING ACCOUNT,RV18,DEPT of FINANCE and RESOURCES,PREMISES RELATED EXPENDITURE,2,Environmental Services,18,R & M OF BUILDINGS,2000,19/05/2017,587389,496.80 ,Revenue,CLEARWATER TECHNOLOGY LTD,03659610
Fareham Borough Council,http://statistics.data.gov.uk/id/local-authority/24UE,OTHER REVENUE ACCOUNTS,RV,NON WORK GROUP HOLDING ACCOUNT,RV18,DEPT of FINANCE and RESOURCES,PREMISES RELATED EXPENDITURE,2,Environmental Services,18,R & M OF BUILDINGS,2000,19/05/2017,587389,35.08 ,Revenue,CLEARWATER TECHNOLOGY LTD,03659610
Fareham Borough Council,http://statistics.data.gov.uk/id/local-authority/24UE,CAPITAL PROGRAMME - OTHER SERVICES,CP,SCHEMES FUNDED FROM BALANCES,CP20,CAPITAL - SCHEMES FUNDED FROM BALANCES,PREMISES RELATED EXPENDITURE,2,Legal Services,28,LAND/BUILDINGS ACQUISITIONS,2601,19/05/2017,587397,425000.00 ,Capital,VEALE WASBROUGH VIZARDS,OC384033
Fareham Borough Council,http://statistics.data.gov.uk/id/local-authority/24UE,BALANCE SHEET,BS,BAL. SHEET - GENERAL FUND,BS1,BAL. SHEET - GENERAL FUND,BALANCES & RESERVES,BS190,Legal Services,28,GF CAPITAL GRANTS REC IN ADV,E322,19/05/2017,587397,-250000.00 ,Balance Sheet,VEALE WASBROUGH VIZARDS,OC384033
Fareham Borough Council,http://statistics.data.gov.uk/id/local-authority/24UE,CAPITAL PROGRAMME - OTHER SERVICES,CP,SCHEMES FUNDED FROM BALANCES,CP20,CAPITAL - SCHEMES FUNDED FROM BALANCES,PREMISES RELATED EXPENDITURE,2,Legal Services,28,LAND/BUILDINGS ACQUISITIONS,2601,19/05/2017,587398,15000.00 ,Capital,VEALE WASBROUGH VIZARDS,OC384033
Fareham Borough Council,http://statistics.data.gov.uk/id/local-authority/24UE,ENVIRONMENT AND REGULATORY SER,BV03,ENVIRONMENTAL HEALTH,BV03C,DEPT of STRATEGIC PLANNING and ENVIRONMENT,SUPPLIES & SERVICES,4,Human Resources,26,LEGAL FEES,4400,19/05/2017,587401,1584.00 ,Revenue,DISCLOSURE AND BARRING SERVICE,
Fareham Borough Council,http://statistics.data.gov.uk/id/local-authority/24UE,CULTURAL AND RELATED SERVICES,BV09,RECREATION AND SPORT,BV09B,DEPARTMENT OF OPERATIONS,SUPPLIES & SERVICES,4,Human Resources,26,LEGAL FEES,4400,19/05/2017,587401,44.00 ,Revenue,DISCLOSURE AND BARRING SERVICE,
Fareham Borough Council,http://statistics.data.gov.uk/id/local-authority/24UE,HIGHWAYS ROADS AND TRANSPORT,BV12,PARKING SERVICES,BV12D,DEPARTMENT OF OPERATIONS,SUPPLIES & SERVICES,4,Human Resources,26,LEGAL FEES,4400,19/05/2017,587401,26.00 ,Revenue,DISCLOSURE AND BARRING SERVICE,
Fareham Borough Council,http://statistics.data.gov.uk/id/local-authority/24UE,CENTRAL SERVICES,BV07,CENTRAL SERVICES TO THE PUBLIC,BV07B,DEPARTMENT OF OPERATIONS,SUPPLIES & SERVICES,4,Unclassified,,GRANTS AND SUBSCRIPTIONS,4700,19/05/2017,587404,588.00 ,Revenue,ST ANDREW'S FIRST AID TRAINING AND SUPPLY,
Fareham Borough Council,http://statistics.data.gov.uk/id/local-authority/24UE,ENVIRONMENT AND REGULATORY SER,BV03,ENVIRONMENTAL HEALTH,BV03C,DEPT of STRATEGIC PLANNING and ENVIRONMENT,SUPPLIES & SERVICES,4,Human Resources,26,LEGAL FEES,4400,19/05/2017,587405,1320.00 ,Revenue,DISCLOSURE AND BARRING SERVICE,
Fareham Borough Council,http://statistics.data.gov.uk/id/local-authority/24UE,GENERAL FUND HOUSING,BV05,HOMELESSNESS,BV05F,DEPARTMENT OF OPERATIONS,SUPPLIES & SERVICES,4,Human Resources,26,LEGAL FEES,4400,19/05/2017,587405,44.00 ,Revenue,DISCLOSURE AND BARRING SERVICE,
Fareham Borough Council,http://statistics.data.gov.uk/id/local-authority/24UE,CORPORATE & DEMOCRATIC CORE,BV07A,DEMOCRATIC REP.& MANAGEMENT,BV07AA,DEPT of FINANCE and RESOURCES,SUPPLIES & SERVICES,4,Human Resources,26,LEGAL FEES,4400,19/05/2017,587405,88.00 ,Revenue,DISCLOSURE AND BARRING SERVICE,
Fareham Borough Council,http://statistics.data.gov.uk/id/local-authority/24UE,CENTRAL SERVICES,BV07,CENTRAL SERVICES TO THE PUBLIC,BV07B,DEPARTMENT OF OPERATIONS,SUPPLIES & SERVICES,4,Human Resources,26,LEGAL FEES,4400,19/05/2017,587405,44.00 ,Revenue,DISCLOSURE AND BARRING SERVICE,
Fareham Borough Council,http://statistics.data.gov.uk/id/local-authority/24UE,PLANNING SERVICES,BV13,COMMUNITY DEVELOPMENT,BV13H,DEPARTMENT OF OPERATIONS,SUPPLIES & SERVICES,4,Human Resources,26,LEGAL FEES,4400,19/05/2017,587405,44.00 ,Revenue,DISCLOSURE AND BARRING SERVICE,
Fareham Borough Council,http://statistics.data.gov.uk/id/local-authority/24UE,PLANNING SERVICES,BV13,COMMUNITY DEVELOPMENT,BV13H,DEPARTMENT OF OPERATIONS,SUPPLIES & SERVICES,4,Human Resources,26,LEGAL FEES,4400,19/05/2017,587405,44.00 ,Revenue,DISCLOSURE AND BARRING SERVICE,
Fareham Borough Council,http://statistics.data.gov.uk/id/local-authority/24UE,PLANNING SERVICES,BV13,COMMUNITY DEVELOPMENT,BV13H,DEPARTMENT OF OPERATIONS,SUPPLIES & SERVICES,4,Human Resources,26,LEGAL FEES,4400,19/05/2017,587405,88.00 ,Revenue,DISCLOSURE AND BARRING SERVICE,
Fareham Borough Council,http://statistics.data.gov.uk/id/local-authority/24UE,HIGHWAYS ROADS AND TRANSPORT,BV12,PARKING SERVICES,BV12D,DEPARTMENT OF OPERATIONS,SUPPLIES & SERVICES,4,Human Resources,26,LEGAL FEES,4400,19/05/2017,587405,52.00 ,Revenue,DISCLOSURE AND BARRING SERVICE,
Fareham Borough Council,http://statistics.data.gov.uk/id/local-authority/24UE,HOUSING REVENUE ACCOUNT,BV06,SHELTERED HOUSING SERVICE,5031,DEPARTMENT OF OPERATIONS,SUPPLIES & SERVICES,4,Human Resources,26,LEGAL FEES,4400,19/05/2017,587405,44.00 ,Revenue,DISCLOSURE AND BARRING SERVICE,
Fareham Borough Council,http://statistics.data.gov.uk/id/local-authority/24UE,ENVIRONMENT AND REGULATORY SER,BV03,ENVIRONMENTAL HEALTH,BV03C,DEPT of STRATEGIC PLANNING and ENVIRONMENT,SUPPLIES & SERVICES,4,Human Resources,26,LEGAL FEES,4400,19/05/2017,587406,510.00 ,Revenue,DISCLOSURE AND BARRING SERVICE,
Fareham Borough Council,http://statistics.data.gov.uk/id/local-authority/24UE,ENVIRONMENT AND REGULATORY SER,BV03,ENVIRONMENTAL HEALTH,BV03C,DEPT of STRATEGIC PLANNING and ENVIRONMENT,SUPPLIES & SERVICES,4,Human Resources,26,LEGAL FEES,4400,19/05/2017,587406,44.00 ,Revenue,DISCLOSURE AND BARRING SERVICE,
Fareham Borough Council,http://statistics.data.gov.uk/id/local-authority/24UE,CULTURAL AND RELATED SERVICES,BV09,CULTURE AND HERITAGE,BV09A,DEPARTMENT OF OPERATIONS,SUPPLIES & SERVICES,4,Human Resources,26,LEGAL FEES,4400,19/05/2017,587406,44.00 ,Revenue,DISCLOSURE AND BARRING SERVICE,
Fareham Borough Council,http://statistics.data.gov.uk/id/local-authority/24UE,CULTURAL AND RELATED SERVICES,BV09,CULTURE AND HERITAGE,BV09A,DEPARTMENT OF OPERATIONS,SUPPLIES & SERVICES,4,Human Resources,26,LEGAL FEES,4400,19/05/2017,587406,44.00 ,Revenue,DISCLOSURE AND BARRING SERVICE,
Fareham Borough Council,http://statistics.data.gov.uk/id/local-authority/24UE,HIGHWAYS ROADS AND TRANSPORT,BV12,PARKING SERVICES,BV12D,DEPARTMENT OF OPERATIONS,SUPPLIES & SERVICES,4,Human Resources,26,LEGAL FEES,4400,19/05/2017,587406,44.00 ,Revenue,DISCLOSURE AND BARRING SERVICE,
Fareham Borough Council,http://statistics.data.gov.uk/id/local-authority/24UE,CULTURAL AND RELATED SERVICES,BV09,CULTURE AND HERITAGE,BV09A,DEPARTMENT OF OPERATIONS,PREMISES RELATED EXPENDITURE,2,Utilities,37,ELECTRICITY,2120,19/05/2017,587412,2720.43 ,Revenue,EDF ENERGY,02366852
Fareham Borough Council,http://statistics.data.gov.uk/id/local-authority/24UE,OTHER REVENUE ACCOUNTS,RV,NON WORK GROUP HOLDING ACCOUNT,RV18,DEPT of FINANCE and RESOURCES,PREMISES RELATED EXPENDITURE,2,Utilities,37,ELECTRICITY,2120,19/05/2017,587412,7440.74 ,Revenue,EDF ENERGY,02366852
Fareham Borough Council,http://statistics.data.gov.uk/id/local-authority/24UE,CAPITAL PROGRAMME - HOUSING SERVICES,CP,HOUSE RENOVATION GRANTS,CP11,CAPITAL - HOUSE RENOVATION GRANTS,SUPPLIES & SERVICES,4,Unclassified,,GRANTS AND SUBSCRIPTIONS,4700,19/05/2017,587414,1545.87 ,Capital,SCORPIO CLADDING,
Fareham Borough Council,http://statistics.data.gov.uk/id/local-authority/24UE,OTHER REVENUE ACCOUNTS,RV,CONTRACT SERVICES D.S.O.,RV14,DEPT of STRATEGIC PLANNING and ENVIRONMENT,SUPPLIES & SERVICES,4,Local/Central Government,98,SUB-CONTRACTORS CHARGES,4432,19/05/2017,587424,1370.00 ,Revenue,EAST HAMPSHIRE DISTRICT COUNCIL,
Fareham Borough Council,http://statistics.data.gov.uk/id/local-authority/24UE,OTHER REVENUE ACCOUNTS,RV,NON WORK GROUP HOLDING ACCOUNT,RV18,DEPT of FINANCE and RESOURCES,SUPPLIES & SERVICES,4,Information Communication Technology,27,SOFTWARE LICENCES,4530,25/05/2017,587429,38527.81 ,Revenue,NORTHGATE PUBLIC SERVICES (UK) LTD,968498
Fareham Borough Council,http://statistics.data.gov.uk/id/local-authority/24UE,OTHER REVENUE ACCOUNTS,RV,CONTRACT SERVICES D.S.O.,RV14,DEPT of STRATEGIC PLANNING and ENVIRONMENT,SUPPLIES & SERVICES,4,Consultancy,15,STRUCTURAL ENGINEERS FEES,4405,19/05/2017,587432,1769.30 ,Revenue,RUCK CONSULTANCY LIMITED,9335936
Fareham Borough Council,http://statistics.data.gov.uk/id/local-authority/24UE,CULTURAL AND RELATED SERVICES,BV09,CULTURE AND HERITAGE,BV09A,DEPARTMENT OF OPERATIONS,SUPPLIES & SERVICES,4,"Works - Construction, Repair & Maintenance",39,POP DEFAULT ACCOUNT,4XXX,19/05/2017,587438,152.02 ,Revenue,A PURKISS BUILDING & DECORATING LTD,3561215
Fareham Borough Council,http://statistics.data.gov.uk/id/local-authority/24UE,HOUSING REVENUE ACCOUNT,BV06,RESPONSIVE & VOID MAINTENANCE,5901,DEPARTMENT OF OPERATIONS,PREMISES RELATED EXPENDITURE,2,"Works - Construction, Repair & Maintenance",39,GENERAL REPAIRS,2018,19/05/2017,587438,31460.26 ,Revenue,A PURKISS BUILDING & DECORATING LTD,3561215
Fareham Borough Council,http://statistics.data.gov.uk/id/local-authority/24UE,CENTRAL SERVICES,BV07,CENTRAL SERVICES TO THE PUBLIC,BV07B,DEPARTMENT OF OPERATIONS,SUPPLIES & SERVICES,4,Local/Central Government,98,LEGAL FEES,4400,19/05/2017,587443,1291.50 ,Revenue,HAMPSHIRE COUNTY COUNCIL,
Fareham Borough Council,http://statistics.data.gov.uk/id/local-authority/24UE,GENERAL FUND HOUSING,BV05,OTHER COUNCIL PROPERTY,BV05K,DEPARTMENT OF OPERATIONS,PREMISES RELATED EXPENDITURE,2,Cleaning & Janitorial,13,R & M OF LEASED PROPERTIES,2001,19/05/2017,587450,114.00 ,Revenue,HI-SPEC FACILITIES SERVICES PLC,4373379
Fareham Borough Council,http://statistics.data.gov.uk/id/local-authority/24UE,CULTURAL AND RELATED SERVICES,BV09,RECREATION AND SPORT,BV09B,DEPARTMENT OF OPERATIONS,PREMISES RELATED EXPENDITURE,2,Cleaning & Janitorial,13,CONTRACT CLEANING - GENERAL,2700,19/05/2017,587450,1352.64 ,Revenue,HI-SPEC FACILITIES SERVICES PLC,4373379
Fareham Borough Council,http://statistics.data.gov.uk/id/local-authority/24UE,CULTURAL AND RELATED SERVICES,BV09,RECREATION AND SPORT,BV09B,DEPARTMENT OF OPERATIONS,PREMISES RELATED EXPENDITURE,2,Cleaning & Janitorial,13,CONTRACT CLEANING - GENERAL,2700,19/05/2017,587450,146.06 ,Revenue,HI-SPEC FACILITIES SERVICES PLC,4373379
Fareham Borough Council,http://statistics.data.gov.uk/id/local-authority/24UE,CULTURAL AND RELATED SERVICES,BV09,CULTURE AND HERITAGE,BV09A,DEPARTMENT OF OPERATIONS,PREMISES RELATED EXPENDITURE,2,Cleaning & Janitorial,13,CONTRACT CLEANING - GENERAL,2700,19/05/2017,587450,1405.51 ,Revenue,HI-SPEC FACILITIES SERVICES PLC,4373379
Fareham Borough Council,http://statistics.data.gov.uk/id/local-authority/24UE,HIGHWAYS ROADS AND TRANSPORT,BV12,PARKING SERVICES,BV12D,DEPARTMENT OF OPERATIONS,PREMISES RELATED EXPENDITURE,2,Cleaning & Janitorial,13,CONTRACT CLEANING - GENERAL,2700,19/05/2017,587450,1180.47 ,Revenue,HI-SPEC FACILITIES SERVICES PLC,4373379
Fareham Borough Council,http://statistics.data.gov.uk/id/local-authority/24UE,ENVIRONMENT AND REGULATORY SER,BV03,ENVIRONMENTAL HEALTH,BV03C,DEPARTMENT OF OPERATIONS,PREMISES RELATED EXPENDITURE,2,Cleaning & Janitorial,13,CONTRACT CLEANING - GENERAL,2700,19/05/2017,587450,9610.10 ,Revenue,HI-SPEC FACILITIES SERVICES PLC,4373379
Fareham Borough Council,http://statistics.data.gov.uk/id/local-authority/24UE,HOUSING REVENUE ACCOUNT,BV06,COMMUNAL CARETAKING & CLEANING,5027,DEPARTMENT OF OPERATIONS,PREMISES RELATED EXPENDITURE,2,Cleaning & Janitorial,13,CONTRACT CLEANING - GENERAL,2700,19/05/2017,587450,1325.99 ,Revenue,HI-SPEC FACILITIES SERVICES PLC,4373379
Fareham Borough Council,http://statistics.data.gov.uk/id/local-authority/24UE,HOUSING REVENUE ACCOUNT,BV06,COMMUNAL CARETAKING & CLEANING,5027,DEPARTMENT OF OPERATIONS,PREMISES RELATED EXPENDITURE,2,Cleaning & Janitorial,13,CONTRACT CLEANING - GENERAL,2700,19/05/2017,587450,1113.83 ,Revenue,HI-SPEC FACILITIES SERVICES PLC,4373379
Fareham Borough Council,http://statistics.data.gov.uk/id/local-authority/24UE,HOUSING REVENUE ACCOUNT,BV06,COMMUNAL CARETAKING & CLEANING,5027,DEPARTMENT OF OPERATIONS,PREMISES RELATED EXPENDITURE,2,Cleaning & Janitorial,13,CONTRACT CLEANING - GENERAL,2700,19/05/2017,587450,9732.64 ,Revenue,HI-SPEC FACILITIES SERVICES PLC,4373379
Fareham Borough Council,http://statistics.data.gov.uk/id/local-authority/24UE,OTHER REVENUE ACCOUNTS,RV,CONTRACT SERVICES D.S.O.,RV14,DEPARTMENT OF OPERATIONS,PREMISES RELATED EXPENDITURE,2,Cleaning & Janitorial,13,CONTRACT CLEANING - GENERAL,2700,19/05/2017,587450,88.81 ,Revenue,HI-SPEC FACILITIES SERVICES PLC,4373379
Fareham Borough Council,http://statistics.data.gov.uk/id/local-authority/24UE,OTHER REVENUE ACCOUNTS,RV,NON WORK GROUP HOLDING ACCOUNT,RV18,DEPT of FINANCE and RESOURCES,PREMISES RELATED EXPENDITURE,2,Cleaning & Janitorial,13,WINDOW CLEANING,2760,19/05/2017,587450,218.67 ,Revenue,HI-SPEC FACILITIES SERVICES PLC,4373379
Fareham Borough Council,http://statistics.data.gov.uk/id/local-authority/24UE,OTHER REVENUE ACCOUNTS,RV,NON WORK GROUP HOLDING ACCOUNT,RV18,DEPT of FINANCE and RESOURCES,PREMISES RELATED EXPENDITURE,2,Cleaning & Janitorial,13,CONTRACT CLEANING - GENERAL,2700,19/05/2017,587450,706.85 ,Revenue,HI-SPEC FACILITIES SERVICES PLC,4373379
Fareham Borough Council,http://statistics.data.gov.uk/id/local-authority/24UE,OTHER REVENUE ACCOUNTS,RV,NON WORK GROUP HOLDING ACCOUNT,RV18,DEPT of FINANCE and RESOURCES,PREMISES RELATED EXPENDITURE,2,Cleaning & Janitorial,13,CONTRACT CLEANING - GENERAL,2700,19/05/2017,587450,380.61 ,Revenue,HI-SPEC FACILITIES SERVICES PLC,4373379
Fareham Borough Council,http://statistics.data.gov.uk/id/local-authority/24UE,GENERAL FUND HOUSING,BV05,HOUSING BENEFIT ADMINISTRATION,BV05H,DEPARTMENT OF OPERATIONS,SUPPLIES & SERVICES,4,Information Communication Technology,27,SOFTWARE LICENCES,4530,19/05/2017,587453,300.00 ,Revenue,NORTHGATE PUBLIC SERVICES (UK) LTD,968498
Fareham Borough Council,http://statistics.data.gov.uk/id/local-authority/24UE,GENERAL FUND HOUSING,BV05,HOUSING BENEFIT ADMINISTRATION,BV05H,DEPARTMENT OF OPERATIONS,SUPPLIES & SERVICES,4,Information Communication Technology,27,SOFTWARE LICENCES,4530,19/05/2017,587453,628.85 ,Revenue,NORTHGATE PUBLIC SERVICES (UK) LTD,968498
Fareham Borough Council,http://statistics.data.gov.uk/id/local-authority/24UE,GENERAL FUND HOUSING,BV05,HOUSING BENEFIT ADMINISTRATION,BV05H,DEPARTMENT OF OPERATIONS,SUPPLIES & SERVICES,4,Information Communication Technology,27,SOFTWARE LICENCES,4530,19/05/2017,587453,580.00 ,Revenue,NORTHGATE PUBLIC SERVICES (UK) LTD,968498
Fareham Borough Council,http://statistics.data.gov.uk/id/local-authority/24UE,GENERAL FUND HOUSING,BV05,HOUSING BENEFIT ADMINISTRATION,BV05H,DEPARTMENT OF OPERATIONS,SUPPLIES & SERVICES,4,Information Communication Technology,27,SOFTWARE LICENCES,4530,19/05/2017,587453,909.00 ,Revenue,NORTHGATE PUBLIC SERVICES (UK) LTD,968498
Fareham Borough Council,http://statistics.data.gov.uk/id/local-authority/24UE,GENERAL FUND HOUSING,BV05,HOUSING BENEFIT ADMINISTRATION,BV05H,DEPARTMENT OF OPERATIONS,SUPPLIES & SERVICES,4,Information Communication Technology,27,SOFTWARE LICENCES,4530,19/05/2017,587453,287.00 ,Revenue,NORTHGATE PUBLIC SERVICES (UK) LTD,968498
Fareham Borough Council,http://statistics.data.gov.uk/id/local-authority/24UE,GENERAL FUND HOUSING,BV05,HOUSING BENEFIT ADMINISTRATION,BV05H,DEPARTMENT OF OPERATIONS,SUPPLIES & SERVICES,4,Information Communication Technology,27,SOFTWARE LICENCES,4530,19/05/2017,587453,429.00 ,Revenue,NORTHGATE PUBLIC SERVICES (UK) LTD,968498
Fareham Borough Council,http://statistics.data.gov.uk/id/local-authority/24UE,ENVIRONMENT AND REGULATORY SER,BV03,STREET CLEANSING,BV03F,DEPARTMENT OF OPERATIONS,TRANSPORT RELATED EXPENDITURE,3,Vehicle Management,38,ROUTINE REPAIRS VEHICLES/PLANT,3010,19/05/2017,587455,561.75 ,Revenue,TENNANT UK CLEANING SOLUTIONS LTD,SC042491
Fareham Borough Council,http://statistics.data.gov.uk/id/local-authority/24UE,ENVIRONMENT AND REGULATORY SER,BV03,WASTE COLLECTION,BV03G,DEPARTMENT OF OPERATIONS,TRANSPORT RELATED EXPENDITURE,3,Vehicle Management,38,ROUTINE REPAIRS VEHICLES/PLANT,3010,19/05/2017,587457,130.00 ,Revenue,ADAMS MOREY LTD,00506189
Fareham Borough Council,http://statistics.data.gov.uk/id/local-authority/24UE,ENVIRONMENT AND REGULATORY SER,BV03,WASTE COLLECTION,BV03G,DEPARTMENT OF OPERATIONS,TRANSPORT RELATED EXPENDITURE,3,Vehicle Management,38,ROUTINE REPAIRS VEHICLES/PLANT,3010,19/05/2017,587457,80.00 ,Revenue,ADAMS MOREY LTD,00506189
Fareham Borough Council,http://statistics.data.gov.uk/id/local-authority/24UE,ENVIRONMENT AND REGULATORY SER,BV03,WASTE COLLECTION,BV03G,DEPARTMENT OF OPERATIONS,TRANSPORT RELATED EXPENDITURE,3,Vehicle Management,38,ROUTINE REPAIRS VEHICLES/PLANT,3010,19/05/2017,587457,23.50 ,Revenue,ADAMS MOREY LTD,00506189
Fareham Borough Council,http://statistics.data.gov.uk/id/local-authority/24UE,ENVIRONMENT AND REGULATORY SER,BV03,WASTE COLLECTION,BV03G,DEPARTMENT OF OPERATIONS,TRANSPORT RELATED EXPENDITURE,3,Vehicle Management,38,ROUTINE REPAIRS VEHICLES/PLANT,3010,19/05/2017,587457,80.00 ,Revenue,ADAMS MOREY LTD,00506189
Fareham Borough Council,http://statistics.data.gov.uk/id/local-authority/24UE,ENVIRONMENT AND REGULATORY SER,BV03,WASTE COLLECTION,BV03G,DEPARTMENT OF OPERATIONS,TRANSPORT RELATED EXPENDITURE,3,Vehicle Management,38,ROUTINE REPAIRS VEHICLES/PLANT,3010,19/05/2017,587457,35.00 ,Revenue,ADAMS MOREY LTD,00506189
Fareham Borough Council,http://statistics.data.gov.uk/id/local-authority/24UE,ENVIRONMENT AND REGULATORY SER,BV03,WASTE COLLECTION,BV03G,DEPARTMENT OF OPERATIONS,TRANSPORT RELATED EXPENDITURE,3,Vehicle Management,38,ROUTINE REPAIRS VEHICLES/PLANT,3010,19/05/2017,587457,8.50 ,Revenue,ADAMS MOREY LTD,00506189
Fareham Borough Council,http://statistics.data.gov.uk/id/local-authority/24UE,ENVIRONMENT AND REGULATORY SER,BV03,WASTE COLLECTION,BV03G,DEPARTMENT OF OPERATIONS,TRANSPORT RELATED EXPENDITURE,3,Vehicle Management,38,ROUTINE REPAIRS VEHICLES/PLANT,3010,19/05/2017,587457,485.00 ,Revenue,ADAMS MOREY LTD,00506189
Fareham Borough Council,http://statistics.data.gov.uk/id/local-authority/24UE,ENVIRONMENT AND REGULATORY SER,BV03,WASTE COLLECTION,BV03G,DEPARTMENT OF OPERATIONS,TRANSPORT RELATED EXPENDITURE,3,Vehicle Management,38,ROUTINE REPAIRS VEHICLES/PLANT,3010,19/05/2017,587457,170.00 ,Revenue,ADAMS MOREY LTD,00506189
Fareham Borough Council,http://statistics.data.gov.uk/id/local-authority/24UE,ENVIRONMENT AND REGULATORY SER,BV03,WASTE COLLECTION,BV03G,DEPARTMENT OF OPERATIONS,TRANSPORT RELATED EXPENDITURE,3,Vehicle Management,38,ROUTINE REPAIRS VEHICLES/PLANT,3010,19/05/2017,587457,4.22 ,Revenue,ADAMS MOREY LTD,00506189
Fareham Borough Council,http://statistics.data.gov.uk/id/local-authority/24UE,ENVIRONMENT AND REGULATORY SER,BV03,WASTE COLLECTION,BV03G,DEPARTMENT OF OPERATIONS,TRANSPORT RELATED EXPENDITURE,3,Vehicle Management,38,ROUTINE REPAIRS VEHICLES/PLANT,3010,19/05/2017,587457,8.98 ,Revenue,ADAMS MOREY LTD,00506189
Fareham Borough Council,http://statistics.data.gov.uk/id/local-authority/24UE,ENVIRONMENT AND REGULATORY SER,BV03,WASTE COLLECTION,BV03G,DEPARTMENT OF OPERATIONS,TRANSPORT RELATED EXPENDITURE,3,Vehicle Management,38,ROUTINE REPAIRS VEHICLES/PLANT,3010,19/05/2017,587457,4.80 ,Revenue,ADAMS MOREY LTD,00506189
Fareham Borough Council,http://statistics.data.gov.uk/id/local-authority/24UE,CORPORATE & DEMOCRATIC CORE,BV07A,CORPORATE MANAGEMENT,BV07AB,DEPT of FINANCE and RESOURCES,EMPLOYEES RELATED EXPENDITURE,1,Financial Services,20,APPRENTICESHIP LEVY,1912,19/05/2017,587475,3771.00 ,Revenue,INLAND REVENUE,
Fareham Borough Council,http://statistics.data.gov.uk/id/local-authority/24UE,CULTURAL AND RELATED SERVICES,BV09,CULTURE AND HERITAGE,BV09A,DEPARTMENT OF OPERATIONS,SUPPLIES & SERVICES,4,Financial Services,20,SECURITY SERVICES,4409,19/05/2017,587491,40.21 ,Revenue,KEYLINE CHARTERED SECURITY LTD,3754578
Fareham Borough Council,http://statistics.data.gov.uk/id/local-authority/24UE,HIGHWAYS ROADS AND TRANSPORT,BV12,PARKING SERVICES,BV12D,DEPARTMENT OF OPERATIONS,SUPPLIES & SERVICES,4,Financial Services,20,SECURITY SERVICES,4409,19/05/2017,587491,4498.22 ,Revenue,KEYLINE CHARTERED SECURITY LTD,3754578
Fareham Borough Council,http://statistics.data.gov.uk/id/local-authority/24UE,OTHER REVENUE ACCOUNTS,RV,NON WORK GROUP HOLDING ACCOUNT,RV18,DEPT of FINANCE and RESOURCES,SUPPLIES & SERVICES,4,Financial Services,20,SECURITY SERVICES,4409,19/05/2017,587491,40.22 ,Revenue,KEYLINE CHARTERED SECURITY LTD,3754578
Fareham Borough Council,http://statistics.data.gov.uk/id/local-authority/24UE,CAPITAL PROGRAMME - OTHER SERVICES,CP,DSO VEHICLES & PLANT PURCHASES,CP23,CAPITAL - DSO VEHICLES & PLANT PURCHASES,TRANSPORT RELATED EXPENDITURE,3,Vehicle Management,38,PURCHASE OF VEHICLES,3000,19/05/2017,587503,11450.00 ,Capital,CARTERS OF SWANWICK LTD,00387507
Fareham Borough Council,http://statistics.data.gov.uk/id/local-authority/24UE,CAPITAL PROGRAMME - OTHER SERVICES,CP,DSO VEHICLES & PLANT PURCHASES,CP23,CAPITAL - DSO VEHICLES & PLANT PURCHASES,TRANSPORT RELATED EXPENDITURE,3,Vehicle Management,38,PURCHASE OF VEHICLES,3000,19/05/2017,587503,235.00 ,Capital,CARTERS OF SWANWICK LTD,00387507
Fareham Borough Council,http://statistics.data.gov.uk/id/local-authority/24UE,CORPORATE & DEMOCRATIC CORE,BV07A,DEMOCRATIC REP.& MANAGEMENT,BV07AA,DEPT of FINANCE and RESOURCES,SUPPLIES & SERVICES,4,Catering,11,FOOD,4100,19/05/2017,587517,3664.50 ,Revenue,WRIGHT CHOICE CATERING,08448051
Fareham Borough Council,http://statistics.data.gov.uk/id/local-authority/24UE,OTHER REVENUE ACCOUNTS,RV,NON WORK GROUP HOLDING ACCOUNT,RV18,DEPT of FINANCE and RESOURCES,PREMISES RELATED EXPENDITURE,2,"Works - Construction, Repair & Maintenance",39,R & M OF FIXED PLANT,2040,19/05/2017,587519,1810.81 ,Revenue,ACE FILTRATION LTD,1734727
Fareham Borough Council,http://statistics.data.gov.uk/id/local-authority/24UE,OTHER REVENUE ACCOUNTS,RV,NON WORK GROUP HOLDING ACCOUNT,RV18,DEPT of FINANCE and RESOURCES,PREMISES RELATED EXPENDITURE,2,Information Communication Technology,27,R & M OF BUILDINGS,2000,19/05/2017,587524,2315.73 ,Revenue,DEEMROSE LIMITED,1730051
Fareham Borough Council,http://statistics.data.gov.uk/id/local-authority/24UE,OTHER REVENUE ACCOUNTS,RV,NON WORK GROUP HOLDING ACCOUNT,RV18,DEPT of FINANCE and RESOURCES,PREMISES RELATED EXPENDITURE,2,Facilities & Management Services,19,R & M OF BUILDINGS,2000,25/05/2017,587525,1165.60 ,Revenue,HONEYWELL CONTROL SYSTEMS LTD,00217803
Fareham Borough Council,http://statistics.data.gov.uk/id/local-authority/24UE,OTHER REVENUE ACCOUNTS,RV,NON WORK GROUP HOLDING ACCOUNT,RV18,DEPT of FINANCE and RESOURCES,PREMISES RELATED EXPENDITURE,2,Unclassified,,R & M OF FIXED PLANT,2040,19/05/2017,587526,5396.00 ,Revenue,ICS COOL ENERGY LTD,
Fareham Borough Council,http://statistics.data.gov.uk/id/local-authority/24UE,CULTURAL AND RELATED SERVICES,BV09,RECREATION AND SPORT,BV09B,DEPARTMENT OF OPERATIONS,PREMISES RELATED EXPENDITURE,2,Environmental Services,18,R & M OF BUILDINGS,2000,19/05/2017,587544,700.00 ,Revenue,R H INSULATION SERVICES LIMITED,02062526
Fareham Borough Council,http://statistics.data.gov.uk/id/local-authority/24UE,CAPITAL PROGRAMME - OTHER SERVICES,CP,SCHEMES FUNDED FROM BALANCES,CP20,CAPITAL - SCHEMES FUNDED FROM BALANCES,SUPPLIES & SERVICES,4,Legal Services,28,LEGAL FEES,4400,19/05/2017,587548,12582.85 ,Capital,VEALE WASBROUGH VIZARDS,OC384033
Fareham Borough Council,http://statistics.data.gov.uk/id/local-authority/24UE,CULTURAL AND RELATED SERVICES,BV09,CULTURE AND HERITAGE,BV09A,DEPARTMENT OF OPERATIONS,SUPPLIES & SERVICES,4,Information Communication Technology,27,STATIONERY,4320,19/05/2017,587555,1000.62 ,Revenue,PREMIER ROLLS (SOUTH) LTD,02221591
Fareham Borough Council,http://statistics.data.gov.uk/id/local-authority/24UE,HIGHWAYS ROADS AND TRANSPORT,BV12,PUBLIC TRANSPORT,BV12E,DEPARTMENT OF OPERATIONS,SUPPLIES & SERVICES,4,Unclassified,,GRANTS AND SUBSCRIPTIONS,4700,19/05/2017,587556,7350.00 ,Revenue,COMMUNITY ACTION FAREHAM,
Fareham Borough Council,http://statistics.data.gov.uk/id/local-authority/24UE,CULTURAL AND RELATED SERVICES,BV09,RECREATION AND SPORT,BV09B,DEPARTMENT OF OPERATIONS,SUPPLIES & SERVICES,4,Building Construction Materials,10,MATERIALS (OPERATIONAL),4007,19/05/2017,587580,110.87 ,Revenue,WILTS ELECTRICAL WHOLESALERS,00679117
Fareham Borough Council,http://statistics.data.gov.uk/id/local-authority/24UE,CAPITAL PROGRAMME - HOUSING SERVICES,CP,RENOVATION OF L.A. DWELLINGS,CP10,CAPITAL - IMPROVEMENTS WORK/MODERNIS'N,SUPPLIES & SERVICES,4,Building Construction Materials,10,MATERIALS (OPERATIONAL),4007,19/05/2017,587580,87.55 ,Capital,WILTS ELECTRICAL WHOLESALERS,00679117
Fareham Borough Council,http://statistics.data.gov.uk/id/local-authority/24UE,HOUSING REVENUE ACCOUNT,BV06,RESPONSIVE & VOID MAINTENANCE,5901,DEPARTMENT OF OPERATIONS,PREMISES RELATED EXPENDITURE,2,Building Construction Materials,10,VOID COSTS - NOT RECHARGEABLE,2011,19/05/2017,587580,1195.83 ,Revenue,WILTS ELECTRICAL WHOLESALERS,00679117
Fareham Borough Council,http://statistics.data.gov.uk/id/local-authority/24UE,HOUSING REVENUE ACCOUNT,BV06,RESPONSIVE & VOID MAINTENANCE,5901,DEPARTMENT OF OPERATIONS,SUPPLIES & SERVICES,4,Building Construction Materials,10,MATERIALS (OPERATIONAL),4007,19/05/2017,587580,1164.13 ,Revenue,WILTS ELECTRICAL WHOLESALERS,00679117
Fareham Borough Council,http://statistics.data.gov.uk/id/local-authority/24UE,OTHER REVENUE ACCOUNTS,RV,NON WORK GROUP HOLDING ACCOUNT,RV18,DEPT of FINANCE and RESOURCES,SUPPLIES & SERVICES,4,Building Construction Materials,10,MATERIALS (OPERATIONAL),4007,19/05/2017,587580,27.83 ,Revenue,WILTS ELECTRICAL WHOLESALERS,00679117
Fareham Borough Council,http://statistics.data.gov.uk/id/local-authority/24UE,GENERAL FUND HOUSING,BV05,HOMELESSNESS,BV05F,DEPARTMENT OF OPERATIONS,SUPPLIES & SERVICES,4,Building Construction Materials,10,MATERIALS (OPERATIONAL),4007,19/05/2017,587581,44.29 ,Revenue,ELLIOTT BROTHERS LIMITED,02511005
Fareham Borough Council,http://statistics.data.gov.uk/id/local-authority/24UE,CAPITAL PROGRAMME - HOUSING SERVICES,CP,RENOVATION OF L.A. DWELLINGS,CP10,CAPITAL - IMPROVEMENTS WORK/MODERNIS'N,SUPPLIES & SERVICES,4,Building Construction Materials,10,MATERIALS (OPERATIONAL),4007,19/05/2017,587581,26.21 ,Capital,ELLIOTT BROTHERS LIMITED,02511005
Fareham Borough Council,http://statistics.data.gov.uk/id/local-authority/24UE,CAPITAL PROGRAMME - HOUSING SERVICES,CP,RENOVATION OF L.A. DWELLINGS,CP10,CAPITAL - IMPROVEMENTS WORK/MODERNIS'N,SUPPLIES & SERVICES,4,Building Construction Materials,10,MATERIALS (OPERATIONAL),4007,19/05/2017,587581,15.73 ,Capital,ELLIOTT BROTHERS LIMITED,02511005
Fareham Borough Council,http://statistics.data.gov.uk/id/local-authority/24UE,CAPITAL PROGRAMME - HOUSING SERVICES,CP,RENOVATION OF L.A. DWELLINGS,CP10,CAPITAL - IMPROVEMENTS WORK/MODERNIS'N,SUPPLIES & SERVICES,4,Building Construction Materials,10,MATERIALS (OPERATIONAL),4007,19/05/2017,587581,15.77 ,Capital,ELLIOTT BROTHERS LIMITED,02511005
Fareham Borough Council,http://statistics.data.gov.uk/id/local-authority/24UE,HOUSING REVENUE ACCOUNT,BV06,RESPONSIVE & VOID MAINTENANCE,5901,DEPARTMENT OF OPERATIONS,SUPPLIES & SERVICES,4,Building Construction Materials,10,MATERIALS (OPERATIONAL),4007,19/05/2017,587581,1352.38 ,Revenue,ELLIOTT BROTHERS LIMITED,02511005
Fareham Borough Council,http://statistics.data.gov.uk/id/local-authority/24UE,OTHER REVENUE ACCOUNTS,RV,CONTRACT SERVICES D.S.O.,RV14,DEPARTMENT OF OPERATIONS,SUPPLIES & SERVICES,4,Building Construction Materials,10,MATERIALS (OPERATIONAL),4007,19/05/2017,587581,709.25 ,Revenue,ELLIOTT BROTHERS LIMITED,02511005
Fareham Borough Council,http://statistics.data.gov.uk/id/local-authority/24UE,OTHER REVENUE ACCOUNTS,RV,CONTRACT SERVICES D.S.O.,RV14,DEPARTMENT OF OPERATIONS,SUPPLIES & SERVICES,4,Building Construction Materials,10,TOOLS & EQUIPMENT,4002,19/05/2017,587581,758.30 ,Revenue,ELLIOTT BROTHERS LIMITED,02511005
Fareham Borough Council,http://statistics.data.gov.uk/id/local-authority/24UE,HOUSING REVENUE ACCOUNT,BV06,RESPONSIVE & VOID MAINTENANCE,5901,DEPARTMENT OF OPERATIONS,SUPPLIES & SERVICES,4,Building Construction Materials,10,MATERIALS (OPERATIONAL),4007,19/05/2017,587587,588.03 ,Revenue,WILLIAMS TRADE SUPPLIES LTD,1864711
Fareham Borough Council,http://statistics.data.gov.uk/id/local-authority/24UE,OTHER REVENUE ACCOUNTS,RV,CONTRACT SERVICES D.S.O.,RV14,DEPARTMENT OF OPERATIONS,SUPPLIES & SERVICES,4,Building Construction Materials,10,MATERIALS (OPERATIONAL),4007,19/05/2017,587587,254.19 ,Revenue,WILLIAMS TRADE SUPPLIES LTD,1864711
Fareham Borough Council,http://statistics.data.gov.uk/id/local-authority/24UE,OTHER REVENUE ACCOUNTS,RV,NON WORK GROUP HOLDING ACCOUNT,RV18,DEPT of FINANCE and RESOURCES,SUPPLIES & SERVICES,4,Building Construction Materials,10,MATERIALS (OPERATIONAL),4007,19/05/2017,587587,27.45 ,Revenue,WILLIAMS TRADE SUPPLIES LTD,1864711
Fareham Borough Council,http://statistics.data.gov.uk/id/local-authority/24UE,OTHER REVENUE ACCOUNTS,RV,NON WORK GROUP HOLDING ACCOUNT,RV18,DEPT of FINANCE and RESOURCES,SUPPLIES & SERVICES,4,Building Construction Materials,10,MATERIALS (OPERATIONAL),4007,19/05/2017,587587,33.27 ,Revenue,WILLIAMS TRADE SUPPLIES LTD,1864711
Fareham Borough Council,http://statistics.data.gov.uk/id/local-authority/24UE,GENERAL FUND HOUSING,BV05,HOMELESSNESS,BV05F,DEPARTMENT OF OPERATIONS,SUPPLIES & SERVICES,4,Building Construction Materials,10,MATERIALS (OPERATIONAL),4007,19/05/2017,587588,7.02 ,Revenue,WILLIAMS TRADE SUPPLIES LTD,1864711
Fareham Borough Council,http://statistics.data.gov.uk/id/local-authority/24UE,CULTURAL AND RELATED SERVICES,BV09,RECREATION AND SPORT,BV09B,DEPARTMENT OF OPERATIONS,SUPPLIES & SERVICES,4,Building Construction Materials,10,MATERIALS (OPERATIONAL),4007,19/05/2017,587588,14.40 ,Revenue,WILLIAMS TRADE SUPPLIES LTD,1864711
Fareham Borough Council,http://statistics.data.gov.uk/id/local-authority/24UE,HOUSING REVENUE ACCOUNT,BV06,RESPONSIVE & VOID MAINTENANCE,5901,DEPARTMENT OF OPERATIONS,SUPPLIES & SERVICES,4,Building Construction Materials,10,MATERIALS (OPERATIONAL),4007,19/05/2017,587588,389.05 ,Revenue,WILLIAMS TRADE SUPPLIES LTD,1864711
Fareham Borough Council,http://statistics.data.gov.uk/id/local-authority/24UE,OTHER REVENUE ACCOUNTS,RV,CONTRACT SERVICES D.S.O.,RV14,DEPARTMENT OF OPERATIONS,SUPPLIES & SERVICES,4,Building Construction Materials,10,MATERIALS (OPERATIONAL),4007,19/05/2017,587588,1389.83 ,Revenue,WILLIAMS TRADE SUPPLIES LTD,1864711
Fareham Borough Council,http://statistics.data.gov.uk/id/local-authority/24UE,OTHER REVENUE ACCOUNTS,RV,NON WORK GROUP HOLDING ACCOUNT,RV18,DEPT of FINANCE and RESOURCES,SUPPLIES & SERVICES,4,Building Construction Materials,10,MATERIALS (OPERATIONAL),4007,19/05/2017,587588,12.40 ,Revenue,WILLIAMS TRADE SUPPLIES LTD,1864711
Fareham Borough Council,http://statistics.data.gov.uk/id/local-authority/24UE,OTHER REVENUE ACCOUNTS,RV,NON WORK GROUP HOLDING ACCOUNT,RV18,DEPT of FINANCE and RESOURCES,SUPPLIES & SERVICES,4,Building Construction Materials,10,MATERIALS (OPERATIONAL),4007,19/05/2017,587588,144.40 ,Revenue,WILLIAMS TRADE SUPPLIES LTD,1864711
Fareham Borough Council,http://statistics.data.gov.uk/id/local-authority/24UE,CORPORATE & DEMOCRATIC CORE,BV07A,CORPORATE MANAGEMENT,BV07AB,DEPT of FINANCE and RESOURCES,SUPPLIES & SERVICES,4,Financial Services,20,BANK CHARGES,4954,19/05/2017,587591,2525.22 ,Revenue,CAPITA BUSINESS SERVICES LTD,02299747
Fareham Borough Council,http://statistics.data.gov.uk/id/local-authority/24UE,OTHER REVENUE ACCOUNTS,RV,CONTRACT SERVICES D.S.O.,RV14,DEPT of STRATEGIC PLANNING and ENVIRONMENT,SUPPLIES & SERVICES,4,Local/Central Government,98,SUB-CONTRACTORS CHARGES,4432,19/05/2017,587593,658.00 ,Revenue,EAST HAMPSHIRE DISTRICT COUNCIL,
Fareham Borough Council,http://statistics.data.gov.uk/id/local-authority/24UE,OTHER REVENUE ACCOUNTS,RV,CONTRACT SERVICES D.S.O.,RV14,DEPT of STRATEGIC PLANNING and ENVIRONMENT,SUPPLIES & SERVICES,4,Consultancy,15,GRANTS AND SUBSCRIPTIONS,4700,19/05/2017,587596,926.00 ,Revenue,BSI MANAGEMENT SYSTEMS,07805321
Fareham Borough Council,http://statistics.data.gov.uk/id/local-authority/24UE,OTHER REVENUE ACCOUNTS,RV,CONTRACT SERVICES D.S.O.,RV14,DEPT of STRATEGIC PLANNING and ENVIRONMENT,SUPPLIES & SERVICES,4,Consultancy,15,GRANTS AND SUBSCRIPTIONS,4700,19/05/2017,587597,620.00 ,Revenue,BSI MANAGEMENT SYSTEMS,07805321
Fareham Borough Council,http://statistics.data.gov.uk/id/local-authority/24UE,CULTURAL AND RELATED SERVICES,BV09,RECREATION AND SPORT,BV09B,DEPARTMENT OF OPERATIONS,PREMISES RELATED EXPENDITURE,2,Horticultural,24,R&M OF TREE PRESERVATION,2063,19/05/2017,587600,2117.50 ,Revenue,SHAWYERS TREE SPECIALISTS,07350007
Fareham Borough Council,http://statistics.data.gov.uk/id/local-authority/24UE,CULTURAL AND RELATED SERVICES,BV09,RECREATION AND SPORT,BV09B,DEPARTMENT OF OPERATIONS,PREMISES RELATED EXPENDITURE,2,Horticultural,24,R&M OF TREE PRESERVATION,2063,19/05/2017,587600,2117.50 ,Revenue,SHAWYERS TREE SPECIALISTS,07350007
Fareham Borough Council,http://statistics.data.gov.uk/id/local-authority/24UE,CULTURAL AND RELATED SERVICES,BV09,RECREATION AND SPORT,BV09B,DEPARTMENT OF OPERATIONS,PREMISES RELATED EXPENDITURE,2,Horticultural,24,R&M OF TREE PRESERVATION,2063,19/05/2017,587600,55.50 ,Revenue,SHAWYERS TREE SPECIALISTS,07350007
Fareham Borough Council,http://statistics.data.gov.uk/id/local-authority/24UE,CULTURAL AND RELATED SERVICES,BV09,RECREATION AND SPORT,BV09B,DEPARTMENT OF OPERATIONS,PREMISES RELATED EXPENDITURE,2,Horticultural,24,R&M OF TREE PRESERVATION,2063,19/05/2017,587600,39.50 ,Revenue,SHAWYERS TREE SPECIALISTS,07350007
Fareham Borough Council,http://statistics.data.gov.uk/id/local-authority/24UE,CULTURAL AND RELATED SERVICES,BV09,RECREATION AND SPORT,BV09B,DEPARTMENT OF OPERATIONS,PREMISES RELATED EXPENDITURE,2,Horticultural,24,R&M OF TREE PRESERVATION,2063,19/05/2017,587600,17.00 ,Revenue,SHAWYERS TREE SPECIALISTS,07350007
Fareham Borough Council,http://statistics.data.gov.uk/id/local-authority/24UE,CULTURAL AND RELATED SERVICES,BV09,RECREATION AND SPORT,BV09B,DEPARTMENT OF OPERATIONS,PREMISES RELATED EXPENDITURE,2,Horticultural,24,R&M OF TREE PRESERVATION,2063,19/05/2017,587600,67.50 ,Revenue,SHAWYERS TREE SPECIALISTS,07350007
Fareham Borough Council,http://statistics.data.gov.uk/id/local-authority/24UE,CULTURAL AND RELATED SERVICES,BV09,RECREATION AND SPORT,BV09B,DEPARTMENT OF OPERATIONS,PREMISES RELATED EXPENDITURE,2,Horticultural,24,R&M OF TREE PRESERVATION,2063,19/05/2017,587600,1492.50 ,Revenue,SHAWYERS TREE SPECIALISTS,07350007
Fareham Borough Council,http://statistics.data.gov.uk/id/local-authority/24UE,CULTURAL AND RELATED SERVICES,BV09,RECREATION AND SPORT,BV09B,DEPARTMENT OF OPERATIONS,PREMISES RELATED EXPENDITURE,2,Horticultural,24,R&M OF TREE PRESERVATION,2063,19/05/2017,587600,206.50 ,Revenue,SHAWYERS TREE SPECIALISTS,07350007
Fareham Borough Council,http://statistics.data.gov.uk/id/local-authority/24UE,ENVIRONMENT AND REGULATORY SER,BV03,WASTE COLLECTION,BV03G,DEPARTMENT OF OPERATIONS,EMPLOYEES RELATED EXPENDITURE,1,Human Resources,26,AGENCY WORKERS,1050,19/05/2017,587602,6289.80 ,Revenue,BUZZ PEOPLE RECRUITMENT LTD,07908887
Fareham Borough Council,http://statistics.data.gov.uk/id/local-authority/24UE,ENVIRONMENT AND REGULATORY SER,BV03,WASTE COLLECTION,BV03G,DEPARTMENT OF OPERATIONS,EMPLOYEES RELATED EXPENDITURE,1,Human Resources,26,AGENCY WORKERS,1050,19/05/2017,587602,301.43 ,Revenue,BUZZ PEOPLE RECRUITMENT LTD,07908887
Fareham Borough Council,http://statistics.data.gov.uk/id/local-authority/24UE,ENVIRONMENT AND REGULATORY SER,BV03,WASTE COLLECTION,BV03G,DEPARTMENT OF OPERATIONS,EMPLOYEES RELATED EXPENDITURE,1,Human Resources,26,AGENCY WORKERS,1050,19/05/2017,587602,3953.90 ,Revenue,BUZZ PEOPLE RECRUITMENT LTD,07908887
Fareham Borough Council,http://statistics.data.gov.uk/id/local-authority/24UE,ENVIRONMENT AND REGULATORY SER,BV03,WASTE COLLECTION,BV03G,DEPARTMENT OF OPERATIONS,EMPLOYEES RELATED EXPENDITURE,1,Human Resources,26,AGENCY WORKERS,1050,19/05/2017,587602,8785.72 ,Revenue,BUZZ PEOPLE RECRUITMENT LTD,07908887
Fareham Borough Council,http://statistics.data.gov.uk/id/local-authority/24UE,OTHER REVENUE ACCOUNTS,RV,CONTRACT SERVICES D.S.O.,RV14,DEPARTMENT OF OPERATIONS,SUPPLIES & SERVICES,4,Environmental Services,18,TIPPING / INCINERATOR FEES,4425,19/05/2017,587603,1172.50 ,Revenue,VEOLIA ES HAMPSHIRE LIMITED,02817856
Fareham Borough Council,http://statistics.data.gov.uk/id/local-authority/24UE,HOUSING REVENUE ACCOUNT,BV06,RESPONSIVE & VOID MAINTENANCE,5901,DEPARTMENT OF OPERATIONS,PREMISES RELATED EXPENDITURE,2,Environmental Services,18,SPECIAL REFUSE COLLECTIONS,2750,19/05/2017,587604,1745.10 ,Revenue,VEOLIA ES HAMPSHIRE LIMITED,02817856
Fareham Borough Council,http://statistics.data.gov.uk/id/local-authority/24UE,OTHER REVENUE ACCOUNTS,RV,NON WORK GROUP HOLDING ACCOUNT,RV18,DEPT of FINANCE and RESOURCES,THIRD PARTY PAYMENTS,5,Financial Services,20,AUDIT CONTRACT,5601,19/05/2017,587611,13434.90 ,Revenue,MAZARS LLP,OC308299
Fareham Borough Council,http://statistics.data.gov.uk/id/local-authority/24UE,OTHER REVENUE ACCOUNTS,RV,NON WORK GROUP HOLDING ACCOUNT,RV18,DEPT of FINANCE and RESOURCES,THIRD PARTY PAYMENTS,5,Financial Services,20,AUDIT CONTRACT,5601,19/05/2017,587611,22925.65 ,Revenue,MAZARS LLP,OC308299
Fareham Borough Council,http://statistics.data.gov.uk/id/local-authority/24UE,OTHER REVENUE ACCOUNTS,RV,CONTRACT SERVICES D.S.O.,RV14,DEPARTMENT OF OPERATIONS,SUPPLIES & SERVICES,4,Horticultural,24,MATERIALS (OPERATIONAL),4007,19/05/2017,587612,6208.00 ,Revenue,RIGBY TAYLOR LTD,00157345
Fareham Borough Council,http://statistics.data.gov.uk/id/local-authority/24UE,OTHER REVENUE ACCOUNTS,RV,CONTRACT SERVICES D.S.O.,RV14,DEPARTMENT OF OPERATIONS,SUPPLIES & SERVICES,4,Horticultural,24,MATERIALS (OPERATIONAL),4007,19/05/2017,587612,175.83 ,Revenue,RIGBY TAYLOR LTD,00157345
Fareham Borough Council,http://statistics.data.gov.uk/id/local-authority/24UE,OTHER REVENUE ACCOUNTS,RV,CONTRACT SERVICES D.S.O.,RV14,DEPARTMENT OF OPERATIONS,SUPPLIES & SERVICES,4,Horticultural,24,MATERIALS (OPERATIONAL),4007,19/05/2017,587612,376.00 ,Revenue,RIGBY TAYLOR LTD,00157345
Fareham Borough Council,http://statistics.data.gov.uk/id/local-authority/24UE,ENVIRONMENT AND REGULATORY SER,BV03,CEMETERIES CREM & MORTUARY,BV03A,DEPARTMENT OF OPERATIONS,SUPPLIES & SERVICES,4,Cemetery & Crematorium,12,MISCELLANEOUS EXPENDITURE,4970,19/05/2017,587615,595.00 ,Revenue,A H FREEMANTLE LTD,04690394
Fareham Borough Council,http://statistics.data.gov.uk/id/local-authority/24UE,ENVIRONMENT AND REGULATORY SER,BV03,CEMETERIES CREM & MORTUARY,BV03A,DEPARTMENT OF OPERATIONS,SUPPLIES & SERVICES,4,Cemetery & Crematorium,12,MISCELLANEOUS EXPENDITURE,4970,19/05/2017,587615,40.00 ,Revenue,A H FREEMANTLE LTD,04690394
Fareham Borough Council,http://statistics.data.gov.uk/id/local-authority/24UE,ENVIRONMENT AND REGULATORY SER,BV03,CEMETERIES CREM & MORTUARY,BV03A,DEPARTMENT OF OPERATIONS,SUPPLIES & SERVICES,4,Cemetery & Crematorium,12,MISCELLANEOUS EXPENDITURE,4970,19/05/2017,587615,276.90 ,Revenue,A H FREEMANTLE LTD,04690394
Fareham Borough Council,http://statistics.data.gov.uk/id/local-authority/24UE,HIGHWAYS ROADS AND TRANSPORT,BV12,PUBLIC TRANSPORT,BV12E,DEPARTMENT OF OPERATIONS,PREMISES RELATED EXPENDITURE,2,Highway Equipment & Materials�,23,R & M OF BUILDINGS,2000,19/05/2017,587620,1460.00 ,Revenue,QUEENSBURY SHELTERS,3822195
Fareham Borough Council,http://statistics.data.gov.uk/id/local-authority/24UE,CAPITAL PROGRAMME - OTHER SERVICES,CP,SCHEMES FUNDED FROM BALANCES,CP20,CAPITAL - SCHEMES FUNDED FROM BALANCES,SUPPLIES & SERVICES,4,Consultancy,15,CONSULTANTS FEES,4401,19/05/2017,587670,4089.75 ,Capital,PICK EVERARD,
Fareham Borough Council,http://statistics.data.gov.uk/id/local-authority/24UE,HOUSING REVENUE ACCOUNT,BV06,COMMUNAL HEATING SERVICES,5025,DEPARTMENT OF OPERATIONS,PREMISES RELATED EXPENDITURE,2,Utilities,37,ELECTRICITY,2120,19/05/2017,587700,698.63 ,Revenue,BRITISH GAS BUSINESS,03078711
Fareham Borough Council,http://statistics.data.gov.uk/id/local-authority/24UE,OTHER REVENUE ACCOUNTS,RV,NON WORK GROUP HOLDING ACCOUNT,RV18,DEPT of FINANCE and RESOURCES,INTERNAL RECHARGES,7,Local/Central Government,98,STREET CLEANSING RECHARGE,7901,19/05/2017,587708,15174.04 ,Revenue,GOSPORT BOROUGH COUNCIL,
Fareham Borough Council,http://statistics.data.gov.uk/id/local-authority/24UE,ENVIRONMENT AND REGULATORY SER,BV03,CEMETERIES CREM & MORTUARY,BV03A,DEPARTMENT OF OPERATIONS,PREMISES RELATED EXPENDITURE,2,Building Construction Materials,10,R & M OF BUILDINGS,2000,19/05/2017,587715,26.89 ,Revenue,TSG BUILDING SERVICES,03908728
Fareham Borough Council,http://statistics.data.gov.uk/id/local-authority/24UE,CULTURAL AND RELATED SERVICES,BV09,RECREATION AND SPORT,BV09B,DEPARTMENT OF OPERATIONS,PREMISES RELATED EXPENDITURE,2,Building Construction Materials,10,R & M OF BUILDINGS,2000,19/05/2017,587715,100.15 ,Revenue,TSG BUILDING SERVICES,03908728
Fareham Borough Council,http://statistics.data.gov.uk/id/local-authority/24UE,CULTURAL AND RELATED SERVICES,BV09,CULTURE AND HERITAGE,BV09A,DEPARTMENT OF OPERATIONS,PREMISES RELATED EXPENDITURE,2,Building Construction Materials,10,R & M OF BUILDINGS,2000,19/05/2017,587715,97.38 ,Revenue,TSG BUILDING SERVICES,03908728
Fareham Borough Council,http://statistics.data.gov.uk/id/local-authority/24UE,CULTURAL AND RELATED SERVICES,BV09,RECREATION AND SPORT,BV09B,DEPARTMENT OF OPERATIONS,PREMISES RELATED EXPENDITURE,2,Building Construction Materials,10,R & M OF BUILDINGS,2000,19/05/2017,587715,100.15 ,Revenue,TSG BUILDING SERVICES,03908728
Fareham Borough Council,http://statistics.data.gov.uk/id/local-authority/24UE,CAPITAL PROGRAMME - HOUSING SERVICES,CP,RENOVATION OF L.A. DWELLINGS,CP10,CAPITAL - IMPROVEMENTS WORK/MODERNIS'N,PREMISES RELATED EXPENDITURE,2,Building Construction Materials,10,R & M OF BUILDINGS,2000,19/05/2017,587715,29674.56 ,Capital,TSG BUILDING SERVICES,03908728
Fareham Borough Council,http://statistics.data.gov.uk/id/local-authority/24UE,HOUSING REVENUE ACCOUNT,BV06,RESPONSIVE & VOID MAINTENANCE,5901,DEPARTMENT OF OPERATIONS,PREMISES RELATED EXPENDITURE,2,Building Construction Materials,10,GAS SERVICING & ASSOC REPAIRS,2029,19/05/2017,587715,26459.02 ,Revenue,TSG BUILDING SERVICES,03908728
Fareham Borough Council,http://statistics.data.gov.uk/id/local-authority/24UE,OTHER REVENUE ACCOUNTS,RV,NON WORK GROUP HOLDING ACCOUNT,RV18,DEPT of FINANCE and RESOURCES,PREMISES RELATED EXPENDITURE,2,Building Construction Materials,10,R & M OF FIXED PLANT,2040,19/05/2017,587715,74.20 ,Revenue,TSG BUILDING SERVICES,03908728
Fareham Borough Council,http://statistics.data.gov.uk/id/local-authority/24UE,OTHER REVENUE ACCOUNTS,RV,NON WORK GROUP HOLDING ACCOUNT,RV18,DEPT of FINANCE and RESOURCES,PREMISES RELATED EXPENDITURE,2,Building Construction Materials,10,R & M OF FIXED PLANT,2040,19/05/2017,587715,96.42 ,Revenue,TSG BUILDING SERVICES,03908728
Fareham Borough Council,http://statistics.data.gov.uk/id/local-authority/24UE,GENERAL FUND HOUSING,BV05,HOMELESSNESS,BV05F,DEPARTMENT OF OPERATIONS,SUPPLIES & SERVICES,4,Building Construction Materials,10,MATERIALS (OPERATIONAL),4007,19/05/2017,587716,1286.49 ,Revenue,SPECIALIST BUILDING DISTRIBUTION LTD,2599297
Fareham Borough Council,http://statistics.data.gov.uk/id/local-authority/24UE,CAPITAL PROGRAMME - HOUSING SERVICES,CP,RENOVATION OF L.A. DWELLINGS,CP10,CAPITAL - IMPROVEMENTS WORK/MODERNIS'N,SUPPLIES & SERVICES,4,Building Construction Materials,10,MATERIALS (OPERATIONAL),4007,19/05/2017,587720,1743.03 ,Capital,SPECIALIST BUILDING DISTRIBUTION LTD,2599297
Fareham Borough Council,http://statistics.data.gov.uk/id/local-authority/24UE,CAPITAL PROGRAMME - HOUSING SERVICES,CP,RENOVATION OF L.A. DWELLINGS,CP10,CAPITAL - IMPROVEMENTS WORK/MODERNIS'N,SUPPLIES & SERVICES,4,Building Construction Materials,10,MATERIALS (OPERATIONAL),4007,19/05/2017,587721,1539.98 ,Capital,SPECIALIST BUILDING DISTRIBUTION LTD,2599297
Fareham Borough Council,http://statistics.data.gov.uk/id/local-authority/24UE,CAPITAL PROGRAMME - HOUSING SERVICES,CP,RENOVATION OF L.A. DWELLINGS,CP10,CAPITAL - IMPROVEMENTS WORK/MODERNIS'N,SUPPLIES & SERVICES,4,Building Construction Materials,10,MATERIALS (OPERATIONAL),4007,19/05/2017,587723,1563.29 ,Capital,SPECIALIST BUILDING DISTRIBUTION LTD,2599297
Fareham Borough Council,http://statistics.data.gov.uk/id/local-authority/24UE,CAPITAL PROGRAMME - HOUSING SERVICES,CP,RENOVATION OF L.A. DWELLINGS,CP10,CAPITAL - IMPROVEMENTS WORK/MODERNIS'N,SUPPLIES & SERVICES,4,Building Construction Materials,10,MATERIALS (OPERATIONAL),4007,19/05/2017,587725,2018.86 ,Capital,SPECIALIST BUILDING DISTRIBUTION LTD,2599297
Fareham Borough Council,http://statistics.data.gov.uk/id/local-authority/24UE,CAPITAL PROGRAMME - HOUSING SERVICES,CP,RENOVATION OF L.A. DWELLINGS,CP10,CAPITAL - IMPROVEMENTS WORK/MODERNIS'N,SUPPLIES & SERVICES,4,Building Construction Materials,10,MATERIALS (OPERATIONAL),4007,19/05/2017,587726,1285.49 ,Capital,SPECIALIST BUILDING DISTRIBUTION LTD,2599297
Fareham Borough Council,http://statistics.data.gov.uk/id/local-authority/24UE,CAPITAL PROGRAMME - OTHER SERVICES,CP,COMPUTER APPROVED,CP23,CAPITAL - COMPUTER APPROVED,SUPPLIES & SERVICES,4,Information Communication Technology,27,SOFTWARE LICENCES,4530,19/05/2017,587741,625.00 ,Capital,ADVANCED BUSINESS SOLUTIONS,03214465
Fareham Borough Council,http://statistics.data.gov.uk/id/local-authority/24UE,CAPITAL PROGRAMME - OTHER SERVICES,CP,SCHEMES FUNDED FROM BALANCES,CP20,CAPITAL - SCHEMES FUNDED FROM BALANCES,PREMISES RELATED EXPENDITURE,2,"Works - Construction, Repair & Maintenance",39,R & M OF BUILDINGS,2000,19/05/2017,587747,106409.30 ,Capital,MORGAN SINDALL CONSTRUCT & INFRASTRUCTURE LTD,4273754
Fareham Borough Council,http://statistics.data.gov.uk/id/local-authority/24UE,CAPITAL PROGRAMME - OTHER SERVICES,CP,SCHEMES FUNDED FROM BALANCES,CP20,CAPITAL - SCHEMES FUNDED FROM BALANCES,PREMISES RELATED EXPENDITURE,2,"Works - Construction, Repair & Maintenance",39,R & M OF BUILDINGS,2000,19/05/2017,587748,69306.83 ,Capital,MORGAN SINDALL CONSTRUCT & INFRASTRUCTURE LTD,4273754
Fareham Borough Council,http://statistics.data.gov.uk/id/local-authority/24UE,PLANNING SERVICES,BV13,DEVELOPMENT CONTROL,BV13B,DEPT of STRATEGIC PLANNING and ENVIRONMENT,SUPPLIES & SERVICES,4,Consultancy,15,CONSULTANTS FEES,4401,19/05/2017,587782,14749.95 ,Revenue,ADAMS HENDRY CONSULTING LTD,03804753
Fareham Borough Council,http://statistics.data.gov.uk/id/local-authority/24UE,ENVIRONMENT AND REGULATORY SER,BV03,COAST PROTECTION,BV03B,DEPT of STRATEGIC PLANNING and ENVIRONMENT,PREMISES RELATED EXPENDITURE,2,Environmental Services,18,R&M OF GROUNDS,2060,19/05/2017,587790,11670.35 ,Revenue,SOIL MECHANICS ASSOCIATES LTD,09691118
Fareham Borough Council,http://statistics.data.gov.uk/id/local-authority/24UE,CENTRAL SERVICES,BV07,CENTRAL SERVICES TO THE PUBLIC,BV07B,DEPT of FINANCE and RESOURCES,SUPPLIES & SERVICES,4,Facilities & Management Services,19,EXTERNAL PRINTING,4310,25/05/2017,588085,2896.00 ,Revenue,PRINT IMAGE FACILITIES LLP,OC330921
Fareham Borough Council,http://statistics.data.gov.uk/id/local-authority/24UE,OTHER REVENUE ACCOUNTS,RV,NON WORK GROUP HOLDING ACCOUNT,RV18,DEPT of FINANCE and RESOURCES,SUPPLIES & SERVICES,4,Information Communication Technology,27,SOFTWARE LICENCES,4530,25/05/2017,588087,1170.60 ,Revenue,DATA TRACK TECHNOLOGY PLC,01414963
Fareham Borough Council,http://statistics.data.gov.uk/id/local-authority/24UE,CULTURAL AND RELATED SERVICES,BV09,RECREATION AND SPORT,BV09B,DEPARTMENT OF OPERATIONS,PREMISES RELATED EXPENDITURE,2,Horticultural,24,R&M OF TREE PRESERVATION,2063,25/05/2017,588096,577.50 ,Revenue,SHAWYERS TREE SPECIALISTS,07350007
Fareham Borough Council,http://statistics.data.gov.uk/id/local-authority/24UE,CULTURAL AND RELATED SERVICES,BV09,RECREATION AND SPORT,BV09B,DEPARTMENT OF OPERATIONS,PREMISES RELATED EXPENDITURE,2,Horticultural,24,R&M OF TREE PRESERVATION,2063,25/05/2017,588096,180.00 ,Revenue,SHAWYERS TREE SPECIALISTS,07350007
Fareham Borough Council,http://statistics.data.gov.uk/id/local-authority/24UE,CULTURAL AND RELATED SERVICES,BV09,RECREATION AND SPORT,BV09B,DEPARTMENT OF OPERATIONS,PREMISES RELATED EXPENDITURE,2,Horticultural,24,R&M OF TREE PRESERVATION,2063,25/05/2017,588096,45.00 ,Revenue,SHAWYERS TREE SPECIALISTS,07350007
Fareham Borough Council,http://statistics.data.gov.uk/id/local-authority/24UE,CULTURAL AND RELATED SERVICES,BV09,RECREATION AND SPORT,BV09B,DEPARTMENT OF OPERATIONS,PREMISES RELATED EXPENDITURE,2,Horticultural,24,R&M OF TREE PRESERVATION,2063,25/05/2017,588096,225.00 ,Revenue,SHAWYERS TREE SPECIALISTS,07350007
Fareham Borough Council,http://statistics.data.gov.uk/id/local-authority/24UE,ENVIRONMENT AND REGULATORY SER,BV03,COAST PROTECTION,BV03B,DEPT of STRATEGIC PLANNING and ENVIRONMENT,SUPPLIES & SERVICES,4,Environmental Services,18,CONSULTANTS FEES,4401,25/05/2017,588097,2615.50 ,Revenue,PRE-CONSTRUCT ARCHAEOLOGY LTD,3534122
Fareham Borough Council,http://statistics.data.gov.uk/id/local-authority/24UE,CENTRAL SERVICES,BV07,CENTRAL SERVICES TO THE PUBLIC,BV07B,DEPARTMENT OF OPERATIONS,SUPPLIES & SERVICES,4,Unclassified,,CONTRIBUTION TO RUNNING EXPENS,4703,25/05/2017,588099,4000.00 ,Revenue,RELATE SOLENT,
Fareham Borough Council,http://statistics.data.gov.uk/id/local-authority/24UE,CAPITAL PROGRAMME - OTHER SERVICES,CP,SCHEMES FUNDED FROM BALANCES,CP20,CAPITAL - SCHEMES FUNDED FROM BALANCES,SUPPLIES & SERVICES,4,Consultancy,15,CONSULTANTS FEES,4401,25/05/2017,588104,2625.00 ,Capital,PICK EVERARD,
Fareham Borough Council,http://statistics.data.gov.uk/id/local-authority/24UE,OTHER REVENUE ACCOUNTS,RV,CONTRACT SERVICES D.S.O.,RV14,DEPT of STRATEGIC PLANNING and ENVIRONMENT,SUPPLIES & SERVICES,4,Financial Services,20,GRANTS AND SUBSCRIPTIONS,4700,25/05/2017,588124,16966.18 ,Revenue,IHS GLOBAL LIMITED,GB788737
Fareham Borough Council,http://statistics.data.gov.uk/id/local-authority/24UE,ENVIRONMENT AND REGULATORY SER,BV03,WASTE COLLECTION,BV03G,DEPARTMENT OF OPERATIONS,SUPPLIES & SERVICES,4,Local/Central Government,98,TIPPING / INCINERATOR FEES,4425,25/05/2017,588126,50000.00 ,Revenue,HAMPSHIRE COUNTY COUNCIL,
Fareham Borough Council,http://statistics.data.gov.uk/id/local-authority/24UE,ENVIRONMENT AND REGULATORY SER,BV03,WASTE COLLECTION,BV03G,DEPARTMENT OF OPERATIONS,SUPPLIES & SERVICES,4,Local/Central Government,98,TIPPING / INCINERATOR FEES,4425,25/05/2017,588127,118621.90 ,Revenue,HAMPSHIRE COUNTY COUNCIL,
Fareham Borough Council,http://statistics.data.gov.uk/id/local-authority/24UE,OTHER REVENUE ACCOUNTS,RV,NON WORK GROUP HOLDING ACCOUNT,RV18,DEPT of FINANCE and RESOURCES,SUPPLIES & SERVICES,4,Mail Services�,30,POSTAGES,4500,25/05/2017,588140,3000.00 ,Revenue,NEOPOST LIMITED,02658324
Fareham Borough Council,http://statistics.data.gov.uk/id/local-authority/24UE,CAPITAL PROGRAMME - HOUSING SERVICES,CP,HOUSE RENOVATION GRANTS,CP11,CAPITAL - HOUSE RENOVATION GRANTS,SUPPLIES & SERVICES,4,Unclassified,,GRANTS AND SUBSCRIPTIONS,4700,25/05/2017,588142,2840.00 ,Capital,AKP MAINTENANCE LTD,
Fareham Borough Council,http://statistics.data.gov.uk/id/local-authority/24UE,CAPITAL PROGRAMME - HOUSING SERVICES,CP,HOUSE RENOVATION GRANTS,CP11,CAPITAL - HOUSE RENOVATION GRANTS,SUPPLIES & SERVICES,4,Unclassified,,GRANTS AND SUBSCRIPTIONS,4700,25/05/2017,588143,3900.00 ,Capital,GHYLLSIDE MANUFACTURING,
Fareham Borough Council,http://statistics.data.gov.uk/id/local-authority/24UE,CAPITAL PROGRAMME - OTHER SERVICES,CP,DSO VEHICLES & PLANT PURCHASES,CP23,CAPITAL - DSO VEHICLES & PLANT PURCHASES,TRANSPORT RELATED EXPENDITURE,3,Vehicle Management,38,PURCHASE OF VEHICLES,3000,25/05/2017,588171,13250.00 ,Capital,NORTON COMMERCIALS LTD,08516595
Fareham Borough Council,http://statistics.data.gov.uk/id/local-authority/24UE,ENVIRONMENT AND REGULATORY SER,BV03,CEMETERIES CREM & MORTUARY,BV03A,DEPARTMENT OF OPERATIONS,PREMISES RELATED EXPENDITURE,2,Horticultural,24,R&M OF TREE PRESERVATION,2063,25/05/2017,588197,320.10 ,Revenue,GRISTWOOD AND TOMS LIMITED,2665293
Fareham Borough Council,http://statistics.data.gov.uk/id/local-authority/24UE,CULTURAL AND RELATED SERVICES,BV09,RECREATION AND SPORT,BV09B,DEPARTMENT OF OPERATIONS,PREMISES RELATED EXPENDITURE,2,Horticultural,24,R&M OF TREE PRESERVATION,2063,25/05/2017,588197,2560.80 ,Revenue,GRISTWOOD AND TOMS LIMITED,2665293
Fareham Borough Council,http://statistics.data.gov.uk/id/local-authority/24UE,CULTURAL AND RELATED SERVICES,BV09,RECREATION AND SPORT,BV09B,DEPARTMENT OF OPERATIONS,PREMISES RELATED EXPENDITURE,2,Horticultural,24,R&M OF TREE PRESERVATION,2063,25/05/2017,588197,586.85 ,Revenue,GRISTWOOD AND TOMS LIMITED,2665293
Fareham Borough Council,http://statistics.data.gov.uk/id/local-authority/24UE,CULTURAL AND RELATED SERVICES,BV09,RECREATION AND SPORT,BV09B,DEPARTMENT OF OPERATIONS,PREMISES RELATED EXPENDITURE,2,Horticultural,24,R&M OF TREE PRESERVATION,2063,25/05/2017,588197,320.10 ,Revenue,GRISTWOOD AND TOMS LIMITED,2665293
Fareham Borough Council,http://statistics.data.gov.uk/id/local-authority/24UE,CULTURAL AND RELATED SERVICES,BV09,RECREATION AND SPORT,BV09B,DEPARTMENT OF OPERATIONS,PREMISES RELATED EXPENDITURE,2,Horticultural,24,R&M OF TREE PRESERVATION,2063,25/05/2017,588197,106.70 ,Revenue,GRISTWOOD AND TOMS LIMITED,2665293
Fareham Borough Council,http://statistics.data.gov.uk/id/local-authority/24UE,HIGHWAYS ROADS AND TRANSPORT,BV12,PARKING SERVICES,BV12D,DEPARTMENT OF OPERATIONS,PREMISES RELATED EXPENDITURE,2,Horticultural,24,R&M OF TREE PRESERVATION,2063,25/05/2017,588197,53.35 ,Revenue,GRISTWOOD AND TOMS LIMITED,2665293
Fareham Borough Council,http://statistics.data.gov.uk/id/local-authority/24UE,PLANNING SERVICES,BV13,DEVELOPMENT CONTROL,BV13B,DEPT of STRATEGIC PLANNING and ENVIRONMENT,PREMISES RELATED EXPENDITURE,2,Horticultural,24,R&M OF TREE PRESERVATION,2063,25/05/2017,588197,106.70 ,Revenue,GRISTWOOD AND TOMS LIMITED,2665293
Fareham Borough Council,http://statistics.data.gov.uk/id/local-authority/24UE,HOUSING REVENUE ACCOUNT,BV06,MAINT OF LAWNS VERGES ETC,5030,DEPARTMENT OF OPERATIONS,PREMISES RELATED EXPENDITURE,2,Horticultural,24,R&M OF TREE PRESERVATION,2063,25/05/2017,588197,1120.35 ,Revenue,GRISTWOOD AND TOMS LIMITED,2665293
Fareham Borough Council,http://statistics.data.gov.uk/id/local-authority/24UE,CORPORATE & DEMOCRATIC CORE,BV07A,DEMOCRATIC REP.& MANAGEMENT,BV07AA,DEPT of FINANCE and RESOURCES,SUPPLIES & SERVICES,4,Mail Services�,30,PUBLICITY AND PROMOTION,4912,25/05/2017,588200,3047.87 ,Revenue,LEAFLET DISTRIBUTION SERVICES LTD,06516137
Fareham Borough Council,http://statistics.data.gov.uk/id/local-authority/24UE,ENVIRONMENT AND REGULATORY SER,BV03,COAST PROTECTION,BV03B,DEPT of STRATEGIC PLANNING and ENVIRONMENT,THIRD PARTY PAYMENTS,5,Local/Central Government,98,COASTAL DEFENCE PARTNERSHIP,5230,25/05/2017,588335,25441.06 ,Revenue,HAVANT BOROUGH COUNCIL,
Fareham Borough Council,http://statistics.data.gov.uk/id/local-authority/24UE,GENERAL FUND HOUSING,BV05,HOMELESSNESS,BV05F,DEPARTMENT OF OPERATIONS,SUPPLIES & SERVICES,4,Unclassified,,LOCAL ASSISTANCE PAYMENT,4727,25/05/2017,588336,1550.00 ,Revenue,redacted personal data,
Fareham Borough Council,http://statistics.data.gov.uk/id/local-authority/24UE,GENERAL FUND HOUSING,BV05,HOMELESSNESS,BV05F,DEPARTMENT OF OPERATIONS,SUPPLIES & SERVICES,4,Unclassified,,LOCAL ASSISTANCE PAYMENT,4727,25/05/2017,588337,700.00 ,Revenue,redacted personal data,
Fareham Borough Council,http://statistics.data.gov.uk/id/local-authority/24UE,CAPITAL PROGRAMME - OTHER SERVICES,CP,NEW SCHEMES,CP23,CAPITAL - NEW SCHEMES,PREMISES RELATED EXPENDITURE,2,"Works - Construction, Repair & Maintenance",39,R & M OF BUILDINGS,2000,25/05/2017,588355,3837.48 ,Capital,MORGAN SINDALL CONSTRUCT & INFRASTRUCTURE LTD,4273754
Fareham Borough Council,http://statistics.data.gov.uk/id/local-authority/24UE,CAPITAL PROGRAMME - HOUSING SERVICES,CP,RENOVATION OF L.A. DWELLINGS,CP10,CAPITAL - IMPROVEMENTS WORK/MODERNIS'N,PREMISES RELATED EXPENDITURE,2,Building Construction Materials,10,R & M OF BUILDINGS,2000,25/05/2017,588370,3280.00 ,Capital,HARFORD SPECIALISED SERVICES LTD,02338660
Fareham Borough Council,http://statistics.data.gov.uk/id/local-authority/24UE,HOUSING REVENUE ACCOUNT,BV06,RESPONSIVE & VOID MAINTENANCE,5901,DEPARTMENT OF OPERATIONS,PREMISES RELATED EXPENDITURE,2,Facilities & Management Services,19,GENERAL REPAIRS,2018,25/05/2017,588371,2677.99 ,Revenue,S A C LTD,01566628
Fareham Borough Council,http://statistics.data.gov.uk/id/local-authority/24UE,OTHER REVENUE ACCOUNTS,RV,NON WORK GROUP HOLDING ACCOUNT,RV18,DEPT of FINANCE and RESOURCES,PREMISES RELATED EXPENDITURE,2,Facilities & Management Services,19,GENERAL REPAIRS,2018,25/05/2017,588371,373.24 ,Revenue,S A C LTD,01566628
Fareham Borough Council,http://statistics.data.gov.uk/id/local-authority/24UE,ENVIRONMENT AND REGULATORY SER,BV03,COAST PROTECTION,BV03B,DEPT of STRATEGIC PLANNING and ENVIRONMENT,THIRD PARTY PAYMENTS,5,Local/Central Government,98,COASTAL DEFENCE PARTNERSHIP,5230,25/05/2017,588374,57447.00 ,Revenue,HAVANT BOROUGH COUNCIL,
Fareham Borough Council,http://statistics.data.gov.uk/id/local-authority/24UE,ENVIRONMENT AND REGULATORY SER,BV03,FLOOD DEFENCE & LAND DRAINAGE,BV03D,DEPT of STRATEGIC PLANNING and ENVIRONMENT,PREMISES RELATED EXPENDITURE,2,Consultancy,15,R&M OF GROUNDS,2060,25/05/2017,588375,9860.00 ,Revenue,HALCROW GROUP LTD (A CH2MHILL COMPANY),3415971
Fareham Borough Council,http://statistics.data.gov.uk/id/local-authority/24UE,ENVIRONMENT AND REGULATORY SER,BV03,FLOOD DEFENCE & LAND DRAINAGE,BV03D,DEPT of STRATEGIC PLANNING and ENVIRONMENT,PREMISES RELATED EXPENDITURE,2,Consultancy,15,R&M OF GROUNDS,2060,25/05/2017,588375,6406.00 ,Revenue,HALCROW GROUP LTD (A CH2MHILL COMPANY),3415971
Fareham Borough Council,http://statistics.data.gov.uk/id/local-authority/24UE,ENVIRONMENT AND REGULATORY SER,BV03,FLOOD DEFENCE & LAND DRAINAGE,BV03D,DEPT of STRATEGIC PLANNING and ENVIRONMENT,PREMISES RELATED EXPENDITURE,2,Consultancy,15,R&M OF GROUNDS,2060,25/05/2017,588376,8090.00 ,Revenue,HALCROW GROUP LTD (A CH2MHILL COMPANY),3415971
Fareham Borough Council,http://statistics.data.gov.uk/id/local-authority/24UE,HOUSING REVENUE ACCOUNT,BV06,GENERAL ADMINISTRATION EXPENSE,5021,DEPARTMENT OF OPERATIONS,SUPPLIES & SERVICES,4,Information Communication Technology,27,COMPUTER SOFTWARE,4531,25/05/2017,588377,24037.99 ,Revenue,ORCHARD INFORMATION SYSTEMS LTD,01900078
Fareham Borough Council,http://statistics.data.gov.uk/id/local-authority/24UE,HOUSING REVENUE ACCOUNT,BV06,GENERAL ADMINISTRATION EXPENSE,5021,DEPARTMENT OF OPERATIONS,SUPPLIES & SERVICES,4,Information Communication Technology,27,COMPUTER SOFTWARE,4531,25/05/2017,588378,1085.01 ,Revenue,ORCHARD INFORMATION SYSTEMS LTD,01900078
Fareham Borough Council,http://statistics.data.gov.uk/id/local-authority/24UE,CULTURAL AND RELATED SERVICES,BV09,CULTURE AND HERITAGE,BV09A,DEPARTMENT OF OPERATIONS,SUPPLIES & SERVICES,4,Art & Leisure Services,29,PROMOTER,4916,25/05/2017,588395,3592.88 ,Revenue,INDIVIDUAL ENTERTAINMENT LTD,08379914
Fareham Borough Council,http://statistics.data.gov.uk/id/local-authority/24UE,CULTURAL AND RELATED SERVICES,BV09,CULTURE AND HERITAGE,BV09A,DEPARTMENT OF OPERATIONS,SUPPLIES & SERVICES,4,Unclassified,,PROMOTER,4916,25/05/2017,588397,5197.58 ,Revenue,SALLY MORGAN ENTERTAINMENTS LTD,07754019
Fareham Borough Council,http://statistics.data.gov.uk/id/local-authority/24UE,CULTURAL AND RELATED SERVICES,BV09,CULTURE AND HERITAGE,BV09A,DEPARTMENT OF OPERATIONS,SUPPLIES & SERVICES,4,Art & Leisure Services,29,PROMOTER,4916,25/05/2017,588401,3939.23 ,Revenue,CHIMES INTERNATIONAL ENTERTAINMENTS LTD,SC177594
Fareham Borough Council,http://statistics.data.gov.uk/id/local-authority/24UE,OTHER REVENUE ACCOUNTS,RV,CONTRACT SERVICES D.S.O.,RV14,DEPARTMENT OF OPERATIONS,TRANSPORT RELATED EXPENDITURE,3,Vehicle Management,38,HIRE OF VEHICLES,3210,25/05/2017,588406,974.69 ,Revenue,BOARHUNT GROUP LTD,02884453
Fareham Borough Council,http://statistics.data.gov.uk/id/local-authority/24UE,ENVIRONMENT AND REGULATORY SER,BV03,WASTE COLLECTION,BV03G,DEPARTMENT OF OPERATIONS,TRANSPORT RELATED EXPENDITURE,3,Vehicle Management,38,ROUTINE REPAIRS VEHICLES/PLANT,3010,25/05/2017,588408,128.00 ,Revenue,VEHICLE WEIGHING SOLUTIONS,5677827
Fareham Borough Council,http://statistics.data.gov.uk/id/local-authority/24UE,ENVIRONMENT AND REGULATORY SER,BV03,WASTE COLLECTION,BV03G,DEPARTMENT OF OPERATIONS,TRANSPORT RELATED EXPENDITURE,3,Vehicle Management,38,ROUTINE REPAIRS VEHICLES/PLANT,3010,25/05/2017,588408,128.00 ,Revenue,VEHICLE WEIGHING SOLUTIONS,5677827
Fareham Borough Council,http://statistics.data.gov.uk/id/local-authority/24UE,ENVIRONMENT AND REGULATORY SER,BV03,WASTE COLLECTION,BV03G,DEPARTMENT OF OPERATIONS,TRANSPORT RELATED EXPENDITURE,3,Vehicle Management,38,ROUTINE REPAIRS VEHICLES/PLANT,3010,25/05/2017,588408,295.31 ,Revenue,VEHICLE WEIGHING SOLUTIONS,5677827
Fareham Borough Council,http://statistics.data.gov.uk/id/local-authority/24UE,ENVIRONMENT AND REGULATORY SER,BV03,WASTE COLLECTION,BV03G,DEPARTMENT OF OPERATIONS,TRANSPORT RELATED EXPENDITURE,3,Vehicle Management,38,ROUTINE REPAIRS VEHICLES/PLANT,3010,25/05/2017,588408,75.00 ,Revenue,VEHICLE WEIGHING SOLUTIONS,5677827
Fareham Borough Council,http://statistics.data.gov.uk/id/local-authority/24UE,ENVIRONMENT AND REGULATORY SER,BV03,WASTE COLLECTION,BV03G,DEPARTMENT OF OPERATIONS,TRANSPORT RELATED EXPENDITURE,3,Vehicle Management,38,ROUTINE REPAIRS VEHICLES/PLANT,3010,25/05/2017,588408,32.00 ,Revenue,VEHICLE WEIGHING SOLUTIONS,5677827
Fareham Borough Council,http://statistics.data.gov.uk/id/local-authority/24UE,HOUSING REVENUE ACCOUNT,BV06,RESPONSIVE & VOID MAINTENANCE,5901,DEPARTMENT OF OPERATIONS,PREMISES RELATED EXPENDITURE,2,"Works - Construction, Repair & Maintenance",39,VOID COSTS - NOT RECHARGEABLE,2011,25/05/2017,588424,616.00 ,Revenue,BEAVEN GROUNDWORKS,
Fareham Borough Council,http://statistics.data.gov.uk/id/local-authority/24UE,HOUSING REVENUE ACCOUNT,BV06,RESPONSIVE & VOID MAINTENANCE,5901,DEPARTMENT OF OPERATIONS,PREMISES RELATED EXPENDITURE,2,"Works - Construction, Repair & Maintenance",39,VOID COSTS - NOT RECHARGEABLE,2011,25/05/2017,588424,361.85 ,Revenue,BEAVEN GROUNDWORKS,
Fareham Borough Council,http://statistics.data.gov.uk/id/local-authority/24UE,HOUSING REVENUE ACCOUNT,BV06,OTHER COMMUNAL SERVICES,5034,DEPARTMENT OF OPERATIONS,PREMISES RELATED EXPENDITURE,2,Utilities,37,WATER CHARGES - SUPPLY (PWC),2400,25/05/2017,588440,678.34 ,Revenue,PORTSMOUTH  WATER LTD,02536455
